{"text_format":"1","workbook":"xlsx","n_sheets":44,"sheets":["Menu","Sumário Executivo","Identificação das Necessidades","Segmentação de Mercado-Clientes","ConsumidoresPF","ConsumidoresPJ","Fornecedor","Concorrentes","FOFA","Estratégia de Produto - Valor","Estratégia de Preço","Estratégia de Promoção","Estratégia de Comunicação","Estratégia de Distribuição","Força de Vendas","POperacional","Lay-out","InvestFixo","PrazosEstoques","Faturamento","MaodeObra","Previsão ProLabore","Calculo Encargos","CustoFixo","TributosSimples","TributosEI","TributosPres","TributosReal","Tributos","OutrosCVs","Financiamento","DRE","Sazonalidade","Sazonalidade2","Sazonalidade3","Sazonalidade4","Sazonalidade5","Indicadores","Parecer","Instruções","ImpostoDetalhado","Aliquotas","Plan1","Plan2"],"not_rendered":{"charts":11,"images":52,"macros":1,"external_links":0,"defined_names":202,"comments":8,"pivot_tables":0},"unopened":[],"bounds":{"document_bytes":16777216,"sheet_cells":100000,"rows_first":2000,"rows_last":500,"rows_between":2000,"halvings":0,"cell_chars":16384,"cell_head_chars":4096},"cells_cut":0,"cells_raw":0,"read":"whole","date_system":"1900"}

{"sheet":"Menu","index":0,"n_rows":26,"n_cols":7,"rows_kept":26,"cut":false,"hidden":false,"merged":[[25,4,25,5],[25,6,25,14]]}
[]
[]
[]
[]
[]
[]
[]
[]
[]
[]
[]
[]
[]
[]
[]
[]
[]
[]
[]
[]
[]
[]
[]
[]
[]
[null,null,null,null,"Empresa:",null,"Empresa ABCDE"]

{"sheet":"Sumário Executivo","index":1,"n_rows":23,"n_cols":3,"rows_kept":23,"cut":false,"hidden":false,"merged":[[16,1,17,1],[16,2,16,8],[17,2,17,8],[9,2,9,8],[22,1,23,1],[22,2,22,8],[23,2,23,8],[11,1,11,8],[12,1,12,8],[18,1,19,1],[18,2,18,8],[19,2,19,8],[20,1,21,1],[20,2,20,8],[21,2,21,8],[14,1,15,1],[14,2,14,8],[15,2,15,8]]}
[]
[]
[]
[]
[]
[]
[]
[]
[]
[null,"Empresa:",{"$f":"Menu!G26","v":"Empresa ABCDE"}]
[]
[null,"SUMÁRIO EXECUTIVO "]
[null,"As principais definições do seu Negócio"]
[]
[null,"Resumo do Negócio","Qual o negócio da empresa? (Resumo dos produtos e serviços prestados, clientes, concorrentes, fornecedores, etc)."]
[]
[null,"Dados dos Futuros Empresários","Quantidade de Sócios, formação, experiência profissional, habilidades em destaque e pontos de melhoria."]
[]
[null,"Setor que a Empresa Atuará","Indústria (bens duráveis ou de Consumo), Comércio (varejo x atacado, serviços, etc.)"]
[]
[null,"Forma Jurídica","Será um empresário individual ? Sociedade Limitada ? Quantos Sócios ? Como será a divisão da sociedade ? Que regime tributário pretende participar ?"]
[]
[null,"Fontes de Recursos","A empresa utizará capital próprio dos empresários ? Terá outros investidores ? Buscará financiamento em bancos ?"]

{"sheet":"Identificação das Necessidades","index":2,"n_rows":21,"n_cols":8,"rows_kept":21,"cut":false,"hidden":false,"merged":[[32,1,32,2],[33,1,33,2],[28,1,28,2],[29,1,29,2],[30,1,30,2],[31,1,31,2],[21,5,21,6],[24,1,24,2],[20,5,20,6],[20,1,20,2],[20,3,20,4],[27,1,27,2],[21,1,21,2],[21,3,21,4],[22,1,22,2],[23,1,23,2],[25,1,25,2],[26,1,26,2],[10,2,10,7],[12,1,12,7],[13,1,13,7],[19,1,19,2],[19,3,19,4],[14,1,14,7],[15,1,15,7],[16,1,16,7],[17,1,17,7],[18,1,18,7],[19,5,19,6]]}
[]
[]
[]
[]
[]
[]
[]
[]
[]
[]
[null,"Empresa:",{"$f":"Menu!G26","v":"Empresa ABCDE"}]
[]
[null,"IDENTIFICAÇÃO DAS NECESSIDADES"]
[null,"O que seu produto atenderá?"]
[null,"1. Descrição da NECESSIDADE e/ou DESEJOS de seus Clientes"]
[]
[null,"2. Descrição do PRODUTO e/ou SERVIÇO oferecido"]
[]
[null,"CICLO DE VIDA DO PRODUTO  - Escolha em que estágio está o produto que você quer vender (marque com X a sua escolha)"]
[null,"INTRODUÇÃO",null,"CRESCIMENTO",null,"MATURIDADE",null,"DECLÍNIO"]
[null,"Momento em que o produto está sendo conhecido por todos, ritmo lento de vendas e magens altas",null,"Nesse momento o produto começa a ser popularmente consumido, havendo um grande aumento nas vendas",null,"As vendas neste mercado se estabilizam e o esforço    é direcionado para manter a marca e reduzir custos",null,"As vendas e os lucros estão diminuindo neste mercado e o produto necessita ser recriado para um novo ciclo de vida"]

{"sheet":"Segmentação de Mercado-Clientes","index":3,"n_rows":48,"n_cols":3,"rows_kept":48,"cut":false,"hidden":false,"merged":[[23,1,23,3],[29,1,29,3],[31,1,31,3],[10,2,10,4],[16,1,20,4],[24,1,28,4],[12,1,12,4],[13,1,13,4],[15,1,15,3],[21,1,21,3],[32,1,36,4],[55,1,55,3],[45,1,45,3],[47,1,47,3],[53,1,53,3],[40,1,44,4],[48,1,52,4],[37,1,37,3],[39,1,39,3]]}
[]
[]
[]
[]
[]
[]
[]
[]
[]
[]
[null,"Empresa:",{"$f":"Menu!G26","v":"Empresa ABCDE"}]
[]
[null,"SEGMENTAÇÃO DO MERCADO"]
[null,"Quem será o nosso cliente?"]
[]
[null,"1 - GEOGRÁFICA (Países, Regiões, Cidades, Exemplo: Moradores do Centro)"]
[]
[]
[]
[]
[]
[]
[]
[null,"2 - DEMOGRÁFICA (Sexo, idade, renda, educação - Exemplo: Público de 18 a 24 anos da Classe A e B)"]
[]
[]
[]
[]
[]
[]
[]
[null,"3 - CULTURAL (Valores, crenças, hábitos, tradições - Exemplo: torcedores do Flamengo, católicos, etc.)"]
[]
[]
[]
[]
[]
[]
[]
[null,"4 - PSICOGRÁFICA (Atitudes, medos, estilo de vida. Exemplo: pessoas preocupadas com a saúde e com alimentação)."]
[]
[]
[]
[]
[]
[]
[]
[null,"5 - CARACTERÍSCTICAS ORGANIZACIONAIS (caso seu cliente seja uma outra empresa que mercado atendem, de que cadeia de produção fazem parte, são pequenas ou grandes empresas, atacado ou varejo, etc.)"]

{"sheet":"ConsumidoresPF","index":4,"n_rows":163,"n_cols":3,"rows_kept":163,"cut":false,"hidden":false,"merged":[[128,1,128,3],[130,1,130,3],[137,1,137,3],[138,1,142,3],[131,1,135,3],[136,1,136,3],[163,1,167,3],[168,1,168,3],[153,1,153,3],[154,1,158,3],[143,1,143,3],[162,1,162,3],[159,1,159,3],[145,1,145,3],[146,1,150,3],[151,1,151,3],[46,1,46,3],[48,1,48,3],[122,1,122,3],[123,1,127,3],[97,1,97,3],[98,1,102,3],[103,1,103,3],[112,1,112,3],[114,1,114,3],[115,1,119,3],[120,1,120,3],[121,1,121,3],[26,1,27,3],[28,1,28,3],[65,1,86,3],[90,1,94,3],[95,1,95,3],[35,1,35,3],[36,1,37,3],[38,1,38,3],[39,1,39,3],[40,1,40,3],[87,1,87,3],[89,1,89,3],[62,1,62,3],[64,1,64,3],[57,1,61,3],[41,1,45,3],[10,2,10,3],[54,1,54,3],[56,1,56,3],[12,1,12,3],[14,1,14,3],[15,1,15,3],[16,1,17,3],[31,1,32,3],[33,1,33,3],[18,1,18,3],[20,1,20,3],[21,1,22,3],[30,1,30,3],[49,1,53,3],[23,1,23,3],[25,1,25,3]]}
[]
[]
[]
[]
[]
[]
[]
[]
[]
[]
[null,"Empresa:",{"$f":"Menu!G26","v":"Empresa ABCDE"}]
[]
[null,"CONSUMIDORES - PESSOA FÍSICA"]
[]
[null,"1 - Perfil do consumidor:"]
[null,"A - Idade"]
[]
[]
[]
[]
[null,"B - Perfil Familiar"]
[]
[]
[]
[]
[null,"C - Posição Profissional"]
[]
[]
[]
[]
[null,"D - Poder Aquisitivo"]
[]
[]
[]
[]
[null,"E - Local de residência ou trabalho"]
[]
[]
[]
[null,"2 - Comportamento de consumo"]
[null,"A - Como costuma se informar sobre este tipo de produto"]
[]
[]
[]
[]
[]
[]
[]
[null,"B - Local que costumam comprar este tipo de produto"]
[]
[]
[]
[]
[]
[]
[]
[null,"C - Qual a importância atribuída à conveniência"]
[]
[]
[]
[]
[]
[]
[]
[null,"D - Principais benefícios que procuram no produto"]
[]
[]
[]
[]
[]
[]
[]
[]
[]
[]
[]
[]
[]
[]
[]
[]
[]
[]
[]
[]
[]
[]
[]
[]
[null,"3.7 - Preços praticados, de acordo com padrões diferentes dos pontos de venda"]
[]
[]
[]
[]
[]
[]
[]
[null,"3.8 - Estratégias de comunicação, propaganda, promoção usadas"]
[]
[]
[]
[]
[]
[]
[]
[]
[]
[]
[]
[]
[]
[]
[]
[]
[null,"E - Critérios aplicados para tomar suas decisões de compra"]
[]
[]
[]
[]
[]
[]
[]
[null,"F - Quem toma a decisão de compra"]
[]
[]
[]
[]
[]
[]
[]
[null,"G - Regularidade de compra"]
[]
[]
[]
[]
[]
[]
[]
[]
[]
[]
[]
[]
[]
[]
[null,"3.7 - Preços praticados, de acordo com padrões diferentes dos pontos de venda"]
[]
[]
[]
[]
[]
[]
[]
[null,"3.8 - Estratégias de comunicação, propaganda, promoção usadas"]
[]
[]
[]
[]
[]
[]
[]
[]
[null,"H - Qual a média de gasto por compra"]

{"sheet":"ConsumidoresPJ","index":5,"n_rows":80,"n_cols":3,"rows_kept":80,"cut":false,"hidden":false,"merged":[[77,1,77,3],[62,1,62,3],[63,1,63,3],[64,1,68,3],[69,1,69,3],[71,1,71,3],[72,1,76,3],[40,1,44,3],[45,1,45,3],[26,1,27,3],[28,1,28,3],[30,1,30,3],[85,1,85,3],[21,1,22,3],[23,1,23,3],[47,1,47,3],[48,1,52,3],[53,1,53,3],[79,1,79,3],[80,1,84,3],[56,1,60,3],[61,1,61,3],[55,1,55,3],[25,1,25,3],[31,1,31,3],[32,1,36,3],[37,1,37,3],[39,1,39,3],[20,1,20,3],[10,2,10,3],[12,1,12,3],[14,1,14,3],[15,1,15,3],[16,1,17,3],[18,1,18,3]]}
[]
[]
[]
[]
[]
[]
[]
[]
[]
[]
[null,"Empresa:",{"$f":"Menu!G26","v":"Empresa ABCDE"}]
[]
[null,"CONSUMIDORES - PESSOA JURÍDICA"]
[]
[null,"1 - Perfil do consumidor:"]
[null,"A - Tamanho da empresa"]
[]
[]
[]
[]
[null,"B - Posição no mercado e perspectivas"]
[]
[]
[]
[]
[null,"C - Situação financeira e perspectivas"]
[]
[]
[]
[]
[null,"2 - Comportamento de consumo"]
[null,"A - Com que frequência compra"]
[]
[]
[]
[]
[]
[]
[]
[null,"B - Tomador de decisões de compra e quem as influencia"]
[]
[]
[]
[]
[]
[]
[]
[null,"C - Principais benefícios que procuram no produto"]
[]
[]
[]
[]
[]
[]
[]
[null,"D - Critérios aplicados para tomar suas decisões de compra"]
[]
[]
[]
[]
[]
[]
[]
[null,"E - Importância atribuída a suporte técnico, serviços de apoio e formas de pagamento e financimento"]
[]
[]
[]
[]
[]
[]
[]
[null,"F - Sazonalidade e Gasto Médio"]
[]
[]
[]
[]
[]
[]
[]
[null,"G - Canal de Atendimento (Telefone, internet, email, etc)"]

{"sheet":"Fornecedor","index":6,"n_rows":15,"n_cols":7,"rows_kept":15,"cut":false,"hidden":false,"merged":[[12,1,12,6],[10,2,10,6]]}
[]
[]
[]
[]
[]
[]
[]
[]
[]
[]
[null,"Empresa:",{"$f":"Menu!G26","v":"Empresa ABCDE"}]
[]
[null,"FORNECEDORES"]
[]
[null,"PRODUTO / INSUMO","FORNECEDORES","PERIODICIDADE DE COMPRA","VOLUMES MINIMOS","CONDIÇOES DE PAGAMENTO E ENTREGA","OUTRAS"]

{"sheet":"Concorrentes","index":7,"n_rows":15,"n_cols":6,"rows_kept":15,"cut":false,"hidden":false,"merged":[[12,1,12,5],[10,2,10,5]]}
[]
[]
[]
[]
[]
[]
[]
[]
[]
[]
[null,"Empresa:",{"$f":"Menu!G26","v":"Empresa ABCDE"}]
[]
[null,"CONCORRENTES"]
[]
[null,"NOME","DIRETO / INDIRETO","PRODUTOS / SERVIÇOS","PONTOS FORTES","PONTOS FRACOS"]

{"sheet":"FOFA","index":8,"n_rows":55,"n_cols":9,"rows_kept":55,"cut":false,"hidden":false,"merged":[[11,1,11,13],[21,1,21,13],[9,1,9,2],[9,3,9,13],[26,2,26,6],[26,8,26,12],[27,2,27,6],[27,8,27,12],[28,2,28,6],[28,8,28,12],[24,2,24,6],[24,8,24,12],[25,2,25,6],[25,8,25,12],[45,2,45,6],[45,8,45,12],[46,2,46,6],[46,8,46,12],[47,2,47,6],[47,8,47,12],[42,2,42,6],[42,8,42,12],[43,2,43,6],[43,8,43,12],[44,2,44,6],[44,8,44,12],[55,2,55,6],[55,8,55,12],[56,2,56,6],[56,8,56,12],[57,2,57,6],[57,8,57,12],[48,2,48,6],[48,8,48,12],[49,2,49,6],[49,8,49,12],[54,2,54,6],[54,8,54,12],[32,2,32,6],[33,2,33,6],[77,2,77,6],[77,8,77,12],[78,2,78,6],[78,8,78,12],[79,2,79,6],[79,8,79,12],[74,2,74,6],[74,8,74,12],[75,2,75,6],[75,8,75,12],[76,2,76,6],[76,8,76,12],[58,2,58,6],[58,8,58,12],[73,2,73,6],[73,8,73,12],[72,8,72,12],[72,2,72,6],[59,2,59,6],[60,2,60,6],[61,2,61,6],[62,2,62,6],[39,2,39,6],[40,2,40,6],[41,2,41,6],[29,8,29,12],[30,8,30,12],[31,8,31,12],[32,8,32,12],[33,8,33,12],[34,8,34,12],[35,8,35,12],[36,8,36,12],[37,8,37,12],[38,8,38,12],[39,8,39,12],[40,8,40,12],[41,8,41,12],[34,2,34,6],[35,2,35,6],[36,2,36,6],[37,2,37,6],[38,2,38,6],[29,2,29,6],[30,2,30,6],[31,2,31,6],[69,2,69,6],[70,2,70,6],[71,2,71,6],[59,8,59,12],[60,8,60,12],[61,8,61,12],[62,8,62,12],[63,8,63,12],[64,8,64,12],[65,8,65,12],[66,8,66,12],[67,8,67,12],[68,8,68,12],[69,8,69,12],[70,8,70,12],[71,8,71,12],[63,2,63,6],[64,2,64,6],[65,2,65,6],[66,2,66,6],[67,2,67,6],[68,2,68,6]]}
[]
[]
[]
[]
[]
[]
[]
[]
[]
[null,"Empresa:",null,{"$f":"Menu!G26","v":"Empresa ABCDE"}]
[]
[null,"ANALISE DE CENÁRIO"]
[]
[]
[]
[]
[]
[]
[]
[]
[]
[null,"MATRIZ SWOT (FOFA)"]
[]
[]
[null,null,"FORÇAS",null,null,null,null,null,"FRAQUEZAS"]
[]
[]
[]
[]
[]
[]
[]
[]
[]
[]
[]
[]
[]
[]
[]
[]
[]
[]
[]
[]
[]
[]
[]
[]
[]
[]
[]
[]
[]
[null,null,"OPORTUNIDADES",null,null,null,null,null,"AMEAÇAS"]

{"sheet":"Estratégia de Produto - Valor","index":9,"n_rows":31,"n_cols":11,"rows_kept":31,"cut":false,"hidden":false,"merged":[[30,1,30,7],[12,1,12,7],[13,1,13,7],[24,1,24,7],[25,1,25,10],[26,1,26,7],[27,1,27,10],[28,1,28,7],[29,1,29,10],[18,1,18,7],[23,1,23,10],[12,8,12,10],[14,1,14,7],[15,1,15,10],[16,1,16,7],[17,1,17,10],[19,1,19,10],[20,1,20,7],[21,1,21,10],[22,1,22,7],[10,2,10,10]]}
[]
[]
[]
[]
[]
[]
[]
[]
[]
[]
[null,"Empresa:",{"$f":"Menu!G26","v":"Empresa ABCDE"}]
[]
[null,"ESTRATÉGIA DE PRODUTO",null,null,null,null,null,null,"Concorrência"]
[null,"Valor ao Cliente",null,null,null,null,null,null,"Inferior","Igual","Superior"]
[null,"1. QUALIDADE (durabilidade, resistência, confiabilidade)"]
[]
[null,"2. IMAGEM (embalagem, logomarca, status associados, etc)"]
[]
[null,"3. INOVAÇÃO (o que seu produto ou serviço possui de novo no mercado)"]
[]
[null,"4. INFORMAÇÃO (que informações facilitarão a compra do seu cliente ?)"]
[]
[null,"5. GARANTIA (como o cliente terá menos risco ao comprar seu produto)"]
[]
[null,"6. CONVENIÊNCIA ( como você economizará tempo e esforço do cliente)"]
[]
[null,"7. SERVIÇOS (que serviços estarão associados ao seu produto ?)"]
[]
[null,"8. OUTROS ASPECTOS DE VALOR AO CLIENTE"]
[]
[null,"TOTAL DE PONTOS",null,null,null,null,null,null,{"$f":"COUNTIF(I15:I29,\"X\")","v":0},{"$f":"COUNTIF(J15:J29,\"X\")","v":0},{"$f":"COUNTIF(K15:K29,\"X\")","v":0}]

{"sheet":"Estratégia de Preço","index":10,"n_rows":24,"n_cols":7,"rows_kept":24,"cut":false,"hidden":false,"merged":[[15,4,15,5],[15,6,15,7],[16,2,16,3],[17,2,17,3],[17,4,17,5],[10,2,10,7],[21,1,21,7],[22,1,22,7],[23,1,23,7],[24,1,24,7],[16,4,16,5],[16,6,16,7],[19,1,19,7],[20,1,20,7],[17,6,17,7],[18,1,18,7],[12,1,12,7],[13,1,13,7],[14,1,17,1],[14,2,14,7],[15,2,15,3]]}
[]
[]
[]
[]
[]
[]
[]
[]
[]
[]
[null,"Empresa:",{"$f":"Menu!G26","v":"Empresa ABCDE"}]
[]
[null,"ESTRATÉGIA DE PREÇOS"]
[null,"Escreva abaixo em qual estratégia de posicionamento de Preço estará seu produto ou serviço"]
[null,"(Menor  -  QUALIDADE  -  Maior)"," (Maior   - PREÇO -  Menor)"]
[null,null,"Preço Prêmium\n(Alta Qualidade e Alto Preço)",null,"Alto Valor\n(Alta Qualidade e Médio Preço)",null,"Super Valor\n(Alta Qualidade e Baixo Preço)"]
[null,null,"Preço Excessivo\n(Média Qualidade e Alto Preço)",null,"Preço Médio\n(Media Qualidade e Médio Preço)",null,"Valor Bom\n(Média Qualidade e Baixo Preço)"]
[null,null,"Assalto ao Cliente\n(Baixa Qualidade e Alto Preço)",null,"Falsa Economia\n(Baixa Qualidade e Médio Preço)",null,"Economia\n(Baixa Qualidade e Baixo Preço)"]
[]
[null,"CONDIÇÕES DE PAGAMENTO (Cartão de Débito, Cheque, Cartão de Crédito, Fatura, etc.)"]
[]
[null,"PRAZOS DE PAGAMENTO (A vista, 30 dias, 30 e 60, 1+4, 5 x sem entrada, etc.)"]
[]
[null,"DADOS CADASTRAIS NECESSÁRIOS PARA APROVAÇÃO DE CRÉDITO (nome, telefone, tempo de residência, SPC negativo)"]

{"sheet":"Estratégia de Promoção","index":11,"n_rows":27,"n_cols":3,"rows_kept":27,"cut":false,"hidden":false,"merged":[[26,1,27,1],[26,2,26,8],[27,2,27,8],[22,1,23,1],[22,2,22,8],[23,2,23,8],[24,1,25,1],[24,2,24,8],[25,2,25,8],[18,1,19,1],[18,2,18,8],[19,2,19,8],[21,2,21,8],[20,1,21,1],[20,2,20,8],[10,2,10,8],[16,1,17,1],[16,2,16,8],[17,2,17,8],[12,1,12,8],[13,1,13,8],[14,1,15,1],[14,2,14,8],[15,2,15,8]]}
[]
[]
[]
[]
[]
[]
[]
[]
[]
[]
[null,"Empresa:",{"$f":"Menu!G26","v":"Empresa ABCDE"}]
[]
[null,"ESTRATÉGIA DE PROMOÇÃO"]
[null,"As ofertas que irão atrair seus clientes?"]
[null,"Concursos e Premiações","Preenchimento de Cupons para concorrer a prêmios, podendo ser produtos ou serviços."]
[]
[null,"Liquidações e Descontos","Pague 2 leve 3, semana com 50% de desconto em todas as peças, descontos por compra em atacado, etc."]
[]
[null,"Cartões","Cartões de Desconto, quem possui o cartão recebe benefícios quando compra."]
[]
[null,"Brindes e Presentes","Na compra de qualquer produto, o cliente ganha um outro produto, ou um brinde."]
[]
[null,"Eventos                   (Almoço de Negócios, coquetéis e Demonstrações)","A empresa oferece a clientes especiais eventos para estreitar o relacionamento com os mesmos."]
[]
[null,"Parcerias","A empresa utiliza de parceiras para estabelecer estratégias de promoção"]
[]
[null,"Outros","Outras opções de promoções não listadas acima"]

{"sheet":"Estratégia de Comunicação","index":12,"n_rows":33,"n_cols":3,"rows_kept":33,"cut":false,"hidden":false,"merged":[[20,1,20,8],[29,1,29,8],[30,1,30,8],[31,1,31,8],[23,1,23,8],[24,1,24,8],[25,1,25,8],[26,1,26,8],[28,1,28,8],[27,1,27,8],[10,2,10,8],[32,1,32,8],[33,1,33,8],[12,1,12,8],[13,1,13,8],[18,1,19,1],[18,2,18,8],[19,2,19,8],[14,1,15,1],[14,2,14,8],[15,2,15,8],[21,1,21,8],[22,1,22,8],[16,1,17,1],[16,2,16,8],[17,2,17,8]]}
[]
[]
[]
[]
[]
[]
[]
[]
[]
[]
[null,"Empresa:",{"$f":"Menu!G26","v":"Empresa ABCDE"}]
[]
[null,"COMUNICAÇÃO"]
[null,"Como o cliente saberá da sua oferta?"]
[null,"Qual o objetivo da mensagem?","Informações que lembre os clientes a existência dos produtos ou serviços e de suas vantagens."]
[]
[null,"Para quem se destina a mensagem?","Pessoas físicas ou Pessoas Jurídicas, sejam elas: consumidoras, representantes, distribuidoras ou revendedoras."]
[]
[null,"Que veículo de mídia utilizar?","Anúncio no rádio, na TV, no jornal, na internet, Folders, plafletos, Mala direta, ou até mesmo em todos esses veículos, que o cliente que perceba sua mensagem."]
[]
[null,"PANFLETOS, FOLDERS"]
[]
[null,"INTERNET E EMAIL MARKETING"]
[]
[null,"CATÁLOGOS, MALA DIRETA E CADASTRO"]
[]
[null,"RÁDIO E TELEVISÃO"]
[]
[null,"OUTDOOR, BANNER, FAIXA"]
[]
[null,"REVISTA, JORNAL"]
[]
[null,"OUTROS"]

{"sheet":"Estratégia de Distribuição","index":13,"n_rows":35,"n_cols":7,"rows_kept":35,"cut":false,"hidden":false,"merged":[[17,6,17,7],[18,3,18,4],[14,3,14,4],[14,6,14,7],[15,3,15,4],[15,6,15,7],[16,3,16,4],[32,1,32,7],[33,1,33,7],[34,1,34,7],[35,1,35,7],[31,1,31,7],[10,2,10,7],[30,1,30,7],[16,6,16,7],[17,3,17,4],[22,1,23,7],[24,1,24,7],[18,6,18,7],[19,2,21,7],[25,1,25,7],[26,1,26,7],[27,1,27,7],[28,1,28,7],[29,1,29,7],[12,1,12,7],[13,1,13,7],[14,1,21,1]]}
[]
[]
[]
[]
[]
[]
[]
[]
[]
[]
[null,"Empresa:",{"$f":"Menu!G26","v":"Empresa ABCDE"}]
[]
[null,"DISTRIBUIÇÃO"]
[null,"Como vai entregar ou distribuir o seu produto?"]
[null,"Que canais de venda e distribuição sua empresa terá?",null,"Atacado",null,null,"Representantes Comerciais"]
[null,null,null,"Lojas de Varejo em Geral",null,null,"Lojas de Varejo Especializadas"]
[null,null,null,"Loja Própria",null,null,"Internet"]
[null,null,null,"Venda por Catálogo",null,null,"Venda por Telefone"]
[null,null,null,"Franquias",null,null,"Outros                 (Especificar Abaixo) "]
[]
[]
[]
[null,"DESCREVA AS CARACTERÍSTICAS DE SEU PONTO COMERCIAL"]
[]
[null,"Como é o contrato de locação ? É locado ? Por quanto tempo ? Possui alvará ?"]
[]
[null,"Visibilidade (É fácil de localizar o ponto ? Existe algum obstáculo para visualizar a loja ?)"]
[]
[null,"Acessibilidade (Existem obstáculos para entrar na loja ? - escadas, degraus, falta estacionamento, etc )"]
[]
[null,"Fluxo - como é o fluxo de pessoas na frente da loja ?"]
[]
[null,"Concorrência - existem concorrentes diretos ou indiretos nas proximidades ?"]
[]
[null,"Qual a sua estratégia para destacar e facilitar a compra em seu ponto comercial ?"]

{"sheet":"Força de Vendas","index":14,"n_rows":23,"n_cols":3,"rows_kept":23,"cut":false,"hidden":false,"merged":[[22,1,23,1],[22,2,22,7],[23,2,23,7],[16,1,17,1],[16,2,16,7],[17,2,17,7],[18,1,19,1],[18,2,18,7],[19,2,19,7],[20,1,21,1],[20,2,20,7],[21,2,21,7],[12,1,13,7],[14,1,15,1],[14,2,14,7],[15,2,15,7],[10,2,10,7]]}
[]
[]
[]
[]
[]
[]
[]
[]
[]
[]
[null,"Empresa:",{"$f":"Menu!G26","v":"Empresa ABCDE"}]
[]
[null,"FORÇA DE VENDAS "]
[]
[null,"Perfil dos vendedores","Serão especializados no produto ? Terão curso de vendas ? Deverão possuir experiência anterior em vendas ? Etc."]
[]
[null,"Organização da equipe","Quantos Vendedores ? Quantos Supervisores ? Háverá divisão entre vendedores juniores e plenos ? Etc."]
[]
[null,"Remuneração da equipe","Serão comissionados ? Possuem metas a cumprir ? Existe uma premiação por resultado coletivo ? Que tipo de remuneraçao receberão ? Etc."]
[]
[null,"Treinamentos","Quais os conhecimentos sobre o produto e sobre vendas que sua equipe deverá adquirir ?"]
[]
[null,"Aptidões","Quais as aptidões e habilidades que sua equipe deverá adquirir ?"]

{"sheet":"POperacional","index":15,"n_rows":39,"n_cols":3,"rows_kept":39,"cut":false,"hidden":false,"merged":[[39,1,43,3],[44,1,44,3],[22,1,22,3],[23,1,27,3],[28,1,28,3],[30,1,30,3],[31,1,35,3],[36,1,36,3],[38,1,38,3],[12,1,12,3],[14,1,14,3],[15,1,19,3],[20,1,20,3],[10,2,10,3]]}
[]
[]
[]
[]
[]
[]
[]
[]
[]
[]
[null,"Empresa:",{"$f":"Menu!G26","v":"Empresa ABCDE"}]
[]
[null,"PROCESSO OPERACIONAL"]
[]
[null,"1 - Qual será a capacidade máxima de produção ou atendimento?"]
[]
[]
[]
[]
[]
[]
[]
[null,"2 - Qual será o volume de produção/atendimento inicial?"]
[]
[]
[]
[]
[]
[]
[]
[null,"3- Quais serão os estoques iniciais de matéria-prima? Como serão armazenados?"]
[]
[]
[]
[]
[]
[]
[]
[null,"4 - Quais serão as funções e quem as desempenhará na empresa?"]

{"sheet":"Lay-out","index":16,"n_rows":52,"n_cols":3,"rows_kept":52,"cut":false,"hidden":false,"merged":[[51,1,51,10],[44,1,44,10],[45,1,45,10],[46,1,46,10],[47,1,47,10],[10,2,10,13],[48,1,48,10],[49,1,49,10],[50,1,50,10],[12,1,12,13]]}
[]
[]
[]
[]
[]
[]
[]
[]
[]
[]
[null,"Empresa:",{"$f":"Menu!G26","v":"Empresa ABCDE"}]
[]
[null,"LAY-OUT"]
[]
[]
[]
[]
[]
[]
[]
[]
[]
[]
[]
[]
[]
[]
[]
[]
[]
[]
[]
[]
[]
[]
[]
[]
[]
[]
[]
[]
[]
[]
[]
[null,"Por onde ocorrerão os fluxos de fabricação ou de tramitação de processos?"]
[null,"Qual o espaço útil disponível?"]
[null,"Qual será a disposição física dos postos de trabalho?"]
[null,"Qual será a movimentação de pessoas, produtos, materiais e documentos dentro da empresa?"]
[null,"O ambiente será  favorável para o trabalho e o aumento da produtividade?"]
[null,"Haverá uma situação confortável a clientes e visitantes?"]
[null,"Quais serão as áreas de acesso restrito?"]
[null,"Lembre-se: não esqueça das necessidades especiais dos portadores de deficiências físicas!"]

{"sheet":"InvestFixo","index":17,"n_rows":69,"n_cols":5,"rows_kept":69,"cut":false,"hidden":false,"merged":[[12,1,12,3]]}
[]
[]
[]
[]
[]
[]
[]
[]
[]
[]
[]
[]
[null,"INVESTIMENTO FIXO"]
[]
[null,"DISCRIMINAÇÃO","VALOR R$","%*"]
[null,"Construções",{"$f":"SUM(C17)","v":0},0.04]
[]
[null,"Máquinas e Equipamentos",{"$f":"SUM(C19:C28)","v":350},0.1]
[null,"gteste 1",100]
[null,"teste 2",250]
[]
[]
[]
[]
[]
[]
[]
[]
[null,"Móveis e Utensílios",{"$f":"SUM(C30:C39)","v":100},0.1]
[null,"teste 3",100]
[]
[]
[]
[]
[]
[]
[]
[]
[]
[null,"Computadores",{"$f":"SUM(C41:C50)","v":100},0.2]
[null,"teste 4",100]
[]
[]
[]
[]
[]
[]
[]
[]
[]
[null,"Taxa de Franquia",{"$f":"C52","v":0},0]
[]
[null,"Veículos",{"$f":"SUM(C54:C56)","v":0},0.2]
[]
[]
[]
[null,"Outros",{"$f":"SUM(C58:C67)","v":0},{"$f":"IF(E57=0,0,E57/C57)","v":0},{"$f":"SUM(E58:E67)","v":0}]
[null,null,null,null,{"$f":"C58*D58","v":0}]
[null,null,null,null,{"$f":"C59*D59","v":0}]
[null,null,null,null,0]
[null,null,null,null,0]
[null,null,null,null,0]
[null,null,null,null,0]
[null,null,null,null,0]
[null,null,null,null,0]
[null,null,null,null,0]
[null,null,null,null,0]
[null,"Total Investimento Fixo",{"$f":"C16+C18+C29+C40+C51+C53+C57","v":550},{"$f":"((C16*D16)+(C18*D18)+(C29*D29)+(C40*D40)+(C51*D51)+(C53*D53)+(E57))/12","v":5.416666666666667}]
[null,"* - Percentual de depreciação por grupo."]

{"sheet":"PrazosEstoques","index":18,"n_rows":33,"n_cols":4,"rows_kept":33,"cut":false,"hidden":false,"merged":[[12,1,12,3]]}
[]
[]
[]
[]
[]
[]
[]
[]
[]
[]
[]
[]
[null,"PRAZOS E ESTOQUES"]
[]
[null,"POLÍTICA DE VENDA"]
[null,"Prazo médio de venda das mercadorias","%","Dias"]
[null,"Venda à Vista",{"$f":"100-C18","v":50},"-"]
[null,"Venda a Prazo",50]
[null," Este quadro apresenta a divisão das vendas à vista e a prazo","Prazo Médio",{"$f":"D18*C18/100","v":0}]
[null,"em relação às vendas totais."]
[null,"POLÍTICA DE COMPRA"]
[null,"Prazo médio de compras","%","Dias"]
[null,"À Vista",{"$f":"100-C24","v":60},"-"]
[null,"A Prazo",40]
[null," Este quadro apresenta a divisão das compras à vista e a prazo","Prazo Médio",{"$f":"D24*C24/100","v":0}]
[null,"em relação às compras totais."]
[null,"POLÍTICA DE ESTOQUE","Dias"]
[null,"Necessidade média de estoques",12]
[null," Este quadro define qual deve ser o estoque mínimo necessário"]
[null,"em dias."]
[null,"ESTIMATIVA DE ESTOQUE INICIAL","R$"]
[null,"Estoque Inicial",150]
[null,"Este quadro define o valor do estoque inicial"]

{"sheet":"Faturamento","index":19,"n_rows":259,"n_cols":7,"rows_kept":259,"cut":false,"hidden":false,"merged":[[12,1,12,6],[23,2,23,4],[23,5,23,6],[21,1,21,2],[23,1,24,1],[129,1,129,2],[126,4,126,5],[198,4,198,5],[132,1,133,1],[132,2,132,4],[132,5,132,6]]}
[]
[]
[]
[]
[]
[]
[]
[]
[]
[]
[]
[]
[null,"ESTIMATIVA DE FATURAMENTO MENSAL"]
[]
[null,null,null,null,"Custo Direto","Faturamento","% do Faturamento"]
[null,null,null,"Produtos",{"$f":"CMV","v":12000},{"$f":"G127","v":19700},{"$f":"F16/Faturamento","v":0.94033412887828161}]
[null,null,null,"Serviços",{"$f":"D199","v":500},{"$f":"G199","v":1250},{"$f":"F17/Faturamento","v":5.9665871121718374E-2}]
[null,null,null,"Total",{"$f":"SUM(E16:E17)","v":12500},{"$f":"SUM(F16:F17)","v":20950}]
[]
[]
[]
[null,"PRODUTOS"]
[]
[null,"Descrição do Produto","Estimativa de Custos",null,null,"Estimativa de Vendas"]
[null,null,"Vendas Unitárias","Custo Unit.","Custo da Mercadoria","Preço de Venda Unitário","Faturamento"]
[null,"teste 1",10,50,{"$f":"D26*C26","v":500},70,{"$f":"C26*F26","v":700}]
[null,"teste 2",100,15,1500,30,{"$f":"C27*F27","v":3000}]
[null,"teste 3",20,500,10000,800,16000]
[null,null,null,null,0,null,0]
[null,null,null,null,0,null,0]
[null,null,null,null,0,null,0]
[null,null,null,null,0,null,0]
[null,null,null,null,0,null,0]
[null,null,null,null,0,null,0]
[null,null,null,null,0,null,0]
[null,null,null,null,0,null,0]
[null,null,null,null,0,null,0]
[null,null,null,null,0,null,0]
[null,null,null,null,0,null,0]
[null,null,null,null,0,null,0]
[null,null,null,null,0,null,0]
[null,null,null,null,0,null,0]
[null,null,null,null,0,null,0]
[null,null,null,null,0,null,0]
[null,null,null,null,0,null,0]
[null,null,null,null,0,null,0]
[null,null,null,null,0,null,0]
[null,null,null,null,0,null,0]
[null,null,null,null,0,null,0]
[null,null,null,null,0,null,0]
[null,null,null,null,0,null,0]
[null,null,null,null,0,null,0]
[null,null,null,null,0,null,0]
[null,null,null,null,0,null,0]
[null,null,null,null,0,null,0]
[null,null,null,null,0,null,0]
[null,null,null,null,0,null,0]
[null,null,null,null,0,null,0]
[null,null,null,null,0,null,0]
[null,null,null,null,0,null,0]
[null,null,null,null,0,null,0]
[null,null,null,null,0,null,0]
[null,null,null,null,0,null,0]
[null,null,null,null,0,null,0]
[null,null,null,null,0,null,0]
[null,null,null,null,0,null,0]
[null,null,null,null,0,null,0]
[null,null,null,null,0,null,0]
[null,null,null,null,0,null,0]
[null,null,null,null,0,null,0]
[null,null,null,null,0,null,0]
[null,null,null,null,0,null,0]
[null,null,null,null,0,null,0]
[null,null,null,null,0,null,0]
[null,null,null,null,0,null,0]
[null,null,null,null,0,null,0]
[null,null,null,null,0,null,0]
[null,null,null,null,0,null,0]
[null,null,null,null,0,null,0]
[null,null,null,null,0,null,0]
[null,null,null,null,0,null,0]
[null,null,null,null,0,null,0]
[null,null,null,null,0,null,0]
[null,null,null,null,0,null,0]
[null,null,null,null,0,null,0]
[null,null,null,null,0,null,0]
[null,null,null,null,0,null,0]
[null,null,null,null,0,null,0]
[null,null,null,null,0,null,0]
[null,null,null,null,0,null,0]
[null,null,null,null,0,null,0]
[null,null,null,null,0,null,0]
[null,null,null,null,0,null,0]
[null,null,null,null,0,null,0]
[null,null,null,null,0,null,0]
[null,null,null,null,0,null,0]
[null,null,null,null,0,null,0]
[null,null,null,null,0,null,0]
[null,null,null,null,0,null,0]
[null,null,null,null,0,null,0]
[null,null,null,null,0,null,0]
[null,null,null,null,0,null,0]
[null,null,null,null,0,null,0]
[null,null,null,null,0,null,0]
[null,null,null,null,0,null,0]
[null,null,null,null,0,null,0]
[null,null,null,null,0,null,0]
[null,null,null,null,0,null,0]
[null,null,null,null,0,null,0]
[null,null,null,null,0,null,0]
[null,null,null,null,0,null,0]
[null,null,null,null,0,null,0]
[null,null,null,null,0,null,0]
[null,null,null,null,0]
[null,null,null,null,0,null,0]
[null,null,null,null,0,null,0]
[null,null,null,null,0,null,0]
[null,null,null,null,0,null,0]
[null,null,null,null,0,null,0]
[null,null,null,null,0,null,0]
[null,null,null,null,0,null,0]
[null,null,null,null,0,null,0]
[null,null,null,null,0,null,0]
[null,null,null,null,0,null,0]
[null,null,null,null,0,null,0]
[null,null,null,null,0,null,0]
[null,null,"CMV",{"$f":"SUM(E26:E126)","v":12000},"TOTAL DE PRODUTOS",null,{"$f":"SUM(G26:G126)","v":19700}]
[]
[]
[null,"SERVIÇOS"]
[]
[]
[null,"Descrição do Serviço","Estimativa de Custos",null,null,"Estimativa de Vendas"]
[null,null,"Vendas Unitárias","Custo Unit.","Custo Direto do Serviço","Preço de Venda Unitário","Faturamento"]
[null,"teste 11",50,10,500,25,1250]
[null,null,null,null,0,null,0]
[null,null,null,null,0,null,0]
[null,null,null,null,0,null,0]
[null,null,null,null,0,null,0]
[null,null,null,null,0,null,0]
[null,null,null,null,0,null,0]
[null,null,null,null,0,null,0]
[null,null,null,null,0,null,0]
[null,null,null,null,0,null,0]
[null,null,null,null,0,null,0]
[null,null,null,null,0,null,0]
[null,null,null,null,0,null,0]
[null,null,null,null,0,null,0]
[null,null,null,null,0,null,0]
[null,null,null,null,0,null,0]
[null,null,null,null,0,null,0]
[null,null,null,null,0,null,0]
[null,null,null,null,0,null,0]
[null,null,null,null,0,null,0]
[null,null,null,null,0,null,0]
[null,null,null,null,0,null,0]
[null,null,null,null,0,null,0]
[null,null,null,null,0,null,0]
[null,null,null,null,0,null,0]
[null,null,null,null,0,null,0]
[null,null,null,null,0,null,0]
[null,null,null,null,0,null,0]
[null,null,null,null,0,null,0]
[null,null,null,null,0,null,0]
[null,null,null,null,0,null,0]
[null,null,null,null,0,null,0]
[null,null,null,null,0,null,0]
[null,null,null,null,0,null,0]
[null,null,null,null,0,null,0]
[null,null,null,null,0,null,0]
[null,null,null,null,0,null,0]
[null,null,null,null,0,null,0]
[null,null,null,null,0,null,0]
[null,null,null,null,0,null,0]
[null,null,null,null,0,null,0]
[null,null,null,null,0,null,0]
[null,null,null,null,0,null,0]
[null,null,null,null,0,null,0]
[null,null,null,null,0,null,0]
[null,null,null,null,0,null,0]
[null,null,null,null,0,null,0]
[null,null,null,null,0,null,0]
[null,null,null,null,0,null,0]
[null,null,null,null,0,null,0]
[null,null,null,null,0,null,0]
[null,null,null,null,0,null,0]
[null,null,null,null,0,null,0]
[null,null,null,null,0,null,0]
[null,null,null,null,0,null,0]
[null,null,null,null,0,null,0]
[null,null,null,null,0,null,0]
[null,null,null,null,0,null,0]
[null,null,null,null,0,null,0]
[null,null,null,null,0,null,0]
[null,null,null,null,0,null,0]
[null,null,null,null,0,null,0]
[null,null,null,null,0,null,0]
[null,null,null,null,0,null,0]
[null,null,"Custo Direto",{"$f":"SUM(E135:E198)","v":500},"TOTAL DE SERVIÇOS",null,{"$f":"SUM(G135:G198)","v":1250}]
[]
[]
[]
[]
[]
[]
[]
[]
[]
[]
[]
[]
[]
[]
[]
[]
[]
[]
[]
[]
[]
[]
[]
[]
[]
[]
[]
[]
[]
[]
[]
[]
[]
[]
[]
[]
[]
[]
[]
[]
[]
[]
[]
[]
[]
[]
[]
[]
[]
[]
[]
[]
[]
[]
[]
[]
[]
[]
[]
[null,null,null,null,"Índice","Anterior"]

{"sheet":"MaodeObra","index":20,"n_rows":33,"n_cols":7,"rows_kept":33,"cut":false,"hidden":false,"merged":[[32,2,32,3],[30,1,30,3],[12,1,12,6],[31,2,31,3]]}
[]
[]
[]
[]
[]
[]
[]
[]
[]
[]
[]
[]
[null,"CUSTOS COM MÃO DE OBRA"]
[]
[null,"Cargo/Função","Qtde de Funcionários","Salário","%*","Encargos ","Total"]
[null,"lilki",123,1000,{"$f":"IF(ALIQUOTAMO<>0,ALIQUOTAMO,IF(OR(Esimples=\"V\",EEI=\"V\"),IF(OR(Eanexo4=\"V\",Eanexo5=\"V\"),AliquotaMOIV,AliquotaMOSimples),AliquotaMOPres))","v":0.6634000000000001},{"$f":"D16*E16","v":663.40000000000009},{"$f":"(D16+F16)*C16","v":204598.2}]
[null,"ala",321,850,{"$f":"$E$16","v":0.6634000000000001},{"$f":"D17*E17","v":563.8900000000001},{"$f":"(D17+F17)*C17","v":453858.69000000006}]
[null,null,null,null,{"$f":"$E$16","v":0.6634000000000001},0,0]
[null,null,null,null,0.6634000000000001,0,0]
[null,null,null,null,0.6634000000000001,0,0]
[null,null,null,null,0.6634000000000001,0,0]
[null,null,null,null,0.6634000000000001,0,0]
[null,null,null,null,0.6634000000000001,0,0]
[null,null,null,null,0.6634000000000001,0,0]
[null,null,null,null,0.6634000000000001,0,0]
[null,null,null,null,0.6634000000000001,0,0]
[null,"Comissões (vide aba Comissões)",null,{"$f":"Comissões.Total","v":523.75},0.6634000000000001,{"$f":"D27*E27","v":347.45575000000008},{"$f":"D27+F27","v":871.20575000000008}]
[null,"TOTAL",{"$f":"SUM(C16:C26)","v":444},{"$f":"SUM(C16:C26*D16:D26)","v":395850},null,{"$f":"SUM(C16:C26*F16:F26)","v":262606.89},{"$f":"SUM(G16:G26)","v":658456.89000000013}]
[]
[]
[null,"Retirada dos Sócios (Pró-Labore)"]
[null,"Valor a ser retirado mensalmente",2000]
[null,"Alíquota de INSS",0.11]

{"sheet":"Previsão ProLabore","index":21,"n_rows":57,"n_cols":4,"rows_kept":57,"cut":false,"hidden":false,"merged":[[12,1,12,4],[56,3,56,4],[56,1,56,2]]}
[]
[]
[]
[]
[]
[]
[]
[]
[]
[]
[]
[]
[null,"ORÇAMENTO FAMILIAR DO MÊS"]
[]
[null,"Despesas","R$"]
[null,"Água",100]
[null,"Telefone",50]
[null,"Energia Elétrica",80]
[null,"Supermercado",45]
[null,"Padaria",67]
[null,"Aluguel",80]
[null,"Combustível",1000]
[null,"Taxas/Juros Bancários",250]
[null,"Financiamento Casa"]
[null,"Financiamento Veículo"]
[null,"Consórcio / Título"]
[null,"Vestuário / Presentes"]
[null,"Lazer / Passeios"]
[null,"Reformas/Consertos"]
[null,"Empregada"]
[null,"Escola"]
[null,"Cursinhos / Palestras"]
[null,"Internet"]
[null,"Plano de Saúde"]
[null,"Dentista"]
[null,"Farmácia / Hospital"]
[null,"Vigilância Residencial"]
[null,"Seguro Residencial"]
[null,"Seguro Veículo"]
[null,"IPVA"]
[null,"IPTU"]
[null,"Cartão de Crédito"]
[null,"Clube / Acadêmia"]
[null,"Outros"]
[null,"Total Despesas / Saídas",{"$f":"SUM(C16:C44)","v":1672}]
[]
[]
[null,"Ganho próprio / Salário",690]
[null,"Ganho com Aposentadoria",300]
[null,"Ganho com juros Financeiros"]
[null,"Ganho com Alugueis"]
[null,"Outros"]
[null,"Ganhos /  Receitas",{"$f":"SUM(C48:C52)","v":990}]
[]
[]
[]
[null,"Necessidade de Retirada de Pró-labore",null,{"$f":"C45-C53","v":682}]

{"sheet":"Calculo Encargos","index":22,"n_rows":125,"n_cols":3,"rows_kept":125,"cut":false,"hidden":false,"merged":[[12,1,12,4],[14,1,14,2],[50,1,50,2],[86,1,86,2]]}
[]
[]
[]
[]
[]
[]
[]
[]
[]
[]
[]
[]
[null,"MEMORIA DE CALCULO DOS ENCARGOS"]
[]
[null,"LUCRO PRESUMIDO OU REAL"]
[]
[null,"ENCARGOS RECOLHIDOS MENSALMENTE"]
[]
[null,"Encargos","Alíquotas"]
[null,"INSS",0.2]
[null,"SESI, SESC OU SEST",1.4999999999999999E-2]
[null,"SENAI,SENAC OU SENAT",0.01]
[null,"SEBRAE",6.0000000000000001E-3]
[null,"INCRA",2E-3]
[null,"FGTS",0.08]
[null,"Acidente de Trabalho",0.03]
[null,"Salário Educação",2.5000000000000001E-2]
[null,null,{"$f":"SUM(C20:C27)","v":0.3680000000000001}]
[null,"PROVISÕES"]
[]
[null,"Encargos","Alíquotas"]
[null,"Férias",0.13300000000000001]
[null,"Feriados",0.04]
[null,"Aviso Prévio",2.5000000000000001E-3]
[null,"Auxílio Enfermidade",4.1999999999999997E-3]
[null,"13° Salário",8.3299999999999999E-2]
[null,null,{"$f":"SUM(C32:C36)","v":0.26300000000000001}]
[null,"PASSIVO TRABALHISTA"]
[]
[null,"Encargos","Alíquotas"]
[null,"Depósito para Rescisão",4.0000000000000001E-3]
[null,"Incidência grupo A sobre B",2.1700000000000001E-2]
[null,"FGTS sobre 13° Salário",6.7000000000000002E-3]
[null,null,{"$f":"SUM(C41:C43)","v":3.2399999999999998E-2}]
[]
[null,"TOTAL",{"$f":"SUM(C28,C37,C44)","v":0.6634000000000001}]
[]
[]
[]
[]
[null,"SIMPLES - ANEXOS I, II E III"]
[]
[null,"ENCARGOS RECOLHIDOS MENSALMENTE"]
[]
[null,"Encargos","Alíquotas"]
[null,"INSS",0]
[null,"SESI, SESC OU SEST",0]
[null,"SENAI,SENAC OU SENAT",0]
[null,"SEBRAE",0]
[null,"INCRA",0]
[null,"FGTS",0.08]
[null,"Acidente de Trabalho",0]
[null,"Salário Educação",0]
[null,null,{"$f":"SUM(C56:C63)","v":0.08}]
[null,"PROVISÕES"]
[]
[null,"Encargos","Alíquotas"]
[null,"Férias",0.13300000000000001]
[null,"Feriados",0.04]
[null,"Aviso Prévio",2.5000000000000001E-3]
[null,"Auxílio Enfermidade",4.1999999999999997E-3]
[null,"13° Salário",8.3299999999999999E-2]
[null,null,{"$f":"SUM(C68:C72)","v":0.26300000000000001}]
[null,"PASSIVO TRABALHISTA"]
[]
[null,"Encargos","Alíquotas"]
[null,"Depósito para Rescisão",4.0000000000000001E-3]
[null,"Incidência grupo A sobre B",2.1700000000000001E-2]
[null,"FGTS sobre 13° Salário",6.7000000000000002E-3]
[null,null,{"$f":"SUM(C77:C79)","v":3.2399999999999998E-2}]
[]
[null,"TOTAL",{"$f":"SUM(C64,C73,C80)","v":0.37540000000000001}]
[]
[]
[]
[]
[null,"SIMPLES ANEXO IV E ANEXO V"]
[]
[null,"ENCARGOS RECOLHIDOS MENSALMENTE"]
[]
[null,"Encargos","Alíquotas"]
[null,"INSS",0.2]
[null,"SESI, SESC OU SEST",0]
[null,"SENAI,SENAC OU SENAT",0]
[null,"SEBRAE",0]
[null,"INCRA",0]
[null,"FGTS",0.08]
[null,"Acidente de Trabalho",0.03]
[null,"Salário Educação",0]
[null,null,{"$f":"SUM(C92:C99)","v":0.31000000000000005}]
[null,"PROVISÕES"]
[]
[null,"Encargos","Alíquotas"]
[null,"Férias",0.13300000000000001]
[null,"Feriados",0.04]
[null,"Aviso Prévio",2.5000000000000001E-3]
[null,"Auxílio Enfermidade",4.1999999999999997E-3]
[null,"13° Salário",8.3299999999999999E-2]
[null,null,{"$f":"SUM(C104:C108)","v":0.26300000000000001}]
[null,"PASSIVO TRABALHISTA"]
[]
[null,"Encargos","Alíquotas"]
[null,"Depósito para Rescisão",4.0000000000000001E-3]
[null,"Incidência grupo A sobre B",2.1700000000000001E-2]
[null,"FGTS sobre 13° Salário",6.7000000000000002E-3]
[null,null,{"$f":"SUM(C113:C115)","v":3.2399999999999998E-2}]
[]
[]
[null,"TOTAL",{"$f":"SUM(C100,C109,C116)","v":0.60540000000000005}]
[]
[]
[]
[null,"Se desejar utilizar outra aliquota, preencha a célula abaixo:"]
[]
[null,"DESEJO UTILIZAR ESTA ALIQUOTA"]

{"sheet":"CustoFixo","index":23,"n_rows":69,"n_cols":4,"rows_kept":69,"cut":false,"hidden":false,"merged":[[12,1,12,4],[26,4,27,4]]}
[]
[]
[]
[]
[]
[]
[]
[]
[]
[]
[]
[]
[null,"CUSTOS FIXOS"]
[]
[null,null,"Discriminação","Valor R$"]
[null,null,"Mão-de-Obra + Encargos",{"$f":"MaodeObra!G28","v":658456.89000000013}]
[null,null,"Retirada dos Sócios (Pró-Labore)",{"$f":"MaodeObra!C32*(1+MaodeObra!C33)","v":2220}]
[null,null,"Água",100]
[null,null,"Luz",56]
[null,null,"Telefone",35]
[null,null,"Contador",98]
[null,null,"Despesas com Veículos"]
[null,null,"Material de Expediente e Consumo"]
[null,null,"Aluguel"]
[null,null,"Seguros"]
[null,null,"Propaganda e Publicidade"]
[null,null,"Depreciação Mensal",{"$f":"((InvestFixo!C16*InvestFixo!D16)+(InvestFixo!C18*InvestFixo!D18)+(InvestFixo!C29*InvestFixo!D29)+(InvestFixo!C40*InvestFixo!D40)+(InvestFixo!C53*InvestFixo!D53)+(InvestFixo!C57*InvestFixo!D57))/12","v":5.416666666666667}]
[null,null,"Manutenção"]
[null,null,"Condomínio"]
[null,null,"Despesas de Viagem"]
[null,null,"Serviços de Terceiros"]
[null,null,"Ônibus, Táxis e Selos"]
[null,null,"Outros",{"$f":"SUM(D34:D68)","v":0}]
[]
[]
[]
[]
[]
[]
[]
[]
[]
[]
[]
[]
[]
[]
[]
[]
[]
[]
[]
[]
[]
[]
[]
[]
[]
[]
[]
[]
[]
[]
[]
[]
[]
[]
[]
[null,null,"TOTAL",{"$f":"SUM(D16:D33)","v":660971.30666666676}]

{"sheet":"TributosSimples","index":24,"n_rows":40,"n_cols":5,"rows_kept":40,"cut":false,"hidden":false,"merged":[[20,1,20,3],[21,1,21,3],[12,1,12,4],[17,1,17,3],[18,1,18,3],[19,1,19,3],[30,1,30,3],[38,1,38,4],[39,1,41,4],[22,1,22,3],[23,1,23,3],[28,1,28,3],[29,1,29,3],[24,1,24,3],[25,1,25,3],[26,1,26,3],[27,1,27,3]]}
[]
[]
[]
[]
[]
[]
[]
[]
[]
[]
[]
[]
[null,"SIMULADOR TRIBUTÁRIO - ETAPA 1"]
[]
[null,"Receita Bruta Anual",{"$f":"C16*12","v":251400}]
[null,"Faturamento Mensal",{"$f":"Faturamento","v":20950}]
[]
[null,"Atividade",null,null,"Receita Bruta Mensal (*)"]
[{"$f":"IF(B19=\"\",\"\",VLOOKUP(B19,Atividades,2,0))","v":1},"Comércio",null,null,21000]
[""]
[""]
[""]
[""]
[""]
[""]
[""]
[""]
[""]
[""]
[""]
[null,"Total",null,null,{"$f":"SUM(E19:E30)","v":21000}]
[]
[null,"(*) Ao realizar este passo deve-se atentar para atividade desenvolvida pelo o empreendedor."]
[null,"Na sequência escolha a atividade pretendida, separando a receita correspondente de cada uma."]
[null,"A separação das receitas será útil, de maneira a utilizar a alíquota correta de acordo com a"]
[null,"tributação vigente para cada atividade mercantil."]
[]
[]
[]
[null,{"$f":"IF(E31<>C16,\"O Valor Total da Receita Bruta Mensal difere do Valor do Faturamento Mensal, isto poderá resultar em erro de cálculo dos Tributos. Sugere-se ajustar os valores da Receita Bruta Mensal de acordo com o Faturamento Mensal\",\"\")","v":"O Valor Total da Receita Bruta Mensal difere do Valor do Faturamento Mensal, isto poderá resultar em erro de cálculo dos Tributos. Sugere-se ajustar os valores da Receita Bruta Mensal de acordo com o Faturamento Mensal"}]

{"sheet":"TributosEI","index":25,"n_rows":23,"n_cols":3,"rows_kept":23,"cut":false,"hidden":false,"merged":[[22,1,25,3],[12,1,12,4],[16,1,16,4],[18,1,18,4]]}
[]
[]
[]
[]
[]
[]
[]
[]
[]
[]
[]
[]
[null,"SIMULADOR TRIBUTÁRIO - ETAPA 2"]
[]
[null,"Receita Bruta Anual",{"$f":"Rbruta","v":251400}]
[]
[null,"ATIVIDADES PERMITIDAS NO EI"]
[]
[]
[]
[null,"ATIVIDADE COMBINADA"]
[]
[null,{"$f":"IF(C15<=LimiteEI,\"(*) Pelo seu faturamento Bruto anual de sua empresa, você poderá ser enquadrada no MEI, verifique na lista de atividades acima, se a sua empresa poderá ser enquadrada.\",\"(*) Pelo Faturamento Bruto anual de sua empresa, o valor excede o valor maximo permitido pelo MEI\")","v":"(*) Pelo Faturamento Bruto anual de sua empresa, o valor excede o valor maximo permitido pelo MEI"}]

{"sheet":"TributosPres","index":26,"n_rows":45,"n_cols":5,"rows_kept":45,"cut":false,"hidden":false,"merged":[[43,1,43,2],[44,1,44,2],[15,1,15,4],[33,1,33,2],[36,1,36,2],[20,1,20,3],[12,1,12,4],[39,1,39,3],[22,1,22,4],[27,1,27,3],[29,1,29,3]]}
[]
[]
[]
[]
[]
[]
[]
[]
[]
[]
[]
[]
[null,"SIMULADOR TRIBUTÁRIO - ETAPA 3"]
[]
[]
[null,"DEBITO ICMS"]
[null,"Destino Produto/UF ","Vendas","Alíquota","Valor do Débito"]
[null,"Paraná",{"$f":"Faturamento!F16","v":19700},0.18,{"$f":"C18*D18","v":3546}]
[null,"Sul / Sudeste",null,0.12,{"$f":"C19*D19","v":0}]
[null,"Norte / Nordeste / MT / MS",null,7.0000000000000007E-2,{"$f":"C20*D20","v":0}]
[null,"TOTAL",null,null,{"$f":"SUM(E18:E20)","v":3546}]
[]
[null,"Crédito de ICMS"]
[null,"Destino Produto/UF ","Compras","Alíquota","Valor do Crédito"]
[null,"Paraná",{"$f":"CMV","v":12000},0.12,{"$f":"C25*D25","v":1440}]
[null,"Sul / Sudeste",null,0.12,{"$f":"C26*D26","v":0}]
[null,"Norte / Nordeste / MT / MS",null,0.17,{"$f":"C27*D27","v":0}]
[null,"TOTAL",null,null,{"$f":"SUM(E25:E27)","v":1440}]
[]
[null,"ICMS DEVIDO",null,null,{"$f":"E21-E28","v":2106}]
[]
[]
[]
[null,"DEBITO IPI",null,"Aliquota"]
[null,"Valor do Débito",{"$f":"Faturamento!F16","v":19700},0.08,{"$f":"C35*D35","v":1576}]
[]
[null,"CREDITO IPI",null,"Aliquota"]
[null,"Valor do Crédito",{"$f":"CMV","v":12000},0.08,{"$f":"C38*D38","v":960}]
[]
[null,"IPI DEVIDO",null,null,{"$f":"E35-E38","v":616}]
[]
[]
[]
[null,"Alíquota de ISS do Município"]
[null,0.05]

{"sheet":"TributosReal","index":27,"n_rows":32,"n_cols":5,"rows_kept":32,"cut":false,"hidden":false,"merged":[[28,1,28,2],[31,1,31,3],[15,1,15,2],[12,1,12,4],[18,1,18,2],[21,1,21,3],[25,1,25,2]]}
[]
[]
[]
[]
[]
[]
[]
[]
[]
[]
[]
[]
[null,"SIMULADOR TRIBUTÁRIO - ETAPA 4"]
[]
[]
[null,"A. DEBITO PIS",null,"Aliquota"]
[null,"Valor do Débito",{"$f":"Faturamento","v":20950},1.6500000000000001E-2,{"$f":"C17*D17","v":345.67500000000001}]
[]
[null,"B. CREDITO PIS",null,"Alíquota"]
[null,"Valor do Crédito",{"$f":"Despesas+CDT+TributosPres!E30+TributosPres!E40","v":676193.30666666676},1.6500000000000001E-2,{"$f":"C20*D20","v":11157.189560000003}]
[]
[null,"PIS DEVIDO",null,null,{"$f":"IF((E17-E20)<0,0,E17-E20)","v":0}]
[]
[]
[]
[null,"DEBITO COFINS",null,"Aliquota"]
[null,"Valor do Débito",{"$f":"Faturamento","v":20950},7.5999999999999998E-2,{"$f":"C27*D27","v":1592.2}]
[]
[null,"CREDITO COFINS",null,"Aliquota"]
[null,"Valor do Crédito",{"$f":"Despesas+CDT+TributosPres!E30+TributosPres!E40","v":676193.30666666676},7.5999999999999998E-2,{"$f":"C30*D30","v":51390.691306666675}]
[]
[null,"COFINS DEVIDO",null,null,{"$f":"IF((E27-E30)<0,0,E27-E30)","v":0}]

{"sheet":"Tributos","index":28,"n_rows":47,"n_cols":9,"rows_kept":47,"cut":false,"hidden":false,"merged":[[12,1,12,8],[17,4,23,4],[17,2,23,2]]}
[]
[]
[]
[]
[]
[]
[]
[]
[]
[]
[]
[]
[null,"SIMULADOR TRIBUTÁRIO -- TOTAL"]
[]
[null,"Faturamento Mensal",{"$f":"Faturamento","v":20950}]
[]
[null,"IMPOSTOS","EI",null,"SIMPLES",null,"LUCRO PRESUMIDO",null,"LUCRO REAL"]
[null,"IR - Imposto de Renda",{"$f":"IF(Rbruta>LimiteEI,\"FATURAMENTO EXCEDE O PERMITIDO              R$ 60.000,00 AO ANO\",ImpostoDetalhado!C38)","v":"FATURAMENTO EXCEDE O PERMITIDO              R$ 60.000,00 AO ANO"},null,{"$f":"IF(TributosSimples!C15>LimiteSimples,\"FATURAMENTO EXCEDE O PERMITIDO              R$ 3.600.000,00 AO ANO\",IF(EVETADO=\"V\",\"Atividade Vetada\",ImpostoDetalhado!F16))","v":758.1},null,{"$f":"ImpostoDetalhado!H16","v":252},null,{"$f":"IF(ImpostoDetalhado!$F$26=ImpostoDetalhado!$F$27,ImpostoDetalhado!H23,IF(ImpostoDetalhado!$F$26>ImpostoDetalhado!$F$31,ImpostoDetalhado!H24,ImpostoDetalhado!H23))","v":""}]
[null,"CSLL - Contribuição Social ",null,null,null,null,{"$f":"ImpostoDetalhado!I16","v":226.8},null,{"$f":"IF(ImpostoDetalhado!$F$26=ImpostoDetalhado!$F$27,ImpostoDetalhado!I23,IF(ImpostoDetalhado!$F$26>ImpostoDetalhado!$F$31,ImpostoDetalhado!I24,ImpostoDetalhado!I23))","v":""}]
[null,"COFINS - Contribuição Financeira Social",null,null,null,null,{"$f":"ImpostoDetalhado!J16","v":630},null,{"$f":"ImpostoDetalhado!J23","v":1596}]
[null,"PIS - Programa de Integração Social",null,null,null,null,{"$f":"ImpostoDetalhado!K16","v":136.5},null,{"$f":"ImpostoDetalhado!K23","v":346.5}]
[null,"IPI - Imposto sobre Produtos Industrializados",null,null,null,null,{"$f":"IF(Eind=\"f\",0,IF(TributosPres!E40<0,0,TributosPres!E40))","v":0},null,{"$f":"G22","v":0}]
[null,"ICMS - Imposto de Circulação de Mercadorias e Serviços",null,null,null,null,{"$f":"IF(TributosPres!E30<0,0,TributosPres!E30)","v":2106},null,{"$f":"G23","v":2106}]
[null,"ISS - Imposto sobre Serviços",null,null,null,null,{"$f":"ImpostoDetalhado!L16","v":0},null,{"$f":"G24","v":0}]
[]
[null,"TOTAL DE IMPOSTOS",{"$f":"SUM(C18:C24)","v":0},null,{"$f":"SUM(E18:E24)","v":758.1},null,{"$f":"SUM(G18:G24)","v":3351.3},null,{"$f":"SUM(I18:I24)","v":4048.5}]
[null,"RELAÇÃO PERCENTUAL DE IMPOSTOS",{"$f":"C26/$C$15","v":0},null,{"$f":"E26/$C$15","v":3.6186157517899761E-2},null,{"$f":"G26/$C$15","v":0.15996658711217185},null,{"$f":"I26/$C$15","v":0.19324582338902149}]
[]
[null,"ENCARGOS"]
[null,"INSS",0,null,{"$f":"IF(OR(Eanexo4=\"V\",Eanexo5=\"V\"),(Folha+ProLabore)*Aliquotas!C204,0)","v":0},null,{"$f":"(Folha+ProLabore)*Aliquotas!C204","v":79614},null,{"$f":"(Folha+ProLabore)*Aliquotas!C204","v":79614}]
[null,"SESI, SESC OU SEST",0,null,0,null,{"$f":"Folha*Aliquotas!C205","v":5937.75},null,{"$f":"Folha*Aliquotas!C205","v":5937.75}]
[null,"SENAI,SENAC OU SENAT",0,null,0,null,{"$f":"Folha*Aliquotas!C206","v":3958.5},null,{"$f":"Folha*Aliquotas!C206","v":3958.5}]
[null,"SEBRAE",0,null,0,null,{"$f":"Folha*Aliquotas!C207","v":2375.1},null,{"$f":"Folha*Aliquotas!C207","v":2375.1}]
[null,"INCRA",0,null,0,null,{"$f":"Folha*Aliquotas!C208","v":791.7},null,{"$f":"Folha*Aliquotas!C208","v":791.7}]
[null,"FGTS",{"$f":"IF(EVETADO=\"V\",0,Folha*Aliquotas!A209)","v":0},null,{"$f":"IF(EVETADO=\"V\",0,Folha*Aliquotas!C209)","v":31668},null,{"$f":"Folha*Aliquotas!C209","v":31668},null,{"$f":"Folha*Aliquotas!C209","v":31668}]
[null,"Acidente de Trabalho",{"$f":"IF(OR(Eanexo4=\"V\",Eanexo5=\"V\"),(Folha+ProLabore)*Aliquotas!A210,0)","v":0},null,{"$f":"IF(OR(Eanexo4=\"V\",Eanexo5=\"V\"),Folha*Aliquotas!C210,0)","v":0},null,{"$f":"Folha*Aliquotas!C210","v":11875.5},null,{"$f":"Folha*Aliquotas!C210","v":11875.5}]
[null,"Salário Educação",0,null,0,null,{"$f":"Folha*Aliquotas!C211","v":9896.25},null,{"$f":"Folha*Aliquotas!C211","v":9896.25}]
[null,"TOTAL DE ENCARGOS",{"$f":"SUM(C30:C37)","v":0},null,{"$f":"SUM(E30:E37)","v":31668},null,{"$f":"SUM(G30:G37)","v":146116.79999999999},null,{"$f":"SUM(I30:I37)","v":146116.79999999999}]
[]
[null,"TOTAL GERAL DA TRIBUTAÇÃO",{"$f":"SUM(C18)","v":0},null,{"$f":"SUM(E26,E38)","v":32426.1},null,{"$f":"SUM(G26,G38)","v":149468.09999999998},null,{"$f":"SUM(I26,I38)","v":150165.29999999999}]
[]
[]
[null,"OPTAREI PELO REGIME:"]
[null,{"$f":"IF(ISNUMBER(C18),\"EI\",\"EI --- VETADO\")","v":"EI --- VETADO"}]
[null,{"$f":"IF(ISNUMBER(E18),\"SIMPLES\",\"SIMPLES --- VETADO\")","v":"SIMPLES"}]
[null,"LUCRO PRESUMIDO"]
[null,"LUCRO REAL"]

{"sheet":"OutrosCVs","index":29,"n_rows":61,"n_cols":5,"rows_kept":61,"cut":false,"hidden":false,"merged":[[12,1,12,4]]}
[]
[]
[]
[]
[]
[]
[]
[]
[]
[]
[]
[]
[null,"COMISSÕES E OUTROS CUSTOS VARIÁVEIS"]
[]
[]
[null,"COMISSÕES"]
[]
[null,"Descrição das Comissões","% do Faturamento","% da Comissão","Valor"]
[null,null,null,null,{"$f":"C19*Faturamento*D19","v":0}]
[null,"VENDA",0.5,0.05,523.75]
[null,null,null,null,0]
[null,null,null,null,0]
[null,null,null,null,0]
[null,null,null,null,0]
[null,null,null,null,0]
[null,null,null,null,0]
[null,null,null,null,0]
[null,null,null,null,0]
[null,null,null,null,{"$f":"SUM(E19:E28)","v":523.75}]
[]
[null,"CARTÃO DE CRÉDITO E DÉBITO"]
[]
[null,"Descrição","% do Faturamento","% da Comissão","Valor"]
[null,null,null,null,{"$f":"C34*Faturamento*D34","v":0}]
[null,null,null,null,0]
[null,null,null,null,0]
[null,null,null,null,0]
[null,null,null,null,0]
[null,null,null,null,0]
[null,null,null,null,0]
[null,null,null,null,0]
[null,null,null,null,{"$f":"SUM(E34:E41)","v":0}]
[]
[null,"PREVISÃO DE INADIMPLÊNCIA"]
[null,1.4999999999999999E-2]
[]
[]
[null,"OUTROS CUSTOS VARIÁVEIS"]
[]
[null,"Descrição","Valor"]
[]
[]
[]
[]
[]
[]
[]
[]
[]
[]
[null,null,{"$f":"SUM(C51:C60)","v":0}]

{"sheet":"Financiamento","index":30,"n_rows":122,"n_cols":6,"rows_kept":122,"cut":false,"hidden":false,"merged":[[12,1,12,5],[89,1,89,3],[100,1,100,3],[111,1,111,3],[14,1,14,4]]}
[]
[]
[]
[]
[]
[]
[]
[]
[]
[]
[]
[]
[null,"SIMULADOR DE FINANCIAMENTO"]
[]
[null,"FINANCIAMENTO 1 (PERMITE VISUALIZAR AMORTIZAÇÃO)"]
[]
[null,"Valor a Financiar",100000]
[null,"Carência",6]
[null,"Prazo (Incluso a carência)",36]
[null,"Juros",1.15E-2]
[null,"IOF",{"$f":"D21*C17","v":1500},1.4999999999999999E-2]
[null,"Tarifas e Taxas",30]
[]
[null,"Parcela",{"$f":"IF(C17=\"\",0,IF(C18=0,PMT(C20,C19,-(C17+C21+C22)),PMT(C20,C19-C18,-C17-C21-C22)))","v":4020.8651952026971}]
[]
[]
[null,"Parcela","Juros","Amortização","Prestação","Saldo Devedor"]
[null,1,{"$f":"C17*C20","v":1150},{"$f":"IF(AND(B28<=$C$19,B28>$C$18),$C$24-C28,0)","v":0},{"$f":"C28+D28","v":1150},{"$f":"IF(((C17+C21+C22)-D28)<0,0,(C17+C21+C22)-D28)","v":101530}]
[null,{"$f":"B28+1","v":2},{"$f":"F28*$C$20","v":1167.595},{"$f":"IF(AND(B29<=$C$19,B29>$C$18),$C$24-C29,0)","v":0},{"$f":"C29+D29","v":1167.595},{"$f":"IF((F28-D29)<0,0,(F28-D29))","v":101530}]
[null,{"$f":"B29+1","v":3},1167.595,0,1167.595,{"$f":"IF((F29-D30)<0,0,(F29-D30))","v":101530}]
[null,4,1167.595,0,1167.595,101530]
[null,5,1167.595,0,1167.595,101530]
[null,6,1167.595,0,1167.595,101530]
[null,7,1167.595,2853.2701952026973,4020.8651952026976,98676.729804797302]
[null,8,1134.782392755169,2886.0828024475281,4020.8651952026971,95790.647002349768]
[null,9,1101.5924405270223,2919.2727546756751,4020.8651952026976,92871.374247674088]
[null,10,1068.0208038482519,2952.8443913544452,4020.8651952026971,89918.529856319641]
[null,11,1034.0630933476759,2986.8021018550212,4020.8651952026971,86931.72775446462]
[null,12,999.71486917634309,3021.1503260263539,4020.8651952026971,83910.577428438264]
[null,13,964.97164042704003,3055.8935547756573,4020.8651952026976,80854.683873662609]
[null,14,929.82886454712002,3091.0363306555773,4020.8651952026976,77763.647543007028]
[null,15,894.28194674458075,3126.5832484581165,4020.8651952026971,74637.064294548909]
[null,16,858.3262393873124,3162.5389558153847,4020.8651952026971,71474.525338733525]
[null,17,821.95704139543557,3198.9081538072614,4020.8651952026971,68275.617184926261]
[null,18,785.16959762665203,3235.6955975760452,4020.8651952026971,65039.921587350218]
[null,19,747.95909825452748,3272.9060969481698,4020.8651952026971,61767.015490402046]
[null,20,710.32067813962351,3310.5445170630737,4020.8651952026971,58456.470973338975]
[null,21,672.24941619339825,3348.6157790092989,4020.8651952026971,55107.855194329677]
[null,22,633.7403347347913,3387.1248604679058,4020.8651952026971,51720.730333861771]
[null,23,594.78839883941032,3426.076796363287,4020.8651952026976,48294.653537498481]
[null,24,555.38851568123255,3465.4766795214646,4020.8651952026971,44829.176857977014]
[null,25,515.5355338667357,3505.3296613359616,4020.8651952026976,41323.847196641051]
[null,26,475.22424276137207,3545.6409524413252,4020.8651952026971,37778.206244199726]
[null,27,434.44937180829686,3586.4158233944004,4020.8651952026971,34191.790420805322]
[null,28,393.20558983926122,3627.6596053634357,4020.8651952026971,30564.130815441888]
[null,29,351.48750437758173,3669.3776908251152,4020.8651952026971,26894.753124616771]
[null,30,309.28966093309288,3711.5755342696043,4020.8651952026971,23183.177590347168]
[null,31,266.60654228899244,3754.2586529137047,4020.8651952026971,19428.918937433464]
[null,32,223.43256778048482,3797.4326274222121,4020.8651952026971,15631.486310011252]
[null,33,179.76209256512939,3841.1031026375676,4020.8651952026971,11790.383207373685]
[null,34,{"$f":"F60*$C$20","v":135.58940688479737},3885.2757883178997,4020.8651952026971,7905.1074190557847]
[null,35,90.908735319141527,3929.9564598835555,4020.8651952026971,3975.1509591722292]
[null,36,45.714236030480635,3975.1509591722165,4020.8651952026971,1.2732925824820995E-11]
[null,37,1.4642864698544145E-13,0,1.4642864698544145E-13,1.2732925824820995E-11]
[null,38,1.4642864698544145E-13,0,1.4642864698544145E-13,1.2732925824820995E-11]
[null,39,1.4642864698544145E-13,0,1.4642864698544145E-13,1.2732925824820995E-11]
[null,40,1.4642864698544145E-13,0,1.4642864698544145E-13,1.2732925824820995E-11]
[null,41,1.4642864698544145E-13,0,1.4642864698544145E-13,1.2732925824820995E-11]
[null,42,1.4642864698544145E-13,0,1.4642864698544145E-13,1.2732925824820995E-11]
[null,43,1.4642864698544145E-13,0,1.4642864698544145E-13,1.2732925824820995E-11]
[null,44,1.4642864698544145E-13,0,1.4642864698544145E-13,1.2732925824820995E-11]
[null,45,1.4642864698544145E-13,0,1.4642864698544145E-13,1.2732925824820995E-11]
[null,46,1.4642864698544145E-13,0,1.4642864698544145E-13,1.2732925824820995E-11]
[null,47,1.4642864698544145E-13,0,1.4642864698544145E-13,1.2732925824820995E-11]
[null,48,1.4642864698544145E-13,0,1.4642864698544145E-13,1.2732925824820995E-11]
[null,49,1.4642864698544145E-13,0,1.4642864698544145E-13,1.2732925824820995E-11]
[null,50,1.4642864698544145E-13,0,1.4642864698544145E-13,1.2732925824820995E-11]
[null,51,1.4642864698544145E-13,0,1.4642864698544145E-13,1.2732925824820995E-11]
[null,52,1.4642864698544145E-13,0,1.4642864698544145E-13,1.2732925824820995E-11]
[null,53,1.4642864698544145E-13,0,1.4642864698544145E-13,1.2732925824820995E-11]
[null,54,1.4642864698544145E-13,0,1.4642864698544145E-13,1.2732925824820995E-11]
[null,55,1.4642864698544145E-13,0,1.4642864698544145E-13,1.2732925824820995E-11]
[null,56,1.4642864698544145E-13,0,1.4642864698544145E-13,1.2732925824820995E-11]
[null,57,1.4642864698544145E-13,0,1.4642864698544145E-13,1.2732925824820995E-11]
[null,58,1.4642864698544145E-13,0,1.4642864698544145E-13,1.2732925824820995E-11]
[null,59,1.4642864698544145E-13,0,1.4642864698544145E-13,1.2732925824820995E-11]
[null,60,1.4642864698544145E-13,0,1.4642864698544145E-13,1.2732925824820995E-11]
[]
[]
[null,"FINANCIAMENTO 2"]
[]
[null,"Valor a Financiar",50000]
[null,"Prazo",12]
[null,"Juros",5.0000000000000001E-3]
[null,"Tarifas e Taxas",30]
[]
[null,"Parcela",{"$f":"IF(C92=\"\",0,PMT(C94,C93,-C92-C95))","v":4305.9034782452445}]
[]
[]
[]
[null,"FINANCIAMENTO 3"]
[]
[null,"Valor a Financiar"]
[null,"Prazo"]
[null,"Juros",7.9000000000000008E-3]
[null,"Tarifas e Taxas"]
[]
[null,"Parcela",{"$f":"IF(C103=\"\",0,PMT(C105,C104,-C103-C106))","v":0}]
[]
[]
[]
[null,"OUTROS FINANCAIMENTOS"]
[]
[null,"Valor Financiado"]
[]
[null,"Parcela"]
[]
[]
[]
[null,"Valor Financiado Total",{"$f":"C17+C92+C103+C114","v":150000}]
[]
[null,"Parcela Total",{"$f":"SUM(C24,C97,C108,C116)","v":8326.7686734479412}]

{"sheet":"DRE","index":31,"n_rows":62,"n_cols":6,"rows_kept":62,"cut":false,"hidden":false,"merged":[[12,1,12,5],[21,1,21,3],[17,1,17,3],[18,1,18,3],[14,1,14,3],[16,1,16,3],[20,1,20,3],[22,1,22,2],[23,1,23,2],[30,1,30,3],[28,1,28,3],[24,1,24,2],[27,1,27,3],[26,1,26,3],[52,1,52,3],[51,1,51,3],[50,1,50,3],[48,1,48,3],[32,1,32,3],[37,1,37,3],[38,1,38,3],[35,1,35,3],[36,1,36,3],[33,1,33,3],[34,1,34,3],[47,1,47,3],[41,1,41,3],[39,1,39,3],[40,1,40,3],[49,1,49,3],[42,1,42,3],[43,1,43,3],[44,1,44,3],[45,1,45,3],[46,1,46,3],[61,1,61,3],[60,1,60,3],[54,1,54,3],[55,1,55,3],[56,1,56,3],[57,1,57,3],[58,1,58,3],[59,1,59,3]]}
[]
[]
[]
[]
[]
[]
[]
[]
[]
[]
[]
[]
[null,"ESTRUTURA GERENCIAL DE RESULTADOS"]
[]
[null,"DISCRIMINAÇÃO",null,null,"VALOR R$","%"]
[]
[null," 1. Receita Total",null,null,{"$f":"SUM(E18:E19)","v":20950},{"$f":"SUM(F18:F19)","v":1}]
[null,"Vendas (à vista)",null,null,{"$f":"Faturamento*(PrazosEstoques!$C$17/100)","v":10475},{"$f":"IF(E18<>\"\",E18/$E$17,\"\")","v":0.5}]
[null,"Vendas (a prazo)",null,null,{"$f":"Faturamento*(PrazosEstoques!$C$18/100)","v":10475},{"$f":"IF(E19<>\"\",E19/$E$17,\"\")","v":0.5}]
[]
[null," 2. Custos Variáveis Totais",null,null,{"$f":"SUM(E22:E29)","v":17386.5},{"$f":"E21/E17","v":0.82990453460620528}]
[null,"Previsão de Custos (Custo da Mercadoria + Custo do Serviço)",null,null,{"$f":"CMV+CDS","v":12500},{"$f":"IF(E22<>\"\",E22/$E$17,\"\")","v":0.59665871121718372}]
[null,"Impostos Federais (PIS, COFINS, IPI ou SUPER SIMPLES)",null,null,{"$f":"IF(D23<>\"\",D23*$E$17,IF(EEI=\"V\",Tributos!$C$18,IF(Esimples=\"V\",Tributos!$E$26,IF(Epresumido=\"V\",SUM(Tributos!$G$20:$G$22),SUM(Tributos!$I$20:$I$22)))))","v":1942.5},9.2720763723150357E-2]
[null,"Impostos Estaduais (ICMS)",null,null,{"$f":"IF(D24<>\"\",D24*$E$17,(IF(AND(Esimples=\"F\",EEI=\"F\"),Tributos!G23,\"\")))","v":2106},0.10052505966587112]
[null,"Imposto Municipal (ISS)",null,null,{"$f":"IF(D25<>\"\",D25*$E$17,IF(AND(EEI=\"F\",Esimples=\"F\"),Tributos!G24,\"\"))","v":0},0]
[null,"Previsão de Inadimplência",null,{"$f":"OutrosCVs!B45","v":1.4999999999999999E-2},{"$f":"D26*E17","v":314.25},1.4999999999999999E-2]
[null,"Comissões",null,null,{"$f":"SUM(OutrosCVs!E19:E28)","v":523.75},2.5000000000000001E-2]
[null,"Cartões de Crédito e Débito",null,null,{"$f":"SUM(OutrosCVs!E34:E41)","v":0},0]
[null,"Outros Custos Variáveis",null,null,{"$f":"SUM(OutrosCVs!C51:C60)","v":0},0]
[]
[null," 3. Margem de Contribuição",null,null,{"$f":"E17-E21+E58","v":3563.5},{"$f":"E31/E17","v":0.17009546539379475}]
[]
[null," 4. Custos Fixos Totais",null,null,{"$f":"SUM(E34:E51)","v":660971.30666666676},{"$f":"E33/$E$17","v":31.549943038981706}]
[null,{"$f":"CustoFixo!C16","v":"Mão-de-Obra + Encargos"},null,null,{"$f":"CustoFixo!D16","v":658456.89000000013},{"$f":"IF(E34<>\"\",E34/$E$17,\"\")","v":31.429923150358}]
[null,{"$f":"CustoFixo!C17","v":"Retirada dos Sócios (Pró-Labore)"},null,null,{"$f":"CustoFixo!D17","v":2220},0.10596658711217184]
[null,{"$f":"CustoFixo!C18","v":"Água"},null,null,{"$f":"CustoFixo!D18","v":100},4.7732696897374704E-3]
[null,{"$f":"CustoFixo!C19","v":"Luz"},null,null,{"$f":"CustoFixo!D19","v":56},2.6730310262529835E-3]
[null,{"$f":"CustoFixo!C20","v":"Telefone"},null,null,{"$f":"CustoFixo!D20","v":35},1.6706443914081145E-3]
[null,{"$f":"CustoFixo!C21","v":"Contador"},null,null,{"$f":"CustoFixo!D21","v":98},4.6778042959427207E-3]
[null,{"$f":"CustoFixo!C22","v":"Despesas com Veículos"},null,null,{"$f":"CustoFixo!D22","v":0},0]
[null,{"$f":"CustoFixo!C23","v":"Material de Expediente e Consumo"},null,null,{"$f":"CustoFixo!D23","v":0},0]
[null,{"$f":"CustoFixo!C24","v":"Aluguel"},null,null,{"$f":"CustoFixo!D24","v":0},0]
[null,{"$f":"CustoFixo!C25","v":"Seguros"},null,null,{"$f":"CustoFixo!D25","v":0},0]
[null,{"$f":"CustoFixo!C26","v":"Propaganda e Publicidade"},null,null,{"$f":"CustoFixo!D26","v":0},0]
[null,{"$f":"CustoFixo!C27","v":"Depreciação Mensal"},null,null,{"$f":"CustoFixo!D27","v":5.416666666666667},2.5855210819411296E-4]
[null,{"$f":"CustoFixo!C28","v":"Manutenção"},null,null,{"$f":"CustoFixo!D28","v":0},0]
[null,{"$f":"CustoFixo!C29","v":"Condomínio"},null,null,{"$f":"CustoFixo!D29","v":0},0]
[null,{"$f":"CustoFixo!C30","v":"Despesas de Viagem"},null,null,{"$f":"CustoFixo!D30","v":0},0]
[null,{"$f":"CustoFixo!C31","v":"Serviços de Terceiros"},null,null,{"$f":"CustoFixo!D31","v":0},0]
[null,{"$f":"CustoFixo!C32","v":"Ônibus, Táxis e Selos"},null,null,{"$f":"CustoFixo!D32","v":0},0]
[null,"Outros Custos Fixos",null,null,{"$f":"CustoFixo!D33","v":0},0]
[]
[null," 5. Resultado Operacional",null,null,{"$f":"E31-E33","v":-657407.80666666676},{"$f":"E53/$E$17","v":-31.379847573587913}]
[]
[null," 6. Investimentos",null,null,{"$f":"E56","v":8326.7686734479412},{"$f":"E55/E17","v":0.39745912522424542}]
[null,"Financiamento",null,null,{"$f":"IF(Financ.Parcela>0,Financ.Parcela,0)","v":8326.7686734479412},{"$f":"IF(E56<>\"\",E56/$E$17,\"\")","v":0.39745912522424542}]
[null,null,null,null,null,{"$f":"IF(E57<>\"\",E57/$E$17,\"\")","v":""}]
[null,"7. Imposto Renda Pessoa Jurídica e Contribuição Social (Presumido/Real)",null,null,{"$f":"SUM(E59:E60)","v":0},{"$f":"IF(E58<>\"\",E58/$E$17,\"\")","v":0}]
[null,"Imposto de Renda Pessoa Jurídica - IRPJ",null,null,{"$f":"IF(OR(EEI=\"V\",Esimples=\"v\"),0,IF(Epresumido=\"v\",SUM(Tributos!$G$18),SUM(Tributos!$I$18)))","v":0},{"$f":"IF(E59<>\"\",E59/$E$17,\"\")","v":0}]
[null,"Contribuição Social - CS",null,null,{"$f":"IF(OR(EEI=\"V\",Esimples=\"v\"),0,IF(Epresumido=\"v\",SUM(Tributos!$G$19),SUM(Tributos!$I$19)))","v":0},{"$f":"IF(E60<>\"\",E60/$E$17,\"\")","v":0}]
[]
[null,"8. Resultado Líquido Financeiro",null,null,{"$f":"E53-E55-E58","v":-665734.57534011465},{"$f":"E62/$E$17","v":-31.777306698812154}]

{"sheet":"Sazonalidade","index":32,"n_rows":38,"n_cols":14,"rows_kept":38,"cut":false,"hidden":false,"merged":[[37,10,37,12],[35,10,35,11],[12,1,12,13],[33,10,33,12],[36,10,36,12],[34,10,34,11]]}
[]
[]
[]
[]
[]
[]
[]
[]
[]
[]
[]
[]
[null,"SAZONALIDADE - PRIMEIRO ANO"]
[]
[]
[null,null,{"$f":"#REF!","v":{"$error":"#REF!"}},{"$f":"C16+31","v":{"$error":"#REF!"}},{"$f":"D16+31","v":{"$error":"#REF!"}},{"$error":"#REF!"},{"$error":"#REF!"},{"$error":"#REF!"},{"$error":"#REF!"},{"$error":"#REF!"},{"$error":"#REF!"},{"$error":"#REF!"},{"$error":"#REF!"},{"$error":"#REF!"}]
[null," 1. Receita Total",{"$f":"IF(C30=\"NA\",0,DRE!$E$17*C31*C30)","v":10475},{"$f":"IF(D30=\"NA\",0,DRE!$E$17*D31*D30)","v":12570},{"$f":"IF(E30=\"NA\",0,DRE!$E$17*E31*E30)","v":14664.999999999998},{"$f":"IF(F30=\"NA\",0,DRE!$E$17*F31*F30)","v":16760},{"$f":"IF(G30=\"NA\",0,DRE!$E$17*G31*G30)","v":18855},{"$f":"IF(H30=\"NA\",0,DRE!$E$17*H31*H30)","v":20950},{"$f":"IF(I30=\"NA\",0,DRE!$E$17*I31*I30)","v":14664.999999999998},{"$f":"IF(J30=\"NA\",0,DRE!$E$17*J31*J30)","v":16760},{"$f":"IF(K30=\"NA\",0,DRE!$E$17*K31*K30)","v":18855},{"$f":"IF(L30=\"NA\",0,DRE!$E$17*L31*L30)","v":20950},{"$f":"IF(M30=\"NA\",0,DRE!$E$17*M31*M30)","v":23045.000000000004},{"$f":"IF(N30=\"NA\",0,DRE!$E$17*N31*N30)","v":25140}]
[null," 2. Custos Variáveis Totais",{"$f":"C17*DRE!$F$21","v":8693.25},{"$f":"D17*DRE!$F$21","v":10431.9},{"$f":"E17*DRE!$F$21","v":12170.55},{"$f":"F17*DRE!$F$21","v":13909.2},{"$f":"G17*DRE!$F$21","v":15647.85},{"$f":"H17*DRE!$F$21","v":17386.5},{"$f":"I17*DRE!$F$21","v":12170.55},{"$f":"J17*DRE!$F$21","v":13909.2},{"$f":"K17*DRE!$F$21","v":15647.85},{"$f":"L17*DRE!$F$21","v":17386.5},{"$f":"M17*DRE!$F$21","v":19125.150000000005},{"$f":"N17*DRE!$F$21","v":20863.8}]
[null," 3. Margem de Contribuição",{"$f":"C17-C18","v":1781.75},{"$f":"D17-D18","v":2138.1000000000004},2494.4499999999989,2850.7999999999993,3207.1499999999996,3563.5,2494.4499999999989,2850.7999999999993,3207.1499999999996,3563.5,3919.8499999999985,4276.2000000000007]
[null," 4. Custos Fixos",{"$f":"IF(C30=\"NA\",0,(DRE!$E$33*(1+C32)))","v":660971.30666666676},{"$f":"IF(D30=\"NA\",0,(DRE!$E$33*(1+D32)))","v":660971.30666666676},{"$f":"IF(E30=\"NA\",0,(DRE!$E$33*(1+E32)))","v":660971.30666666676},{"$f":"IF(F30=\"NA\",0,(DRE!$E$33*(1+F32)))","v":660971.30666666676},{"$f":"IF(G30=\"NA\",0,(DRE!$E$33*(1+G32)))","v":660971.30666666676},{"$f":"IF(H30=\"NA\",0,(DRE!$E$33*(1+H32)))","v":660971.30666666676},{"$f":"IF(I30=\"NA\",0,(DRE!$E$33*(1+I32)))","v":660971.30666666676},{"$f":"IF(J30=\"NA\",0,(DRE!$E$33*(1+J32)))","v":660971.30666666676},{"$f":"IF(K30=\"NA\",0,(DRE!$E$33*(1+K32)))","v":660971.30666666676},{"$f":"IF(L30=\"NA\",0,(DRE!$E$33*(1+L32)))","v":660971.30666666676},{"$f":"IF(M30=\"NA\",0,(DRE!$E$33*(1+M32)))","v":660971.30666666676},{"$f":"IF(N30=\"NA\",0,(DRE!$E$33*(1+N32)))","v":660971.30666666676}]
[null," 5. Resultado Operacional",{"$f":"C19-C20","v":-659189.55666666676},{"$f":"D19-D20","v":-658833.20666666678},-658476.8566666668,-658120.50666666671,-657764.15666666673,-657407.80666666676,-658476.8566666668,-658120.50666666671,-657764.15666666673,-657407.80666666676,-657051.45666666678,-656695.1066666668]
[null," 6. Investimentos",{"$f":"HLOOKUP(Plan1!B3,Financ,6,0)","v":5455.9034782452445},{"$f":"HLOOKUP(Plan1!C3,Financ,6,0)","v":5473.4984782452448},{"$f":"HLOOKUP(Plan1!D3,Financ,6,0)","v":5473.4984782452448},{"$f":"HLOOKUP(Plan1!E3,Financ,6,0)","v":5473.4984782452448},{"$f":"HLOOKUP(Plan1!F3,Financ,6,0)","v":5473.4984782452448},{"$f":"HLOOKUP(Plan1!G3,Financ,6,0)","v":5473.4984782452448},{"$f":"HLOOKUP(Plan1!H3,Financ,6,0)","v":8326.768673447943},{"$f":"HLOOKUP(Plan1!I3,Financ,6,0)","v":8326.7686734479412},{"$f":"HLOOKUP(Plan1!J3,Financ,6,0)","v":8326.768673447943},{"$f":"HLOOKUP(Plan1!K3,Financ,6,0)","v":8326.7686734479412},{"$f":"HLOOKUP(Plan1!L3,Financ,6,0)","v":8326.7686734479412},{"$f":"HLOOKUP(Plan1!M3,Financ,6,0)","v":8326.7686734479412}]
[null," 7. Outros Investimentos"]
[null," 8. Resultado Líquido Financeiro",{"$f":"C21-C22-C23","v":-664645.46014491201},{"$f":"D21-D22-D23","v":-664306.705144912},-663950.35514491203,-663594.00514491193,-663237.65514491196,-662881.30514491198,-666803.6253401147,-666447.2753401146,-666090.92534011463,-665734.57534011465,-665378.22534011467,-665021.8753401147]
[null,"Aporte de Capital",0]
[null,"Acumulado no Ano",{"$f":"C24+C25","v":-664645.46014491201},{"$f":"C26+D24+D25","v":-1328952.1652898239},{"$f":"D26+E24+E25","v":-1992902.5204347358},-2656496.5255796476,-3319734.1807245594,-3982615.4858694714,-4649419.1112095863,-5315866.386549701,-5981957.3118898161,-6647691.8872299306,-7313070.1125700455,-7978091.9879101599]
[null,"Lucratividade Mensal",{"$f":"C24/C17","v":-63.450640586626442},{"$f":"D24/D17","v":-52.84858433929292},-45.274487224337683,-39.593914388121235,-35.175691071064016,-31.641112417418231,-45.469050483471854,-39.764157239863643,-35.327018050390592,-31.777306698812154,-28.872997411157066,-26.452739671444498]
[null,"Rentabilidade Mensal",{"$f":"C24/InvestimentoTotal","v":-61.792995550847159},-61.761501036157682,-61.728370690304203,-61.695240344450717,-61.662109998597245,-61.628979652743766,-61.993643114551382,-61.960512768697896,-61.927382422844424,-61.894252076990952,-61.861121731137473,-61.827991385284001]
[]
[null,"Estagio de Crescimento da Atividade",1,1,1,1,1,1,1,1,1,1,1,1]
[null,"Sazonalidade",0.5,0.6,0.7,0.8,0.9,1,0.7,0.8,0.9,1,1.1000000000000001,1.2]
[null,"Variação do Custo Fixo",0,{"$f":"$C$32","v":0},{"$f":"$C$32","v":0},0,0,0,0,0,0,0,0,0]
[]
[null,null,null,null,null,null,null,null,null,null,"Necessidade de Capital de Giro"]
[null,null,null,null,null,null,null,null,null,null,"Inicial",null,{"$f":"Indicadores!C17","v":10056}]
[null,null,null,null,null,null,null,null,null,null,"Primeiro Ano",null,{"$f":"IF(N26>0,\"0\",N26*-1)","v":7978091.9879101599}]
[null,null,null,null,null,null,null,null,null,null,"Lucratividade"]
[null,null,null,null,null,null,null,null,null,null,{"$f":"SUM(C24:N24)/SUM(C17:N17)","v":-37.334886929244043}]

{"sheet":"Sazonalidade2","index":33,"n_rows":38,"n_cols":14,"rows_kept":38,"cut":false,"hidden":false,"merged":[[37,10,37,12],[36,10,36,12],[12,1,12,13],[33,10,33,12],[34,10,34,11],[35,10,35,11]]}
[]
[]
[]
[]
[]
[]
[]
[]
[]
[]
[]
[]
[null,"SAZONALIDADE - SEGUNDO ANO"]
[]
[]
[null,null,{"$f":"Sazonalidade!N16+30","v":{"$error":"#REF!"}},{"$f":"C16+30","v":{"$error":"#REF!"}},{"$f":"D16+30","v":{"$error":"#REF!"}},{"$error":"#REF!"},{"$error":"#REF!"},{"$error":"#REF!"},{"$error":"#REF!"},{"$error":"#REF!"},{"$error":"#REF!"},{"$error":"#REF!"},{"$error":"#REF!"},{"$error":"#REF!"}]
[null," 1. Receita Total",{"$f":"DRE!$E$17*C31","v":10475},{"$f":"DRE!$E$17*D31","v":12570},{"$f":"DRE!$E$17*E31","v":14664.999999999998},{"$f":"DRE!$E$17*F31","v":16760},{"$f":"DRE!$E$17*G31","v":18855},{"$f":"DRE!$E$17*H31","v":20950},{"$f":"DRE!$E$17*I31","v":14664.999999999998},{"$f":"DRE!$E$17*J31","v":16760},{"$f":"DRE!$E$17*K31","v":18855},{"$f":"DRE!$E$17*L31","v":20950},{"$f":"DRE!$E$17*M31","v":23045.000000000004},{"$f":"DRE!$E$17*N31","v":25140}]
[null," 2. Custos Variáveis Totais",{"$f":"C17*DRE!$F$21","v":8693.25},{"$f":"D17*DRE!$F$21","v":10431.9},{"$f":"E17*DRE!$F$21","v":12170.55},{"$f":"F17*DRE!$F$21","v":13909.2},{"$f":"G17*DRE!$F$21","v":15647.85},{"$f":"H17*DRE!$F$21","v":17386.5},{"$f":"I17*DRE!$F$21","v":12170.55},{"$f":"J17*DRE!$F$21","v":13909.2},{"$f":"K17*DRE!$F$21","v":15647.85},{"$f":"L17*DRE!$F$21","v":17386.5},{"$f":"M17*DRE!$F$21","v":19125.150000000005},{"$f":"N17*DRE!$F$21","v":20863.8}]
[null," 3. Margem de Contribuição",{"$f":"C17-C18","v":1781.75},{"$f":"D17-D18","v":2138.1000000000004},2494.4499999999989,2850.7999999999993,3207.1499999999996,3563.5,2494.4499999999989,2850.7999999999993,3207.1499999999996,3563.5,3919.8499999999985,4276.2000000000007]
[null," 4. Custos Fixos Totais",{"$f":"DRE!$E$33*(1+C32)","v":660971.30666666676},{"$f":"DRE!$E$33*(1+D32)","v":660971.30666666676},{"$f":"DRE!$E$33*(1+E32)","v":660971.30666666676},{"$f":"DRE!$E$33*(1+F32)","v":660971.30666666676},{"$f":"DRE!$E$33*(1+G32)","v":660971.30666666676},{"$f":"DRE!$E$33*(1+H32)","v":660971.30666666676},{"$f":"DRE!$E$33*(1+I32)","v":660971.30666666676},{"$f":"DRE!$E$33*(1+J32)","v":660971.30666666676},{"$f":"DRE!$E$33*(1+K32)","v":660971.30666666676},{"$f":"DRE!$E$33*(1+L32)","v":660971.30666666676},{"$f":"DRE!$E$33*(1+M32)","v":660971.30666666676},{"$f":"DRE!$E$33*(1+N32)","v":660971.30666666676}]
[null," 5. Resultado Operacional",{"$f":"C19-C20","v":-659189.55666666676},{"$f":"D19-D20","v":-658833.20666666678},-658476.8566666668,-658120.50666666671,-657764.15666666673,-657407.80666666676,-658476.8566666668,-658120.50666666671,-657764.15666666673,-657407.80666666676,-657051.45666666678,-656695.1066666668]
[null," 6. Investimentos",{"$f":"HLOOKUP(Plan1!N3,Financ,6,0)","v":4020.8651952026976},{"$f":"HLOOKUP(Plan1!O3,Financ,6,0)","v":4020.8651952026976},{"$f":"HLOOKUP(Plan1!P3,Financ,6,0)","v":4020.8651952026971},{"$f":"HLOOKUP(Plan1!Q3,Financ,6,0)","v":4020.8651952026971},{"$f":"HLOOKUP(Plan1!R3,Financ,6,0)","v":4020.8651952026971},{"$f":"HLOOKUP(Plan1!S3,Financ,6,0)","v":4020.8651952026971},{"$f":"HLOOKUP(Plan1!T3,Financ,6,0)","v":4020.8651952026971},{"$f":"HLOOKUP(Plan1!U3,Financ,6,0)","v":4020.8651952026971},{"$f":"HLOOKUP(Plan1!V3,Financ,6,0)","v":4020.8651952026971},{"$f":"HLOOKUP(Plan1!W3,Financ,6,0)","v":4020.8651952026971},{"$f":"HLOOKUP(Plan1!X3,Financ,6,0)","v":4020.8651952026976},{"$f":"HLOOKUP(Plan1!Y3,Financ,6,0)","v":4020.8651952026971}]
[null," 7. Outros Investimentos"]
[null,{"$f":"Sazonalidade!B24","v":" 8. Resultado Líquido Financeiro"},{"$f":"C21-C22-C23","v":-663210.4218618694},{"$f":"D21-D22-D23","v":-662854.07186186942},-662497.72186186945,-662141.37186186935,-661785.02186186938,-661428.6718618694,-662497.72186186945,-662141.37186186935,-661785.02186186938,-661428.6718618694,-661072.32186186942,-660715.97186186945]
[null,"Aporte de Capital"]
[null,"Acumulado no Ano",{"$f":"C24+C25","v":-663210.4218618694},{"$f":"C26+D24+D25","v":-1326064.4937237389},{"$f":"D26+E24+E25","v":-1988562.2155856085},{"$f":"E26+F24+F25","v":-2650703.587447478},-3312488.6093093473,-3973917.2811712166,-4636415.0030330857,-5298556.3748949552,-5960341.3967568241,-6621770.0686186934,-7282842.390480563,-7943558.3623424321]
[null,"Acumulado desde o início da atividade",{"$f":"Sazonalidade!N26+C24+C25","v":-8641302.4097720291},{"$f":"C27+D24+D25","v":-9304156.4816338979},{"$f":"D27+E24+E25","v":-9966654.203495767},-10628795.575357636,-11290580.597219506,-11952009.269081376,-12614506.990943246,-13276648.362805115,-13938433.384666985,-14599862.056528855,-15260934.378390724,-15921650.350252593]
[null,"Lucratividade Mensal",{"$f":"C24/C17","v":-63.313644091825239},{"$f":"D24/D17","v":-52.733020832288737},-45.175432789762667,-39.507241757868101,-35.098648733061225,-31.571774313215723,-45.175432789762667,-39.507241757868101,-35.098648733061225,-31.571774313215723,-28.686149787887583,-26.281462683447472]
[null,"Rentabilidade Mensal",{"$f":"C24/InvestimentoTotal","v":-61.659578083104257},-61.626447737250786,-61.593317391397306,-61.56018704554382,-61.527056699690348,-61.493926353836869,-61.593317391397306,-61.56018704554382,-61.527056699690348,-61.493926353836869,-61.460796007983397,-61.427665662129925]
[]
[null,"Sazonalidade",{"$f":"Sazonalidade!C31","v":0.5},{"$f":"Sazonalidade!D31","v":0.6},{"$f":"Sazonalidade!E31","v":0.7},{"$f":"Sazonalidade!F31","v":0.8},{"$f":"Sazonalidade!G31","v":0.9},{"$f":"Sazonalidade!H31","v":1},{"$f":"Sazonalidade!I31","v":0.7},{"$f":"Sazonalidade!J31","v":0.8},{"$f":"Sazonalidade!K31","v":0.9},{"$f":"Sazonalidade!L31","v":1},{"$f":"Sazonalidade!M31","v":1.1000000000000001},{"$f":"Sazonalidade!N31","v":1.2}]
[null,"Variação do Custo Fixo",0,{"$f":"$C$32","v":0},{"$f":"$C$32","v":0},0,0,0,0,0,0,0,0,0]
[]
[null,null,null,null,null,null,null,null,null,null,"Necessidade de Capital de Giro"]
[null,null,null,null,null,null,null,null,null,null,"Inicial",null,{"$f":"Indicadores!C17","v":10056}]
[null,null,null,null,null,null,null,null,null,null,"Segundo Ano",null,{"$f":"IF(N26>0,0,N26*-1)","v":7943558.3623424321}]
[null,null,null,null,null,null,null,null,null,null,"Lucratividade"]
[null,null,null,null,null,null,null,null,null,null,{"$f":"SUM(C24:N24)/SUM(C17:N17)","v":-37.173280744735045}]

{"sheet":"Sazonalidade3","index":34,"n_rows":39,"n_cols":14,"rows_kept":39,"cut":false,"hidden":false,"merged":[[38,10,38,12],[37,10,37,12],[12,1,12,13],[34,10,34,12],[35,10,35,11],[36,10,36,11]]}
[]
[]
[]
[]
[]
[]
[]
[]
[]
[]
[]
[]
[null,"SAZONALIDADE - TERCEIRO ANO"]
[]
[]
[null,null,{"$f":"Sazonalidade2!N16+31","v":{"$error":"#REF!"}},{"$f":"C16+31","v":{"$error":"#REF!"}},{"$f":"D16+31","v":{"$error":"#REF!"}},{"$error":"#REF!"},{"$error":"#REF!"},{"$error":"#REF!"},{"$error":"#REF!"},{"$error":"#REF!"},{"$error":"#REF!"},{"$error":"#REF!"},{"$error":"#REF!"},{"$error":"#REF!"}]
[null," 1. Receita Total",{"$f":"DRE!$E$17*C31","v":10475},{"$f":"DRE!$E$17*D31","v":12570},{"$f":"DRE!$E$17*E31","v":14664.999999999998},{"$f":"DRE!$E$17*F31","v":16760},{"$f":"DRE!$E$17*G31","v":18855},{"$f":"DRE!$E$17*H31","v":20950},{"$f":"DRE!$E$17*I31","v":14664.999999999998},{"$f":"DRE!$E$17*J31","v":16760},{"$f":"DRE!$E$17*K31","v":18855},{"$f":"DRE!$E$17*L31","v":20950},{"$f":"DRE!$E$17*M31","v":23045.000000000004},{"$f":"DRE!$E$17*N31","v":25140}]
[null," 2. Custos Variáveis Totais",{"$f":"C17*DRE!$F$21","v":8693.25},{"$f":"D17*DRE!$F$21","v":10431.9},{"$f":"E17*DRE!$F$21","v":12170.55},{"$f":"F17*DRE!$F$21","v":13909.2},{"$f":"G17*DRE!$F$21","v":15647.85},{"$f":"H17*DRE!$F$21","v":17386.5},{"$f":"I17*DRE!$F$21","v":12170.55},{"$f":"J17*DRE!$F$21","v":13909.2},{"$f":"K17*DRE!$F$21","v":15647.85},{"$f":"L17*DRE!$F$21","v":17386.5},{"$f":"M17*DRE!$F$21","v":19125.150000000005},{"$f":"N17*DRE!$F$21","v":20863.8}]
[null," 3. Margem de Contribuição",{"$f":"C17-C18","v":1781.75},{"$f":"D17-D18","v":2138.1000000000004},2494.4499999999989,2850.7999999999993,3207.1499999999996,3563.5,2494.4499999999989,2850.7999999999993,3207.1499999999996,3563.5,3919.8499999999985,4276.2000000000007]
[null," 4. Custos Fixos Totais",{"$f":"DRE!$E$33*(1+C32)","v":660971.30666666676},{"$f":"DRE!$E$33*(1+D32)","v":660971.30666666676},{"$f":"DRE!$E$33*(1+E32)","v":660971.30666666676},{"$f":"DRE!$E$33*(1+F32)","v":660971.30666666676},{"$f":"DRE!$E$33*(1+G32)","v":660971.30666666676},{"$f":"DRE!$E$33*(1+H32)","v":660971.30666666676},{"$f":"DRE!$E$33*(1+I32)","v":660971.30666666676},{"$f":"DRE!$E$33*(1+J32)","v":660971.30666666676},{"$f":"DRE!$E$33*(1+K32)","v":660971.30666666676},{"$f":"DRE!$E$33*(1+L32)","v":660971.30666666676},{"$f":"DRE!$E$33*(1+M32)","v":660971.30666666676},{"$f":"DRE!$E$33*(1+N32)","v":660971.30666666676}]
[null," 5. Resultado Operacional",{"$f":"C19-C20","v":-659189.55666666676},{"$f":"D19-D20","v":-658833.20666666678},-658476.8566666668,-658120.50666666671,-657764.15666666673,-657407.80666666676,-658476.8566666668,-658120.50666666671,-657764.15666666673,-657407.80666666676,-657051.45666666678,-656695.1066666668]
[null," 6. Investimentos",{"$f":"HLOOKUP(Plan1!Z3,Financ,6,0)","v":4020.8651952026976},{"$f":"HLOOKUP(Plan1!AA3,Financ,6,0)","v":4020.8651952026971},{"$f":"HLOOKUP(Plan1!AB3,Financ,6,0)","v":4020.8651952026971},{"$f":"HLOOKUP(Plan1!AC3,Financ,6,0)","v":4020.8651952026971},{"$f":"HLOOKUP(Plan1!AD3,Financ,6,0)","v":4020.8651952026971},{"$f":"HLOOKUP(Plan1!AE3,Financ,6,0)","v":4020.8651952026971},{"$f":"HLOOKUP(Plan1!AF3,Financ,6,0)","v":4020.8651952026971},{"$f":"HLOOKUP(Plan1!AG3,Financ,6,0)","v":4020.8651952026971},{"$f":"HLOOKUP(Plan1!AH3,Financ,6,0)","v":4020.8651952026971},{"$f":"HLOOKUP(Plan1!AI3,Financ,6,0)","v":4020.8651952026971},{"$f":"HLOOKUP(Plan1!AJ3,Financ,6,0)","v":4020.8651952026971},{"$f":"HLOOKUP(Plan1!AK3,Financ,6,0)","v":4020.8651952026971}]
[null," 7. Outros Investimentos"]
[null,{"$f":"Sazonalidade!B24","v":" 8. Resultado Líquido Financeiro"},{"$f":"C21-C22-C23","v":-663210.4218618694},{"$f":"D21-D22-D23","v":-662854.07186186942},-662497.72186186945,-662141.37186186935,-661785.02186186938,-661428.6718618694,-662497.72186186945,-662141.37186186935,-661785.02186186938,-661428.6718618694,-661072.32186186942,-660715.97186186945]
[null,"Aporte de Capital"]
[null,"Acumulado no Ano",{"$f":"C24+C25","v":-663210.4218618694},{"$f":"C26+D24+D25","v":-1326064.4937237389},{"$f":"D26+E24+E25","v":-1988562.2155856085},-2650703.587447478,-3312488.6093093473,-3973917.2811712166,-4636415.0030330857,-5298556.3748949552,-5960341.3967568241,-6621770.0686186934,-7282842.390480563,-7943558.3623424321]
[null,"Acumulado desde o início da atividade",{"$f":"Sazonalidade2!N27+C24+C25","v":-16584860.772114463},{"$f":"C27+D24+D25","v":-17247714.843976334},{"$f":"D27+E24+E25","v":-17910212.565838203},-18572353.93770007,-19234138.95956194,-19895567.631423809,-20558065.353285678,-21220206.725147545,-21881991.747009415,-22543420.418871284,-23204492.740733154,-23865208.712595023]
[null,"Lucratividade Mensal",{"$f":"C24/C17","v":-63.313644091825239},{"$f":"D24/D17","v":-52.733020832288737},-45.175432789762667,-39.507241757868101,-35.098648733061225,-31.571774313215723,-45.175432789762667,-39.507241757868101,-35.098648733061225,-31.571774313215723,-28.686149787887583,-26.281462683447472]
[null,"Rentabilidade Mensal",{"$f":"C24/InvestimentoTotal","v":-61.659578083104257},-61.626447737250786,-61.593317391397306,-61.56018704554382,-61.527056699690348,-61.493926353836869,-61.593317391397306,-61.56018704554382,-61.527056699690348,-61.493926353836869,-61.460796007983397,-61.427665662129925]
[]
[null,"Sazonalidade",{"$f":"Sazonalidade!C31","v":0.5},{"$f":"Sazonalidade!D31","v":0.6},{"$f":"Sazonalidade!E31","v":0.7},{"$f":"Sazonalidade!F31","v":0.8},{"$f":"Sazonalidade!G31","v":0.9},{"$f":"Sazonalidade!H31","v":1},{"$f":"Sazonalidade!I31","v":0.7},{"$f":"Sazonalidade!J31","v":0.8},{"$f":"Sazonalidade!K31","v":0.9},{"$f":"Sazonalidade!L31","v":1},{"$f":"Sazonalidade!M31","v":1.1000000000000001},{"$f":"Sazonalidade!N31","v":1.2}]
[null,"Variação do Custo Fixo",0,{"$f":"$C$32","v":0},{"$f":"$C$32","v":0},0,0,0,0,0,0,0,0,0]
[]
[]
[null,null,null,null,null,null,null,null,null,null,"Necessidade de Capital de Giro"]
[null,null,null,null,null,null,null,null,null,null,"Inicial",null,{"$f":"Indicadores!C17","v":10056}]
[null,null,null,null,null,null,null,null,null,null,"Terceiro Ano",null,{"$f":"IF(N26>0,0,N26*-1)","v":7943558.3623424321}]
[null,null,null,null,null,null,null,null,null,null,"Lucratividade"]
[null,null,null,null,null,null,null,null,null,null,{"$f":"SUM(C24:N24)/SUM(C17:N17)","v":-37.173280744735045}]

{"sheet":"Sazonalidade4","index":35,"n_rows":39,"n_cols":14,"rows_kept":39,"cut":false,"hidden":false,"merged":[[38,10,38,12],[37,10,37,12],[12,1,12,13],[34,10,34,12],[35,10,35,11],[36,10,36,11]]}
[]
[]
[]
[]
[]
[]
[]
[]
[]
[]
[]
[]
[null,"SAZONALIDADE - QUARTO ANO"]
[]
[]
[null,null,{"$f":"Sazonalidade3!N16+30","v":{"$error":"#REF!"}},{"$f":"C16+30","v":{"$error":"#REF!"}},{"$f":"D16+30","v":{"$error":"#REF!"}},{"$error":"#REF!"},{"$error":"#REF!"},{"$error":"#REF!"},{"$error":"#REF!"},{"$error":"#REF!"},{"$error":"#REF!"},{"$error":"#REF!"},{"$error":"#REF!"},{"$error":"#REF!"}]
[null," 1. Receita Total",{"$f":"DRE!$E$17*C31","v":10475},{"$f":"DRE!$E$17*D31","v":12570},{"$f":"DRE!$E$17*E31","v":14664.999999999998},{"$f":"DRE!$E$17*F31","v":16760},{"$f":"DRE!$E$17*G31","v":18855},{"$f":"DRE!$E$17*H31","v":20950},{"$f":"DRE!$E$17*I31","v":14664.999999999998},{"$f":"DRE!$E$17*J31","v":16760},{"$f":"DRE!$E$17*K31","v":18855},{"$f":"DRE!$E$17*L31","v":20950},{"$f":"DRE!$E$17*M31","v":23045.000000000004},{"$f":"DRE!$E$17*N31","v":25140}]
[null," 2. Custos Variáveis Totais",{"$f":"C17*DRE!$F$21","v":8693.25},{"$f":"D17*DRE!$F$21","v":10431.9},{"$f":"E17*DRE!$F$21","v":12170.55},{"$f":"F17*DRE!$F$21","v":13909.2},{"$f":"G17*DRE!$F$21","v":15647.85},{"$f":"H17*DRE!$F$21","v":17386.5},{"$f":"I17*DRE!$F$21","v":12170.55},{"$f":"J17*DRE!$F$21","v":13909.2},{"$f":"K17*DRE!$F$21","v":15647.85},{"$f":"L17*DRE!$F$21","v":17386.5},{"$f":"M17*DRE!$F$21","v":19125.150000000005},{"$f":"N17*DRE!$F$21","v":20863.8}]
[null," 3. Margem de Contribuição",{"$f":"C17-C18","v":1781.75},2138.1000000000004,2494.4499999999989,2850.7999999999993,3207.1499999999996,3563.5,2494.4499999999989,2850.7999999999993,3207.1499999999996,3563.5,3919.8499999999985,4276.2000000000007]
[null," 4. Custos Fixos Totais",{"$f":"DRE!$E$33*(1+C32)","v":660971.30666666676},{"$f":"DRE!$E$33*(1+D32)","v":660971.30666666676},{"$f":"DRE!$E$33*(1+E32)","v":660971.30666666676},{"$f":"DRE!$E$33*(1+F32)","v":660971.30666666676},{"$f":"DRE!$E$33*(1+G32)","v":660971.30666666676},{"$f":"DRE!$E$33*(1+H32)","v":660971.30666666676},{"$f":"DRE!$E$33*(1+I32)","v":660971.30666666676},{"$f":"DRE!$E$33*(1+J32)","v":660971.30666666676},{"$f":"DRE!$E$33*(1+K32)","v":660971.30666666676},{"$f":"DRE!$E$33*(1+L32)","v":660971.30666666676},{"$f":"DRE!$E$33*(1+M32)","v":660971.30666666676},{"$f":"DRE!$E$33*(1+N32)","v":660971.30666666676}]
[null," 5. Resultado Operacional",{"$f":"C19-C20","v":-659189.55666666676},{"$f":"D19-D20","v":-658833.20666666678},-658476.8566666668,-658120.50666666671,-657764.15666666673,-657407.80666666676,-658476.8566666668,-658120.50666666671,-657764.15666666673,-657407.80666666676,-657051.45666666678,-656695.1066666668]
[null," 6. Investimentos",{"$f":"HLOOKUP(Plan1!AL3,Financ,6,0)","v":1.4642864698544145E-13},{"$f":"HLOOKUP(Plan1!AM3,Financ,6,0)","v":1.4642864698544145E-13},{"$f":"HLOOKUP(Plan1!AN3,Financ,6,0)","v":1.4642864698544145E-13},{"$f":"HLOOKUP(Plan1!AO3,Financ,6,0)","v":1.4642864698544145E-13},{"$f":"HLOOKUP(Plan1!AP3,Financ,6,0)","v":1.4642864698544145E-13},{"$f":"HLOOKUP(Plan1!AQ3,Financ,6,0)","v":1.4642864698544145E-13},{"$f":"HLOOKUP(Plan1!AR3,Financ,6,0)","v":1.4642864698544145E-13},{"$f":"HLOOKUP(Plan1!AS3,Financ,6,0)","v":1.4642864698544145E-13},{"$f":"HLOOKUP(Plan1!AT3,Financ,6,0)","v":1.4642864698544145E-13},{"$f":"HLOOKUP(Plan1!AU3,Financ,6,0)","v":1.4642864698544145E-13},{"$f":"HLOOKUP(Plan1!AV3,Financ,6,0)","v":1.4642864698544145E-13},{"$f":"HLOOKUP(Plan1!AW3,Financ,6,0)","v":1.4642864698544145E-13}]
[null," 7. Outros Investimentos"]
[null,{"$f":"Sazonalidade!B24","v":" 8. Resultado Líquido Financeiro"},{"$f":"C21-C22-C23","v":-659189.55666666676},{"$f":"D21-D22-D23","v":-658833.20666666678},-658476.8566666668,-658120.50666666671,-657764.15666666673,-657407.80666666676,-658476.8566666668,-658120.50666666671,-657764.15666666673,-657407.80666666676,-657051.45666666678,-656695.1066666668]
[null,"Aporte de Capital"]
[null,"Acumulado no Ano",{"$f":"C24+C25","v":-659189.55666666676},{"$f":"C26+D24+D25","v":-1318022.7633333337},{"$f":"D26+E24+E25","v":-1976499.6200000006},-2634620.1266666674,-3292384.2833333341,-3949792.0900000008,-4608268.9466666672,-5266389.4533333341,-5924153.6100000013,-6581561.4166666679,-7238612.8733333349,-7895307.9800000014]
[null,"Acumulado desde o início da atividade",{"$f":"Sazonalidade3!N27+C24+C25","v":-24524398.269261692},{"$f":"C27+D24+D25","v":-25183231.475928359},{"$f":"D27+E24+E25","v":-25841708.332595024},-26499828.839261692,-27157592.995928358,-27815000.802595027,-28473477.659261692,-29131598.16592836,-29789362.322595026,-30446770.129261695,-31103821.585928362,-31760516.692595027]
[null,"Lucratividade Mensal",{"$f":"C24/C17","v":-62.929790612569619},{"$f":"D24/D17","v":-52.413142932909054},-44.901251733151511,-39.267333333333333,-34.885396800141436,-31.379847573587913,-44.901251733151511,-39.267333333333333,-34.885396800141436,-31.379847573587913,-28.511670933680481,-26.12152373375763]
[null,"Rentabilidade Mensal",{"$f":"C24/InvestimentoTotal","v":-61.285752758150501},-61.252622412297022,-61.21949206644355,-61.186361720590064,-61.153231374736585,-61.120101028883113,-61.21949206644355,-61.186361720590064,-61.153231374736585,-61.120101028883113,-61.086970683029641,-61.053840337176162]
[]
[null,"Sazonalidade",{"$f":"Sazonalidade!C31","v":0.5},{"$f":"Sazonalidade!D31","v":0.6},{"$f":"Sazonalidade!E31","v":0.7},{"$f":"Sazonalidade!F31","v":0.8},{"$f":"Sazonalidade!G31","v":0.9},{"$f":"Sazonalidade!H31","v":1},{"$f":"Sazonalidade!I31","v":0.7},{"$f":"Sazonalidade!J31","v":0.8},{"$f":"Sazonalidade!K31","v":0.9},{"$f":"Sazonalidade!L31","v":1},{"$f":"Sazonalidade!M31","v":1.1000000000000001},{"$f":"Sazonalidade!N31","v":1.2}]
[null,"Variação do Custo Fixo",0,{"$f":"$C$32","v":0},0,0,0,0,0,0,0,0,0,0]
[]
[]
[null,null,null,null,null,null,null,null,null,null,"Necessidade de Capital de Giro"]
[null,null,null,null,null,null,null,null,null,null,"Inicial",null,{"$f":"Indicadores!C17","v":10056}]
[null,null,null,null,null,null,null,null,null,null,"Quarto Ano",null,{"$f":"IF(N26>0,0,N26*-1)","v":7895307.9800000014}]
[null,null,null,null,null,null,null,null,null,null,"Lucratividade"]
[null,null,null,null,null,null,null,null,null,null,{"$f":"SUM(C24:N24)/SUM(C17:N17)","v":-36.947484580467041}]

{"sheet":"Sazonalidade5","index":36,"n_rows":39,"n_cols":14,"rows_kept":39,"cut":false,"hidden":false,"merged":[[38,10,38,12],[37,10,37,12],[12,1,12,13],[34,10,34,12],[35,10,35,11],[36,10,36,11]]}
[]
[]
[]
[]
[]
[]
[]
[]
[]
[]
[]
[]
[null,"SAZONALIDADE - QUINTO ANO"]
[]
[]
[null,null,{"$f":"Sazonalidade4!N16+30","v":{"$error":"#REF!"}},{"$f":"C16+30","v":{"$error":"#REF!"}},{"$f":"D16+30","v":{"$error":"#REF!"}},{"$f":"E16+30","v":{"$error":"#REF!"}},{"$f":"F16+30","v":{"$error":"#REF!"}},{"$f":"G16+31","v":{"$error":"#REF!"}},{"$f":"H16+30","v":{"$error":"#REF!"}},{"$f":"I16+31","v":{"$error":"#REF!"}},{"$f":"J16+31","v":{"$error":"#REF!"}},{"$f":"K16+31","v":{"$error":"#REF!"}},{"$f":"L16+30","v":{"$error":"#REF!"}},{"$f":"M16+30","v":{"$error":"#REF!"}}]
[null," 1. Receita Total",{"$f":"DRE!$E$17*C31","v":10475},{"$f":"DRE!$E$17*D31","v":12570},{"$f":"DRE!$E$17*E31","v":14664.999999999998},{"$f":"DRE!$E$17*F31","v":16760},{"$f":"DRE!$E$17*G31","v":18855},{"$f":"DRE!$E$17*H31","v":20950},{"$f":"DRE!$E$17*I31","v":14664.999999999998},{"$f":"DRE!$E$17*J31","v":16760},{"$f":"DRE!$E$17*K31","v":18855},{"$f":"DRE!$E$17*L31","v":20950},{"$f":"DRE!$E$17*M31","v":23045.000000000004},{"$f":"DRE!$E$17*N31","v":25140}]
[null," 2. Custos Variáveis Totais",{"$f":"C17*DRE!$F$21","v":8693.25},{"$f":"D17*DRE!$F$21","v":10431.9},{"$f":"E17*DRE!$F$21","v":12170.55},{"$f":"F17*DRE!$F$21","v":13909.2},{"$f":"G17*DRE!$F$21","v":15647.85},{"$f":"H17*DRE!$F$21","v":17386.5},{"$f":"I17*DRE!$F$21","v":12170.55},{"$f":"J17*DRE!$F$21","v":13909.2},{"$f":"K17*DRE!$F$21","v":15647.85},{"$f":"L17*DRE!$F$21","v":17386.5},{"$f":"M17*DRE!$F$21","v":19125.150000000005},{"$f":"N17*DRE!$F$21","v":20863.8}]
[null," 3. Margem de Contribuição",{"$f":"C17-C18","v":1781.75},{"$f":"D17-D18","v":2138.1000000000004},2494.4499999999989,2850.7999999999993,3207.1499999999996,3563.5,2494.4499999999989,2850.7999999999993,3207.1499999999996,3563.5,3919.8499999999985,4276.2000000000007]
[null," 4. Custos Fixos Totais",{"$f":"DRE!$E$33*(1+C32)","v":660971.30666666676},{"$f":"DRE!$E$33*(1+D32)","v":660971.30666666676},{"$f":"DRE!$E$33*(1+E32)","v":660971.30666666676},{"$f":"DRE!$E$33*(1+F32)","v":660971.30666666676},{"$f":"DRE!$E$33*(1+G32)","v":660971.30666666676},{"$f":"DRE!$E$33*(1+H32)","v":660971.30666666676},{"$f":"DRE!$E$33*(1+I32)","v":660971.30666666676},{"$f":"DRE!$E$33*(1+J32)","v":660971.30666666676},{"$f":"DRE!$E$33*(1+K32)","v":660971.30666666676},{"$f":"DRE!$E$33*(1+L32)","v":660971.30666666676},{"$f":"DRE!$E$33*(1+M32)","v":660971.30666666676},{"$f":"DRE!$E$33*(1+N32)","v":660971.30666666676}]
[null," 5. Resultado Operacional",{"$f":"C19-C20","v":-659189.55666666676},{"$f":"D19-D20","v":-658833.20666666678},-658476.8566666668,-658120.50666666671,-657764.15666666673,-657407.80666666676,-658476.8566666668,-658120.50666666671,-657764.15666666673,-657407.80666666676,-657051.45666666678,-656695.1066666668]
[null," 6. Investimentos",{"$f":"HLOOKUP(Plan1!AX3,Financ,6,0)","v":1.4642864698544145E-13},{"$f":"HLOOKUP(Plan1!AY3,Financ,6,0)","v":1.4642864698544145E-13},{"$f":"HLOOKUP(Plan1!AZ3,Financ,6,0)","v":1.4642864698544145E-13},{"$f":"HLOOKUP(Plan1!BA3,Financ,6,0)","v":1.4642864698544145E-13},{"$f":"HLOOKUP(Plan1!BB3,Financ,6,0)","v":1.4642864698544145E-13},{"$f":"HLOOKUP(Plan1!BC3,Financ,6,0)","v":1.4642864698544145E-13},{"$f":"HLOOKUP(Plan1!BD3,Financ,6,0)","v":1.4642864698544145E-13},{"$f":"HLOOKUP(Plan1!BE3,Financ,6,0)","v":1.4642864698544145E-13},{"$f":"HLOOKUP(Plan1!BF3,Financ,6,0)","v":1.4642864698544145E-13},{"$f":"HLOOKUP(Plan1!BG3,Financ,6,0)","v":1.4642864698544145E-13},{"$f":"HLOOKUP(Plan1!BH3,Financ,6,0)","v":1.4642864698544145E-13},{"$f":"HLOOKUP(Plan1!BI3,Financ,6,0)","v":1.4642864698544145E-13}]
[null," 7. Outros Investimentos"]
[null,{"$f":"Sazonalidade!B24","v":" 8. Resultado Líquido Financeiro"},{"$f":"C21-C22-C23","v":-659189.55666666676},{"$f":"D21-D22-D23","v":-658833.20666666678},-658476.8566666668,-658120.50666666671,-657764.15666666673,-657407.80666666676,-658476.8566666668,-658120.50666666671,-657764.15666666673,-657407.80666666676,-657051.45666666678,-656695.1066666668]
[null,"Aporte de Capital"]
[null,"Acumulado no Ano",{"$f":"C24+C25","v":-659189.55666666676},{"$f":"C26+D24+D25","v":-1318022.7633333337},{"$f":"D26+E24+E25","v":-1976499.6200000006},-2634620.1266666674,-3292384.2833333341,-3949792.0900000008,-4608268.9466666672,-5266389.4533333341,-5924153.6100000013,-6581561.4166666679,-7238612.8733333349,-7895307.9800000014]
[null,"Acumulado desde o início da atividade",{"$f":"Sazonalidade4!N27+C24+C25","v":-32419706.249261696},{"$f":"C27+D24+D25","v":-33078539.455928363},{"$f":"D27+E24+E25","v":-33737016.312595032},-34395136.8192617,-35052900.975928366,-35710308.782595031,-36368785.6392617,-37026906.145928368,-37684670.302595034,-38342078.109261699,-38999129.565928362,-39655824.672595032]
[null,"Lucratividade Mensal",{"$f":"C24/C17","v":-62.929790612569619},{"$f":"D24/D17","v":-52.413142932909054},-44.901251733151511,-39.267333333333333,-34.885396800141436,-31.379847573587913,-44.901251733151511,-39.267333333333333,-34.885396800141436,-31.379847573587913,-28.511670933680481,-26.12152373375763]
[null,"Rentabilidade Mensal",{"$f":"C24/InvestimentoTotal","v":-61.285752758150501},-61.252622412297022,-61.21949206644355,-61.186361720590064,-61.153231374736585,-61.120101028883113,-61.21949206644355,-61.186361720590064,-61.153231374736585,-61.120101028883113,-61.086970683029641,-61.053840337176162]
[]
[null,"Sazonalidade",{"$f":"Sazonalidade!C31","v":0.5},{"$f":"Sazonalidade!D31","v":0.6},{"$f":"Sazonalidade!E31","v":0.7},{"$f":"Sazonalidade!F31","v":0.8},{"$f":"Sazonalidade!G31","v":0.9},{"$f":"Sazonalidade!H31","v":1},{"$f":"Sazonalidade!I31","v":0.7},{"$f":"Sazonalidade!J31","v":0.8},{"$f":"Sazonalidade!K31","v":0.9},{"$f":"Sazonalidade!L31","v":1},{"$f":"Sazonalidade!M31","v":1.1000000000000001},{"$f":"Sazonalidade!N31","v":1.2}]
[null,"Variação do Custo Fixo",0,{"$f":"$C$32","v":0},0,0,0,0,0,0,0,0,0,0]
[]
[]
[null,null,null,null,null,null,null,null,null,null,"Necessidade de Capital de Giro"]
[null,null,null,null,null,null,null,null,null,null,"Inicial",null,{"$f":"Indicadores!C17","v":10056}]
[null,null,null,null,null,null,null,null,null,null,"Quinto Ano",null,{"$f":"IF(N26>0,0,N26*-1)","v":7895307.9800000014}]
[null,null,null,null,null,null,null,null,null,null,"Lucratividade"]
[null,null,null,null,null,null,null,null,null,null,{"$f":"SUM(C24:N24)/SUM(C17:N17)","v":-36.947484580467041}]

{"sheet":"Indicadores","index":37,"n_rows":93,"n_cols":13,"rows_kept":93,"cut":false,"hidden":false,"merged":[[60,4,60,5],[52,4,52,5],[56,4,56,5],[12,1,12,6],[45,4,45,6]]}
[]
[]
[]
[]
[]
[]
[]
[]
[]
[]
[]
[]
[null,"INDICADORES FINANCEIROS"]
[]
[]
[null,"Investimento",{"$f":"InvestFixo!C68+PrazosEstoques!C32","v":700},null,"Faturamento",{"$f":"DRE!E17","v":20950}]
[null,"Capital de Giro",{"$f":"IF(G47=\"X\",F47,F48)","v":10056},null,"Custos Variáveis",{"$f":"DRE!E21","v":17386.5},{"$f":"F17/$F$16","v":0.82990453460620528}]
[null,"Total",{"$f":"SUM(C16:C17)","v":10756},null,"Custos Fixos",{"$f":"DRE!E33","v":660971.30666666676},{"$f":"F18/$F$16","v":31.549943038981706}]
[null,null,null,null,"Resultado Operacional",{"$f":"DRE!E53","v":-657407.80666666676},{"$f":"F19/$F$16","v":-31.379847573587913}]
[null,"Financiamento",{"$f":"Financiamento!C17","v":100000},null,"Investimentos",{"$f":"DRE!E55","v":8326.7686734479412},{"$f":"F20/$F$16","v":0.39745912522424542}]
[null,"Capital Próprio",{"$f":"SUM(C16:C17)-C20","v":-89244},null,"Resultado",{"$f":"DRE!E62","v":-665734.57534011465},{"$f":"F21/$F$16","v":-31.777306698812154}]
[]
[]
[]
[]
[null,null,"Operacional",null,null,null,null,null,"Realização do Previsto",0.05,0.5,1,1.5]
[null,"Mensal",{"$f":"(F18)/(C$53/100%)","v":3885884.3481595814},null,null,null,null,null,"Receita",{"$f":"DRE!$E$17*J26","v":1047.5},{"$f":"DRE!$E$17*K26","v":10475},{"$f":"DRE!$E$17*L26","v":20950},{"$f":"DRE!$E$17*M26","v":31425}]
[null,"Diário",{"$f":"C27/C40","v":155435.37392638327},null,null,null,null,null,"Custo Variável",{"$f":"J27*DRE!$F$21","v":869.32500000000005},{"$f":"K27*DRE!$F$21","v":8693.25},{"$f":"L27*DRE!$F$21","v":17386.5},{"$f":"M27*DRE!$F$21","v":26079.75}]
[null,null,null,null,null,null,null,null,"Custo Fixo",{"$f":"DRE!$E$33","v":660971.30666666676},{"$f":"DRE!$E$33","v":660971.30666666676},{"$f":"DRE!$E$33","v":660971.30666666676},{"$f":"DRE!$E$33","v":660971.30666666676}]
[null,null,"Financeiro",null,null,null,null,null,"Custo Total",{"$f":"SUM(J28:J29)+SUM(J32:J32)","v":670167.4003401146},{"$f":"SUM(K28:K29)+SUM(K32:K32)","v":677991.32534011465},{"$f":"SUM(L28:L29)+SUM(L32:L32)","v":686684.57534011465},{"$f":"SUM(M28:M29)+SUM(M32:M32)","v":695377.82534011465}]
[null,"Mensal",{"$f":"(F18+F20)/(C$53/100%)","v":3934837.8499720506},null,null,null,null,null,"Resultado Operacional",{"$f":"J27-J28-J29","v":-660793.13166666671},{"$f":"K27-K28-K29","v":-659189.55666666676},{"$f":"L27-L28-L29","v":-657407.80666666676},{"$f":"M27-M28-M29","v":-655626.05666666676}]
[null,"Diário",{"$f":"C31/C40","v":157393.51399888203},null,null,null,null,null,"Investimento",{"$f":"DRE!$E$55","v":8326.7686734479412},{"$f":"DRE!$E$55","v":8326.7686734479412},{"$f":"DRE!$E$55","v":8326.7686734479412},{"$f":"DRE!$E$55","v":8326.7686734479412}]
[null,null,null,null,null,null,null,null,"Resultado",{"$f":"J27-J28-J29-J32","v":-669119.9003401146},{"$f":"K27-K28-K29-K32","v":-667516.32534011465},{"$f":"L27-L28-L29-L32","v":-665734.57534011465},{"$f":"M27-M28-M29-M32","v":-663952.82534011465}]
[null,null,"Econômico",null,null,null,null,null,"Lucratividade",{"$f":"J33/J27","v":-638.77794781872512},{"$f":"K33/K27","v":-63.724708863018108},{"$f":"L33/L27","v":-31.777306698812154},{"$f":"M33/M27","v":-21.128172644076837}]
[null,"Lucro Desejado",0,{"$f":"C35/DRE!E17","v":0},null,null,null,null,"Rentabilidade",0,{"$f":"K33/InvestFixo!$C$68","v":-1213.6660460729356},{"$f":"L33/InvestFixo!$C$68","v":-1210.4265006183903},{"$f":"M33/InvestFixo!$C$68","v":-1207.1869551638449}]
[null,"Mensal",{"$f":"(F18+F20+C35)/(C$53/100%)","v":3934837.8499720506}]
[null,"Diário",{"$f":"C36/C40","v":157393.51399888203}]
[]
[]
[null,"Dias Úteis",25]
[]
[]
[]
[]
[]
[null,"Prazo Médio de Recebimento",{"$f":"PrazosEstoques!D19","v":0},null,"Necessidade de Capital de Giro"]
[null,null,null,null,"Ciclo Financeiro",{"$f":"IF((DRE!$E$17/DiasUteis)*(PrazosEstoques!$D$19+PrazosEstoques!$C$28-PrazosEstoques!$D$25)<0,0,(DRE!$E$17/DiasUteis)*(PrazosEstoques!$D$19+PrazosEstoques!$C$28-PrazosEstoques!$D$25))","v":10056},"X"]
[null,"Rotação do Estoque",{"$f":"PrazosEstoques!C32/(DRE!E17/Indicadores!C40)","v":0.17899761336515513},null,"Saldo das contas do Balanço",{"$f":"IF(DRE!E19+PrazosEstoques!C32-((DRE!E21+DRE!E33)*(PrazosEstoques!C24/100))<0,0,DRE!E19+PrazosEstoques!C32-((DRE!E21+DRE!E33)*(PrazosEstoques!C24/100)))","v":0}]
[]
[]
[]
[]
[null,"Margem de Contribuição",{"$f":"mc","v":0.17009546539379475},null,"Lucratividade"]
[null,null,null,null,"Média Mensal",{"$f":"AVERAGE(Sazonalidade!C27:N27,Sazonalidade2!C28:N28,Sazonalidade3!C28:N28,Sazonalidade4!C28:N28,Sazonalidade5!C28:N28)","v":-39.412936982253655}]
[]
[]
[null,"Rentabilidade",null,null,"Prazo de Retorno do Investimento"]
[null,"Média Mensal",{"$f":"AVERAGE(Sazonalidade!C28:N28,Sazonalidade2!C29:N29,Sazonalidade3!C29:N29,Sazonalidade4!C29:N29,Sazonalidade5!C29:N29)","v":-61.447602380988968},null,"Resultado Operacional",{"$f":"IF(HLOOKUP(C18,Plan1!B1:BI3,3,1)+1>60,\"Superior a 60 meses\",HLOOKUP(C18,Plan1!B1:BI3,3,1)+1)","v":"Superior a 60 meses"}]
[null,"Período de 60 meses",{"$f":"Plan1!B10","v":-112694.63758888881},null,"Resultado Final",{"$f":"IF(HLOOKUP(C18,Plan1!B2:BI3,2,1)+1>60,\"Superior a 60 meses\",HLOOKUP(C18,Plan1!B2:BI3,2,1)+1)","v":"Superior a 60 meses"}]
[]
[null,"Endividamento Geral",null,null,"Taxa de Retorno"]
[null,"Grau de Endividamento",{"$f":"Financ.total/C18","v":13.945704722945333},null,"TMA - Taxa Mínima de Atratividade",0.1135]
[null,null,null,null,"TIR - Taxa Interna de Retorno",{"$f":"IF(ISERR(IRR(Plan1!A15:F15,F62)),\"Inferior a zero\",IRR(Plan1!A15:F15,F62))","v":"Inferior a zero"}]
[null,null,null,null,"VPL - Valor Presente Líquido",{"$f":"NPV(F62,Plan1!A15:F15)","v":-26119539.030519646}]
[]
[]
[]
[null,null,null,null,null,null,null,null,null,"Resultado"]
[null,"Acréscimo no Preço",0.1,null,"Acréscimo nas Vendas",{"$f":"C69","v":0.1},null,null,"Resultado Atual",{"$f":"F21","v":-665734.57534011465}]
[null,"Receita",{"$f":"DRE!$E$17*(1+C69)","v":23045.000000000004},null,"Receita",{"$f":"DRE!$E$17*(1+F69)","v":23045.000000000004},null,null,{"$f":"B69","v":"Acréscimo no Preço"},{"$f":"C75","v":-663639.57534011465}]
[null,"Custo Variável",{"$f":"DRE!E21","v":17386.5},null,"Custo Variável",{"$f":"F70*DRE!$F$21","v":19125.150000000005},null,null,{"$f":"E69","v":"Acréscimo nas Vendas"},{"$f":"F75","v":-665378.22534011467}]
[null,"Custo Fixo",{"$f":"DRE!$E$33","v":660971.30666666676},null,"Custo Fixo",{"$f":"DRE!$E$33","v":660971.30666666676},null,null,{"$f":"B78","v":"Redução no Custo da Mercadoria"},{"$f":"C84","v":-664484.57534011465}]
[null,"Resultado Operacional",{"$f":"C70-C71-C72","v":-655312.80666666676},null,"Resultado Operacional",{"$f":"F70-F71-F72","v":-657051.45666666678},null,null,{"$f":"E78","v":"Redução no Custo Fixo"},{"$f":"F84","v":-599637.44467344799}]
[null,"Investimentos",{"$f":"DRE!$E$55","v":8326.7686734479412},null,"Investimentos",{"$f":"DRE!$E$55","v":8326.7686734479412},null,null,{"$f":"B87","v":"Política de Descontos"},{"$f":"C93","v":-667829.57534011465}]
[null,"Resultado Final",{"$f":"C73-C74-DRE!$E$58","v":-663639.57534011465},null,"Resultado Final",{"$f":"F73-F74-DRE!$E$58","v":-665378.22534011467}]
[]
[]
[null,"Redução no Custo da Mercadoria",{"$f":"C69","v":0.1},null,"Redução no Custo Fixo",{"$f":"C69","v":0.1}]
[null,"Receita",{"$f":"DRE!$E$17","v":20950},null,"Receita",{"$f":"DRE!$E$17","v":20950}]
[null,"Custo Variável",{"$f":"(C79*(DRE!$F$21-DRE!$F$22))+(DRE!E22*(1-C78))","v":16136.500000000002},null,"Custo Variável",{"$f":"F79*DRE!$F$21","v":17386.5}]
[null,"Custo Fixo",{"$f":"DRE!$E$33","v":660971.30666666676},null,"Custo Fixo",{"$f":"DRE!$E$33*(1-F78)","v":594874.17600000009}]
[null,"Resultado Operacional",{"$f":"C79-C80-C81","v":-656157.80666666676},null,"Resultado Operacional",{"$f":"F79-F80-F81","v":-591310.67600000009}]
[null,"Investimentos",{"$f":"DRE!$E$55","v":8326.7686734479412},null,"Investimentos",{"$f":"DRE!$E$55","v":8326.7686734479412}]
[null,"Resultado Final",{"$f":"C82-C83-DRE!$E$58","v":-664484.57534011465},null,"Resultado Final",{"$f":"F82-F83-DRE!$E$58","v":-599637.44467344799}]
[]
[]
[null,"Política de Descontos",0.1]
[null,"Receita",{"$f":"DRE!$E$17*(1-C87)","v":18855}]
[null,"Custo Variável",{"$f":"DRE!$E$21","v":17386.5}]
[null,"Custo Fixo",{"$f":"DRE!$E$33","v":660971.30666666676}]
[null,"Resultado Operacional",{"$f":"C88-C89-C90","v":-659502.80666666676}]
[null,"Investimentos",{"$f":"DRE!$E$55","v":8326.7686734479412}]
[null,"Resultado",{"$f":"C91-C92-DRE!$E$58","v":-667829.57534011465}]

{"sheet":"Parecer","index":38,"n_rows":12,"n_cols":3,"rows_kept":12,"cut":false,"hidden":false,"merged":[[11,1,11,5],[9,2,9,5]]}
[]
[]
[]
[]
[]
[]
[]
[]
[]
[null,"Empresa:",{"$f":"Menu!G26","v":"Empresa ABCDE"}]
[]
[null,"OBSERVAÇÕES DO CONSULTOR"]

{"sheet":"Instruções","index":39,"n_rows":0,"n_cols":0,"rows_kept":0,"cut":false,"hidden":false,"merged":[]}

{"sheet":"ImpostoDetalhado","index":40,"n_rows":38,"n_cols":13,"rows_kept":38,"cut":false,"hidden":false,"merged":[[1,7,1,12],[20,7,20,12]]}
[null,"IMPOSTO DETALHADO"]
[null,null,null,null,null,null,null,"TRIBUTAÇÃO NO REGIME PRESUMIDO"]
[null,"Atividade","Receita Bruta",null,"Alíquota","Total",null,"IRPJ","CSLL","COFINS","PIS","ISS","Total"]
[null,{"$f":"TributosSimples!B19","v":"Comércio"},{"$f":"TributosSimples!E19","v":21000},null,{"$f":"IF(B4=0,\"\",VLOOKUP(Rbruta,INDIRECT(VLOOKUP(B4,Atividades,3,0)),2,1))","v":3.61E-2},{"$f":"(IF(B4=0,0,C4*E4))","v":758.1},null,{"$f":"IF(B4=0,\"\",VLOOKUP($H$3,TabPres,VLOOKUP(B4,Atividades,4,0),0)*C4)","v":252},{"$f":"IF(B4=0,\"\",VLOOKUP($I$3,TabPres,VLOOKUP(B4,Atividades,4,0),0)*C4)","v":226.8},{"$f":"IF(B4=0,\"\",VLOOKUP($J$3,TabPres,VLOOKUP(B4,Atividades,4,0),0)*C4)","v":630},{"$f":"IF(B4=0,\"\",VLOOKUP($K$3,TabPres,VLOOKUP(B4,Atividades,4,0),0)*C4)","v":136.5},{"$f":"IF(NOT(OR(B4=Aliquotas!$N$3,B4=Aliquotas!$N$4,B4=Aliquotas!$N$32,B4=Aliquotas!$N$5)),C4*ISS,0)","v":0},{"$f":"SUM(H4:K4)","v":1245.3}]
[null,{"$f":"TributosSimples!B20","v":0},{"$f":"TributosSimples!E20","v":0},null,{"$f":"IF(B5=0,\"\",VLOOKUP(Rbruta,INDIRECT(VLOOKUP(B5,Atividades,3,0)),2,1))","v":""},{"$f":"(IF(B5=0,0,C5*E5))","v":0},null,"","","","",{"$f":"IF(NOT(OR(B5=Aliquotas!$N$3,B5=Aliquotas!$N$4,B5=Aliquotas!$N$32,B5=Aliquotas!$N$5)),C5*ISS,0)","v":0},{"$f":"SUM(H5:K5)","v":0}]
[null,{"$f":"TributosSimples!B21","v":0},{"$f":"TributosSimples!E21","v":0},null,"",0,null,"","","","",{"$f":"IF(NOT(OR(B6=Aliquotas!$N$3,B6=Aliquotas!$N$4,B6=Aliquotas!$N$32,B6=Aliquotas!$N$5)),C6*ISS,0)","v":0},0]
[null,{"$f":"TributosSimples!B22","v":0},{"$f":"TributosSimples!E22","v":0},null,"",0,null,"","","","",{"$f":"IF(NOT(OR(B7=Aliquotas!$N$3,B7=Aliquotas!$N$4,B7=Aliquotas!$N$32,B7=Aliquotas!$N$5)),C7*ISS,0)","v":0},0]
[null,{"$f":"TributosSimples!B23","v":0},{"$f":"TributosSimples!E23","v":0},null,"",0,null,"","","","",{"$f":"IF(NOT(OR(B8=Aliquotas!$N$3,B8=Aliquotas!$N$4,B8=Aliquotas!$N$32,B8=Aliquotas!$N$5)),C8*ISS,0)","v":0},0]
[null,{"$f":"TributosSimples!B24","v":0},{"$f":"TributosSimples!E24","v":0},null,"",0,null,"","","","",{"$f":"IF(NOT(OR(B9=Aliquotas!$N$3,B9=Aliquotas!$N$4,B9=Aliquotas!$N$32,B9=Aliquotas!$N$5)),C9*ISS,0)","v":0},0]
[null,{"$f":"TributosSimples!B25","v":0},{"$f":"TributosSimples!E25","v":0},null,"",0,null,"","","","",{"$f":"IF(NOT(OR(B10=Aliquotas!$N$3,B10=Aliquotas!$N$4,B10=Aliquotas!$N$32,B10=Aliquotas!$N$5)),C10*ISS,0)","v":0},0]
[null,{"$f":"TributosSimples!B26","v":0},{"$f":"TributosSimples!E26","v":0},null,"",0,null,"","","","",{"$f":"IF(NOT(OR(B11=Aliquotas!$N$3,B11=Aliquotas!$N$4,B11=Aliquotas!$N$32,B11=Aliquotas!$N$5)),C11*ISS,0)","v":0},0]
[null,{"$f":"TributosSimples!B27","v":0},{"$f":"TributosSimples!E27","v":0},null,"",0,null,"","","","",{"$f":"IF(NOT(OR(B12=Aliquotas!$N$3,B12=Aliquotas!$N$4,B12=Aliquotas!$N$32,B12=Aliquotas!$N$5)),C12*ISS,0)","v":0},0]
[null,{"$f":"TributosSimples!B28","v":0},{"$f":"TributosSimples!E28","v":0},null,"",0,null,"","","","",{"$f":"IF(NOT(OR(B13=Aliquotas!$N$3,B13=Aliquotas!$N$4,B13=Aliquotas!$N$32,B13=Aliquotas!$N$5)),C13*ISS,0)","v":0},0]
[null,{"$f":"TributosSimples!B29","v":0},{"$f":"TributosSimples!E29","v":0},null,"",0,null,"","","","",{"$f":"IF(NOT(OR(B14=Aliquotas!$N$3,B14=Aliquotas!$N$4,B14=Aliquotas!$N$32,B14=Aliquotas!$N$5)),C14*ISS,0)","v":0},0]
[null,{"$f":"TributosSimples!B30","v":0},{"$f":"TributosSimples!E30","v":0},null,"",0,null,"","","","",{"$f":"IF(NOT(OR(B15=Aliquotas!$N$3,B15=Aliquotas!$N$4,B15=Aliquotas!$N$32,B15=Aliquotas!$N$5)),C15*ISS,0)","v":0},0]
[null,null,null,null,null,{"$f":"SUM(F4:F15)","v":758.1},null,{"$f":"SUM(H4:H15)","v":252},226.8,630,136.5,0,1245.3]
[]
[]
[]
[]
[null,null,null,null,null,null,null,"TRIBUTAÇÃO NO REGIME LUCRO REAL"]
[null,null,null,null,null,"Faturamento mês:",null,"IRPJ","CSLL","COFINS","PIS","ISS","Total"]
[null,null,null,null,null,{"$f":"TributosSimples!E31","v":21000},null,{"$f":"IF($F$26>=0,$F$26*Aliquotas!$C$230,\"\")","v":""},{"$f":"IF($F$26>=0,$F$26*Aliquotas!$C$231,\"\")","v":""},{"$f":"$F$23*Aliquotas!C232","v":1596},{"$f":"$F$23*Aliquotas!E233","v":346.5},{"$f":"Tributos!$G$24","v":0},{"$f":"SUM(H23:L23)","v":1942.5}]
[null,null,null,null,null,null,null,{"$f":"F30*Aliquotas!E230","v":0},{"$f":"F30*Aliquotas!E231","v":0},{"$f":"$F$23*Aliquotas!E232","v":1596},{"$f":"$F$23*Aliquotas!E233","v":346.5},{"$f":"Tributos!$G$24","v":0},{"$f":"SUM(H24:L24)","v":1942.5}]
[null,null,null,null,null,"Base para IRPJ/CS"]
[null,null,null,null,null,{"$f":"((TributosSimples!$E$31)-((CustoFixo!$D$69)+(CDT)+(Financ.Parcela)+(TributosReal!$E$22+TributosReal!$E$32)+(TributosPres!E30+TributosPres!E40)))","v":-663520.07534011465}]
[null,null,null,null,null,240000]
[]
[null,null,null,null,null,"Lucro > R$ 240.000,01"]
[null,null,null,null,null,{"$f":"IF(F26>Aliquotas!F230,F26-Aliquotas!F230,0)","v":0}]
[null,null,null,null,null,240001]
[]
[]
[]
[]
[]
[null,"EI","Valor"]
[null,{"$f":"TributosEI!B19","v":0},{"$f":"IF(OR(ecombinado=\"X\",ecombinado=\"x\"),Aliquotas!$O$67,IF(ISERROR(VLOOKUP(VLOOKUP(B38,EI,6,0),EI.Valores,2,0)),\"Atividade Vetada\",VLOOKUP(VLOOKUP(B38,EI,6,0),EI.Valores,2,0)))","v":"Atividade Vetada"}]

{"sheet":"Aliquotas","index":41,"n_rows":523,"n_cols":19,"rows_kept":523,"cut":false,"hidden":false,"merged":[[1,1,1,11]]}
[]
[null,"ALIQUOTAS",null,null,null,null,null,null,null,null,null,null,null,"Atividade","Anexo","Tabela","Coluna"]
[null,"DE / ATÉ","ALÍQUOTA","IRPJ","CSLL","COFINS","PIS/PASEP","INSS","ICMS",null,null,null,null,"Comércio",1,"Tab1Com",2]
[null,0,{"$f":"SUM(D4:I4)","v":2.75E-2},0,0,0,0,2.75E-2,null,null,null,null,null,"Indústria",2,"Tab2Ind",2]
[null,180000.01,{"$f":"SUM(D5:I5)","v":3.61E-2},0,0,8.6E-3,0,2.75E-2,null,null,null,null,null,"Locação de bens Móveis",3,"Tab3Loc",3]
[null,360000.01,4.5100000000000001E-2,2.7000000000000001E-3,3.0999999999999999E-3,9.4999999999999998E-3,2.3E-3,2.75E-2,null,null,null,null,null,"creche, pré-escola e estabelecimento de ensino fundamental",3,"Tab3Serv",3]
[null,540000.01,7.5399999999999995E-2,3.5000000000000001E-3,3.5000000000000001E-3,1.04E-2,2.5000000000000001E-3,2.9899999999999999E-2,2.5600000000000001E-2,null,null,null,null,"agência terceirizada de correios",3,"Tab3Serv",3]
[null,720000.01,7.5999999999999998E-2,3.5000000000000001E-3,3.5000000000000001E-3,1.0500000000000001E-2,2.5000000000000001E-3,3.0200000000000001E-2,2.58E-2,null,null,null,null,"agência de viagem e turismo",3,"Tab3Serv",3]
[null,900000.01,8.2799999999999999E-2,3.8E-3,3.8E-3,1.15E-2,2.7000000000000001E-3,3.2800000000000003E-2,2.8199999999999999E-2,null,null,null,null,"centro de formação de condutores de veículos automotores de transporte terrestre de passageiros e de carga",3,"Tab3Serv",3]
[null,1080000.01,8.3600000000000008E-2,3.8999999999999998E-3,3.8999999999999998E-3,1.1599999999999999E-2,2.8E-3,3.3000000000000002E-2,2.8400000000000002E-2,null,null,null,null,"agência lotérica",3,"Tab3Serv",3]
[null,1260000.01,8.4500000000000006E-2,3.8999999999999998E-3,3.8999999999999998E-3,1.17E-2,2.8E-3,3.3500000000000002E-2,2.87E-2,null,null,null,null,"serviços de manutenção e reparação de automóveis, caminhões, ônibus, outros veículos pesados, tratores, máquinas e equipamentos agrícolas",3,"Tab3Serv",3]
[null,1440000.01,9.0300000000000005E-2,4.1999999999999997E-3,4.1999999999999997E-3,1.2500000000000001E-2,3.0000000000000001E-3,3.5700000000000003E-2,3.0700000000000002E-2,null,null,null,null,"serviços de instalação, manutenção e reparação de acessórios para veículos automotores",3,"Tab3Serv",3]
[null,1620000.01,9.1200000000000003E-2,4.3E-3,4.3E-3,1.26E-2,3.0000000000000001E-3,3.5999999999999997E-2,3.1E-2,null,null,null,null,"serviços de manutenção e reparação de motocicletas, motonetas e bicicletas",3,"Tab3Serv",3]
[null,1800000.01,9.9499999999999991E-2,4.5999999999999999E-3,4.5999999999999999E-3,1.38E-2,3.3E-3,3.9399999999999998E-2,3.3799999999999997E-2,null,null,null,null,"serviços de instalação, manutenção e reparação de máquinas de escritório e de informática",3,"Tab3Serv",3]
[null,1980000.01,0.10039999999999999,4.5999999999999999E-3,4.5999999999999999E-3,1.3899999999999999E-2,3.3E-3,3.9899999999999998E-2,3.4099999999999998E-2,null,null,null,null,"serviços de reparos hidráulicos, elétricos, pintura e carpintaria em residências ou estabelecimentos civis ou empresariais, bem como manutenção e reparação de aparelhos eletrodomésticos",3,"Tab3Serv",3]
[null,2160000.0099999998,0.1013,4.7000000000000002E-3,4.7000000000000002E-3,1.4E-2,3.3E-3,4.0099999999999997E-2,3.4500000000000003E-2,null,null,null,null,"serviços de instalação e manutenção de aparelhos e sistemas de ar condicionado, refrigeração, ventilação, aquecimento e tratamento de ar em ambientes controlados",3,"Tab3Serv",3]
[null,2340000.0099999998,0.1023,4.7000000000000002E-3,4.7000000000000002E-3,1.4200000000000001E-2,3.3999999999999998E-3,4.0500000000000001E-2,3.4799999999999998E-2,null,null,null,null,"veículos de comunicação, de radiodifusão sonora e de sons e imagens, e mídia externa",3,"Tab3Serv",3]
[null,2520000.0099999998,0.10319999999999999,4.7999999999999996E-3,4.7999999999999996E-3,1.43E-2,3.3999999999999998E-3,4.0800000000000003E-2,3.5099999999999999E-2,null,null,null,null,"construção de imóveis e obras de engenharia em geral, inclusive sob a forma de subempreitada",4,"Tab4Serv",4]
[null,2700000.01,0.1123,5.1999999999999998E-3,5.1999999999999998E-3,1.5599999999999999E-2,3.7000000000000002E-3,4.4400000000000002E-2,3.8199999999999998E-2,null,null,null,null,"transporte municipal de passageiros",4,"Tab4Serv",4]
[null,2880000.01,0.1132,5.1999999999999998E-3,5.1999999999999998E-3,1.5699999999999999E-2,3.7000000000000002E-3,4.4900000000000002E-2,3.85E-2,null,null,null,null,"empresas montadoras de estandes para feiras",5,{"$f":"IF(CalcR<0.3,\"Tab5030\",IF(CalcR>=0.4,\"Tab5040\",IF(CalcR<0.35,\"Tab5030035\",\"Tab5035040\")))","v":"Tab5040"},5]
[null,3060000.01,0.1142,5.3E-3,5.3E-3,1.5800000000000002E-2,3.8E-3,4.5199999999999997E-2,3.8800000000000001E-2,null,null,null,null,"escolas livres, de línguas estrangeiras, artes, cursos técnicos e gerenciais",3,"Tab3Serv",3]
[null,3240000.01,0.11510000000000001,5.3E-3,5.3E-3,1.6E-2,3.8E-3,4.5600000000000002E-2,3.9100000000000003E-2,null,null,null,null,"produção cultural e artística",4,"Tab4Serv",4]
[null,3420000.01,0.11610000000000001,5.4000000000000003E-3,5.4000000000000003E-3,1.6E-2,3.8E-3,4.5999999999999999E-2,3.95E-2,null,null,null,null,"produção cinematográfica e de artes cênicas",3,"Tab3Serv",3]
[null,null,null,null,null,null,null,null,null,null,null,null,null,"cumulativamente administração e locação de imóveis de terceiros",5,{"$f":"IF(CalcR<0.3,\"Tab5030\",IF(CalcR>=0.4,\"Tab5040\",IF(CalcR<0.35,\"Tab5030035\",\"Tab5035040\")))","v":"Tab5040"},4]
[null,"DE / ATÉ","ALÍQUOTA","IRPJ","CSLL","COFINS","PIS/PASEP","INSS","ICMS","IPI",null,null,null,"academias de dança, de capoeira, de ioga e de artes marciais",5,"Tab5040",4]
[null,{"$f":"B4","v":0},{"$f":"SUM(D26:J26)","v":3.2500000000000001E-2},0,0,0,0,2.75E-2,null,5.0000000000000001E-3,null,null,null,"academias de atividades físicas, desportivas, de natação e escolas de esportes",5,"Tab5040",4]
[null,180000.01,{"$f":"SUM(D27:J27)","v":4.1099999999999998E-2},0,0,8.6E-3,0,2.75E-2,null,5.0000000000000001E-3,null,null,null,"elaboração de programas de computadores, inclusive jogos eletrônicos, desde que desenvolvidos em estabelecimento do optante",5,"Tab5040",4]
[null,360000.01,5.0099999999999999E-2,2.7000000000000001E-3,3.0999999999999999E-3,9.4999999999999998E-3,2.3E-3,2.75E-2,null,5.0000000000000001E-3,null,null,null,"licenciamento ou cessão de direito de uso de programas de computação",5,"Tab5040",4]
[null,540000.01,8.0399999999999999E-2,3.5000000000000001E-3,3.5000000000000001E-3,1.04E-2,2.5000000000000001E-3,2.9899999999999999E-2,2.5600000000000001E-2,5.0000000000000001E-3,null,null,null,"planejamento, confecção, manutenção e atualização de páginas eletrônicas, desde que realizados em estabelecimento do optante",5,"Tab5040",4]
[null,720000.01,8.1000000000000003E-2,3.5000000000000001E-3,3.5000000000000001E-3,1.0500000000000001E-2,2.5000000000000001E-3,3.0200000000000001E-2,2.58E-2,5.0000000000000001E-3,null,null,null,"escritórios de serviços contábeis",3,"Tab3Serv",3]
[null,900000.01,8.7800000000000003E-2,3.8E-3,3.8E-3,1.15E-2,2.7000000000000001E-3,3.2800000000000003E-2,2.8199999999999999E-2,5.0000000000000001E-3,null,null,null,"serviço de vigilância, limpeza ou conservação",5,"Tab5040",4]
[null,1080000.01,8.8600000000000012E-2,3.8999999999999998E-3,3.8999999999999998E-3,1.1599999999999999E-2,2.8E-3,3.3000000000000002E-2,2.8400000000000002E-2,5.0000000000000001E-3,null,null,null,"Transporte intermunicipal e interestadual de carga",6,"Tab5040",2]
[null,1260000.01,8.950000000000001E-2,3.8999999999999998E-3,3.8999999999999998E-3,1.17E-2,2.8E-3,3.3500000000000002E-2,2.87E-2,5.0000000000000001E-3,null,null,null,"Outros Serviços - Não Vetados",3,"Tab3Serv",3]
[null,1440000.01,9.530000000000001E-2,4.1999999999999997E-3,4.1999999999999997E-3,1.2500000000000001E-2,3.0000000000000001E-3,3.5700000000000003E-2,3.0700000000000002E-2,5.0000000000000001E-3,null,null,null,"Ramo Vetado ao SuperSimples","Vetado","TabPres",4]
[null,1620000.01,9.6200000000000008E-2,4.1999999999999997E-3,4.1999999999999997E-3,1.26E-2,3.0000000000000001E-3,3.6200000000000003E-2,3.1E-2,5.0000000000000001E-3]
[null,1800000.01,0.1045,4.5999999999999999E-3,4.5999999999999999E-3,1.38E-2,3.3E-3,3.9399999999999998E-2,3.3799999999999997E-2,5.0000000000000001E-3,null,null,null,{"$f":"IF(AND(Eind=\"V\",Ecom=\"V\"),\"V\",\"F\")","v":"F"}]
[null,1980000.01,0.10539999999999999,4.5999999999999999E-3,4.5999999999999999E-3,1.3899999999999999E-2,3.3E-3,3.9899999999999998E-2,3.4099999999999998E-2,5.0000000000000001E-3,null,null,null,{"$f":"IF(ISERROR(MATCH(5,Atividades.Anexo,0)),IF(ISERROR(MATCH(6,Atividades.Anexo,0)),\"F\",\"V\"),\"V\")","v":"F"}]
[null,2160000.0099999998,0.10630000000000001,4.7000000000000002E-3,4.7000000000000002E-3,1.4E-2,3.3E-3,4.0099999999999997E-2,3.4500000000000003E-2,5.0000000000000001E-3,null,null,null,{"$f":"IF(ISERROR(MATCH(4,Atividades.Anexo,0)),\"F\",\"V\")","v":"F"}]
[null,2340000.0099999998,0.10730000000000001,4.7000000000000002E-3,4.7000000000000002E-3,1.4200000000000001E-2,3.3999999999999998E-3,4.0500000000000001E-2,3.4799999999999998E-2,5.0000000000000001E-3,null,null,null,{"$f":"IF(ISERROR(MATCH(3,Atividades.Anexo,0)),\"F\",\"V\")","v":"F"}]
[null,2520000.0099999998,0.10819999999999999,4.7999999999999996E-3,4.7999999999999996E-3,1.43E-2,3.3999999999999998E-3,4.0800000000000003E-2,3.5099999999999999E-2,5.0000000000000001E-3,null,null,null,{"$f":"IF(ISERROR(MATCH(2,Atividades.Anexo,0)),\"F\",\"V\")","v":"F"}]
[null,2700000.01,0.1173,5.1999999999999998E-3,5.1999999999999998E-3,1.5599999999999999E-2,3.7000000000000002E-3,4.4400000000000002E-2,3.8199999999999998E-2,5.0000000000000001E-3,null,null,null,{"$f":"IF(ISERROR(MATCH(1,Atividades.Anexo,0)),\"F\",\"V\")","v":"V"}]
[null,2880000.01,0.1182,5.1999999999999998E-3,5.1999999999999998E-3,1.5699999999999999E-2,3.7000000000000002E-3,4.4900000000000002E-2,3.85E-2,5.0000000000000001E-3,null,null,null,{"$f":"IF(Tributos!C45=\"X\",\"V\",\"F\")","v":"F"}]
[null,3060000.01,0.1192,5.3E-3,5.3E-3,1.5800000000000002E-2,3.8E-3,4.5199999999999997E-2,3.8800000000000001E-2,5.0000000000000001E-3,null,null,null,{"$f":"IF(Tributos!C46=\"X\",\"V\",\"F\")","v":"F"}]
[null,3240000.01,0.12010000000000001,5.3E-3,5.3E-3,1.6E-2,3.8E-3,4.5600000000000002E-2,3.9100000000000003E-2,5.0000000000000001E-3,null,null,null,{"$f":"IF(Tributos!C47=\"X\",\"V\",\"F\")","v":"F"}]
[null,3420000.01,0.12110000000000001,5.4000000000000003E-3,5.4000000000000003E-3,1.6E-2,3.8E-3,4.5999999999999999E-2,3.95E-2,5.0000000000000001E-3,null,null,"R",{"$f":"((Folha+Encargos)*12)/Rbruta","v":18.894988066825775}]
[null,null,null,null,null,null,null,null,null,null,null,null,null,{"$f":"IF(ISERROR(MATCH(\"vetado\",Atividades.Anexo,0)),\"F\",\"V\")","v":"F"}]
[null,"DE / ATÉ","ALÍQUOTA","IRPJ","CSLL","COFINS","PIS/PASEP","INSS",null,null,null,null,null,{"$f":"IF(Tributos!C44=\"X\",\"V\",\"F\")","v":"F"}]
[null,{"$f":"B4","v":0},{"$f":"SUM(D48:H48)","v":0.04},0,3.8999999999999998E-3,1.1900000000000001E-2,0,2.4199999999999999E-2]
[null,{"$f":"B5","v":180000.01},{"$f":"SUM(D49:H49)","v":5.4199999999999998E-2},0,5.4000000000000003E-3,1.6199999999999999E-2,0,3.2599999999999997E-2,null,null,null,null,null,"CMV",{"$f":"CDT","v":12500}]
[null,360000.01,6.7599999999999993E-2,4.7999999999999996E-3,4.3E-3,1.43E-2,3.5000000000000001E-3,4.07E-2,null,null,null,null,null,"Custos Fixos",{"$f":"CustoFixo!D69","v":660971.30666666676}]
[null,540000.01,7.4700000000000003E-2,5.3E-3,5.3E-3,1.5599999999999999E-2,3.8E-3,4.4699999999999997E-2,null,null,null,null,null,"Investimentos"]
[null,720000.01,7.5300000000000006E-2,5.3E-3,5.1999999999999998E-3,1.5800000000000002E-2,3.8E-3,4.5199999999999997E-2,null,null,null,null,null,"Despesas Totais",{"$f":"SUM(O49:O51)","v":673471.30666666676}]
[null,900000.01,8.1900000000000001E-2,5.7000000000000002E-3,5.7000000000000002E-3,1.7299999999999999E-2,4.0000000000000001E-3,4.9200000000000001E-2]
[null,1080000.01,8.2799999999999999E-2,5.8999999999999999E-3,5.5999999999999999E-3,1.7399999999999999E-2,4.1999999999999997E-3,4.9700000000000001E-2]
[null,1260000.01,8.3699999999999997E-2,5.8999999999999999E-3,5.7000000000000002E-3,1.7600000000000001E-2,4.1999999999999997E-3,5.0299999999999997E-2]
[null,1440000.01,8.9400000000000007E-2,6.3E-3,6.1000000000000004E-3,1.8800000000000001E-2,4.4999999999999997E-3,5.3699999999999998E-2,null,null,null,null,null,"Encargos",{"$f":"IF(Tributos!C45=\"X\",Tributos!E38,0)+IF(Tributos!C46=\"X\",Tributos!G38,0)+IF(Tributos!C47=\"X\",Tributos!I38,0)","v":0}]
[null,1620000.01,9.0299999999999991E-2,6.3E-3,6.4000000000000003E-3,1.89E-2,4.4999999999999997E-3,5.4199999999999998E-2]
[null,1800000.01,9.9299999999999999E-2,6.8999999999999999E-3,6.8999999999999999E-3,2.07E-2,5.0000000000000001E-3,5.9799999999999999E-2]
[null,1980000.01,0.10059999999999999,6.8999999999999999E-3,6.8999999999999999E-3,2.0899999999999998E-2,5.0000000000000001E-3,6.0900000000000003E-2]
[null,2160000.0099999998,0.10200000000000001,7.1000000000000004E-3,7.0000000000000001E-3,2.1000000000000001E-2,5.0000000000000001E-3,6.1899999999999997E-2]
[null,2340000.0099999998,0.10350000000000001,7.1000000000000004E-3,7.0000000000000001E-3,2.1299999999999999E-2,5.1000000000000004E-3,6.3E-2]
[null,2520000.0099999998,0.1048,7.1999999999999998E-3,7.0000000000000001E-3,2.1499999999999998E-2,5.1000000000000004E-3,6.4000000000000001E-2,null,null,null,null,null,"EI"]
[null,2700000.01,0.11849999999999999,7.7999999999999996E-3,7.6E-3,2.3400000000000001E-2,5.5999999999999999E-3,7.4099999999999999E-2]
[null,2880000.01,0.11979999999999999,7.7999999999999996E-3,7.7999999999999996E-3,2.3599999999999999E-2,5.5999999999999999E-3,7.4999999999999997E-2,null,null,null,null,null,"COM",28.25]
[null,3060000.01,0.12129999999999999,8.0000000000000002E-3,7.9000000000000008E-3,2.3699999999999999E-2,5.7000000000000002E-3,7.5999999999999998E-2,null,null,null,null,null,"IND",28.25]
[null,3240000.01,0.1227,8.0000000000000002E-3,7.9000000000000008E-3,2.4E-2,5.7000000000000002E-3,7.7100000000000002E-2,null,null,null,null,null,"SERV",32.25]
[null,3420000.01,0.12419999999999999,8.0999999999999996E-3,7.9000000000000008E-3,2.4199999999999999E-2,5.7000000000000002E-3,7.8299999999999995E-2,null,null,null,null,null,"COMBINADO",33.25]
[]
[]
[null,"DE / ATÉ","ALÍQUOTA","IRPJ","CSLL","COFINS","PIS/PASEP","INSS","ISS",null,null,null,null,"Limite EI",60000]
[null,{"$f":"B4","v":0},{"$f":"SUM(D71:I71)","v":0.06},0,0,0,0,0.04,0.02,null,null,null,null,"Limite Simples",3600000]
[null,180000.01,{"$f":"SUM(D72:I72)","v":8.2100000000000006E-2},0,0,1.4200000000000001E-2,0,0.04,2.7900000000000001E-2]
[null,360000.01,0.1026,4.7999999999999996E-3,4.3E-3,1.43E-2,3.5000000000000001E-3,4.07E-2,3.5000000000000003E-2]
[null,540000.01,0.11310000000000001,5.3E-3,5.3E-3,1.5599999999999999E-2,3.8E-3,4.4699999999999997E-2,3.8399999999999997E-2]
[null,720000.01,0.114,5.3E-3,5.1999999999999998E-3,1.5800000000000002E-2,3.8E-3,4.5199999999999997E-2,3.8699999999999998E-2]
[null,900000.01,0.1242,5.7000000000000002E-3,5.7000000000000002E-3,1.7299999999999999E-2,4.0000000000000001E-3,4.9200000000000001E-2,4.2299999999999997E-2]
[null,1080000.01,0.12540000000000001,5.8999999999999999E-3,5.5999999999999999E-3,1.7399999999999999E-2,4.1999999999999997E-3,4.9700000000000001E-2,4.2599999999999999E-2]
[null,1260000.01,0.1268,5.8999999999999999E-3,5.7000000000000002E-3,1.7600000000000001E-2,4.1999999999999997E-3,5.0299999999999997E-2,4.3099999999999999E-2]
[null,1440000.01,0.13550000000000001,6.3E-3,6.1000000000000004E-3,1.8800000000000001E-2,4.4999999999999997E-3,5.3699999999999998E-2,4.6100000000000002E-2,null,null,null,null,"Ocupação","Descrição de Objeto","CNAE","Descrição da Subclasse","CN","CLASS"]
[null,1620000.01,0.13679999999999998,6.3E-3,6.4000000000000003E-3,1.89E-2,4.4999999999999997E-3,5.4199999999999998E-2,4.65E-2,null,null,null,null,"Acabador de calçados","Serviços de costura, pesponto e outros acabamentos em calçados de couro - Acabador de calçados","1531-9/02","Acabamento de calçados de couro sob contrato",{"$f":"VALUE(LEFT(P80,2))","v":15},{"$f":"IF(R80<35,\"IND\",IF(AND(R80>=45,R80<=47),\"COM\",\"SERV\"))","v":"IND"}]
[null,1800000.01,0.14929999999999999,6.8999999999999999E-3,6.8999999999999999E-3,2.07E-2,5.0000000000000001E-3,5.9799999999999999E-2,0.05,null,null,null,null,"Açougueiro","Comércio varejista de carnes - Acougueiro","4722-9/01","Comércio varejista de carnes - açougues",{"$f":"VALUE(LEFT(P81,2))","v":47},{"$f":"IF(R81<35,\"IND\",IF(AND(R81>=45,R81<=47),\"COM\",\"SERV\"))","v":"COM"}]
[null,1980000.01,0.15060000000000001,6.8999999999999999E-3,6.8999999999999999E-3,2.0899999999999998E-2,5.0000000000000001E-3,6.0900000000000003E-2,0.05,null,null,null,null,"Adestrador de animais","Serviços de adestramento de animais - Adestrador de animais.","9609-2/03","Alojamento, higiene e embelezamento de animais",96,"SERV"]
[null,2160000.0099999998,0.15200000000000002,7.1000000000000004E-3,7.0000000000000001E-3,2.1000000000000001E-2,5.0000000000000001E-3,6.1899999999999997E-2,0.05,null,null,null,null,"Adestrador de cães de guarda","Serviços de adestramento de cães de guarda - Adestrador de cães de guarda","8011-1/02","Serviços de adestramento de cães de guarda",80,"SERV"]
[null,2340000.0099999998,0.15350000000000003,7.1000000000000004E-3,7.0000000000000001E-3,2.1299999999999999E-2,5.1000000000000004E-3,6.3E-2,0.05,null,null,null,null,"Agente de correio franqueado","Serviços de Atividades de franqueadas e permissionárias do Correio Nacional - Agente de correio franqueado","5310-5/02","Atividades de franqueadas e permissionárias do Correio Nacional",53,"SERV"]
[null,2520000.0099999998,0.15479999999999999,7.1999999999999998E-3,7.0000000000000001E-3,2.1499999999999998E-2,5.1000000000000004E-3,6.4000000000000001E-2,0.05,null,null,null,null,"Agente de viagens","Serviço de organização e venda de viagens, pacotes turísticos e excursões - Agente de viagens","7911-2/00","Agências de viagens",79,"SERV"]
[null,2700000.01,0.16849999999999998,7.7999999999999996E-3,7.6E-3,2.3400000000000001E-2,5.5999999999999999E-3,7.4099999999999999E-2,0.05,null,null,null,null,"Agente funerário","Serviços de funerárias - Agente funerário","9603-3/04","Serviços de funerárias",96,"SERV"]
[null,2880000.01,0.16980000000000001,7.7999999999999996E-3,7.7999999999999996E-3,2.3599999999999999E-2,5.5999999999999999E-3,7.4999999999999997E-2,0.05,null,null,null,null,"Agente matrimonial","Serviços de agenciamento matrimonial - Agente matrimonial","9609-2/02","Agências matrimoniais",96,"SERV"]
[null,3060000.01,0.17130000000000001,8.0000000000000002E-3,7.9000000000000008E-3,2.3699999999999999E-2,5.7000000000000002E-3,7.5999999999999998E-2,0.05,null,null,null,null,"Alfaiate","Confecção, sob medida, de peças do vestuário - Alfaiate","1412-6/02","Confecção, sob medida, de peças do vestuário, exceto roupas íntimas",14,"IND"]
[null,3240000.01,0.17270000000000002,8.0000000000000002E-3,7.9000000000000008E-3,2.4E-2,5.7000000000000002E-3,7.7100000000000002E-2,0.05,null,null,null,null,"Alinhador de pneus","Serviços de alinhamento de pneus de veículos automotores - Alinhador de pneus.","4520-0/04","Serviços de alinhamento e balanceamento de veículos automotores",45,"COM"]
[null,3420000.01,0.17419999999999999,8.0999999999999996E-3,7.9000000000000008E-3,2.4199999999999999E-2,5.7000000000000002E-3,7.8299999999999995E-2,0.05,null,null,null,null,"Amolador de artigos de cutelaria","Serviços de reparação e manutenção de artigos de cutelaria  - Amolador de artigos de cutelaria. ","9529-1/99","Reparação e manutenção de outros objetos e equipamentos pessoais e domésticos não especificados anteriormente",95,"SERV"]
[null,null,null,null,null,null,null,null,null,null,null,null,null,"Animador de festas","Serviços de animação e recreação em festas e eventos  - Animador de festas.","9329-8/99","Outras atividades de recreação e lazer não especificadas anteriormente",93,"SERV"]
[null,"DE / ATÉ","ALÍQUOTA","IRPJ","CSLL","COFINS","PIS/PASEP","INSS","ISS",null,null,null,null,"Antiquário","Comércio varejista de antigüidades - Antiquário","4785-7/01","Comércio varejista de antigüidades",47,"COM"]
[null,{"$f":"B4","v":0},4.4999999999999998E-2,0,1.2200000000000001E-2,1.2800000000000001E-2,0,0,0.02,null,null,null,null,"Aplicador agrícola","Serviço de pulverização de lavouras e controle de pragas agrícolas - Aplicador agrícola","0161-0/01","Serviço de pulverização e controle de pragas agrícolas",1,"IND"]
[null,180000.01,6.54E-2,0,1.84E-2,1.9099999999999999E-2,0,0,2.7900000000000001E-2,null,null,null,null,"Apurador, coletor e fornecedor de recortes de matérias publicadas em jornais e revistas","Serviço de levantamento de informações e fornecimento de sinopses das principais notícias na mídia impressa e/ou eletrônica - Apurador, coletor e fornecedor de recortes de matérias publicadas em jornais e revistas","6399-2/00","Outras atividades de prestação de serviços de informação não especificadas anteriormente",63,"SERV"]
[null,360000.01,7.6999999999999999E-2,1.6000000000000001E-3,1.8499999999999999E-2,1.95E-2,2.3999999999999998E-3,0,3.5000000000000003E-2,null,null,null,null,"Armador de ferragens na construção civil","Fabricação de armações metálicas para a construção civil - Armador de ferragens na construção civil","2599-3/01","Serviços de confecção de armações metálicas para a construção",25,"IND"]
[null,540000.01,8.4900000000000003E-2,5.1999999999999998E-3,1.8700000000000001E-2,1.9900000000000001E-2,2.7000000000000001E-3,0,3.8399999999999997E-2,null,null,null,null,"Arquivista de documentos","Serviços de arquivamento e de organização de documentos - Arquivista de documentos","8211-3/00","Serviços combinados de escritório e apoio administrativo",82,"SERV"]
[null,720000.01,8.9700000000000002E-2,8.8999999999999999E-3,1.89E-2,2.0299999999999999E-2,2.8999999999999998E-3,0,3.8699999999999998E-2,null,null,null,null,"Artesão de bijuterias","Fabricação de bijuterias e artefatos semelhantes - Artesão de bijuterias","3212-4/00","Fabricação de bijuterias e artefatos semelhantes",32,"IND"]
[null,900000.01,9.7799999999999998E-2,1.2500000000000001E-2,1.9099999999999999E-2,2.07E-2,3.2000000000000002E-3,0,4.2299999999999997E-2,null,null,null,null,"Artesão em borracha","Fabricação de produtos artesanais em borracha - Artesão em borracha","2219-6/00","Fabricação De Artefatos De Borracha Não Especificados Anteriormente",22,"IND"]
[null,1080000.01,0.1026,1.6199999999999999E-2,1.9300000000000001E-2,2.1100000000000001E-2,3.3999999999999998E-3,0,4.2599999999999999E-2,null,null,null,null,"Artesão em cerâmica","Fabricação de produtos artesanais cerâmicos - Artesão em cerâmica","2349-4/99","Fabricação de produtos cerâmicos não-refratários não especificados anteriormente",23,"IND"]
[null,1260000.01,0.1076,0.02,1.95E-2,2.1499999999999998E-2,3.5000000000000001E-3,0,4.3099999999999999E-2,null,null,null,null,"Artesão em cortiça, bambu e afins","Fabricação de produtos artesanais de cortiça, bambu, palha, vime e outros materiais trançados - Artesão em cortiça, bambu e afins","1629-3/02","Fabricação de artefatos diversos de cortiça, bambu, palha, vime e outros materiais trançados, exceto móveis",16,"IND"]
[null,1440000.01,0.11509999999999999,2.3699999999999999E-2,1.9699999999999999E-2,2.1899999999999999E-2,3.7000000000000002E-3,0,4.6100000000000002E-2,null,null,null,null,"Artesão em couro","Fabricação de produtos artesanais em couro - Artesão em couro","1529-7/00","Fabricação de artefatos de couro não especificados anteriormente",15,"IND"]
[null,1620000.01,0.12,2.7400000000000001E-2,0.02,2.23E-2,3.8E-3,0,4.65E-2,null,null,null,null,"Artesão em gesso ","Fabricação de produtos artesanais em gesso - Artesão em gesso","2330-3/99","Fabricação De Outros Artefatos E Produtos De Concreto, Cimento, Fibrocimento, Gesso E Materiais Semelhantes",23,"IND"]
[null,1800000.01,0.128,3.1199999999999999E-2,2.01E-2,2.2700000000000001E-2,4.0000000000000001E-3,0,0.05,null,null,null,null,"Artesão em louças, vidro e cristal","Serviços de decoração, lapidação, gravação, vitrificação e outros trabalhos em louça, vidro e cristal - Artesão em louças, vidro e cristal","2399-1/01","Decoração, lapidação, gravação, vitrificação e outros trabalhos em cerâmica, louça, vidro e cristal",23,"IND"]
[null,1980000.01,0.13250000000000001,3.49E-2,2.0299999999999999E-2,2.3099999999999999E-2,4.1999999999999997E-3,0,0.05,null,null,null,null,"Artesão em madeira","Fabricação de produtos artesanais em madeira - Artesão em madeira","1629-3/01","Fabricação de artefatos diversos de madeira, exceto móveis",16,"IND"]
[null,2160000.0099999998,0.13700000000000001,3.8600000000000002E-2,2.0500000000000001E-2,2.35E-2,4.4000000000000003E-3,0,0.05,null,null,null,null,"Artesão em mármore","Fabricação de produtos artesanais em mármore - Artesão em mármore","2391-5/03","Aparelhamento De Placas E Execução De Trabalhos Em Mármore, Granito, Ardósia E Outras Pedras",23,"IND"]
[null,2340000.0099999998,0.14149999999999999,4.2299999999999997E-2,2.07E-2,2.3900000000000001E-2,4.5999999999999999E-3,0,0.05,null,null,null,null,"Artesão em materiais diversos","Fabricação de produtos artesanais em materiais diversos - Artesão em materiais diversos","3299-0/99","Fabricação de produtos diversos não especificados anteriormente",32,"IND"]
[null,2520000.0099999998,0.14599999999999999,4.5999999999999999E-2,2.1000000000000001E-2,2.4299999999999999E-2,4.7000000000000002E-3,0,0.05,null,null,null,null,"Artesão em metais","Fabricação de produtos artesanais em metal - Artesão em metais. - Artesão em metais","2599-3/99","Fabricação De Outros Produtos De Metal Não Especificados Anteriormente",25,"IND"]
[null,2700000.01,0.15049999999999999,4.9000000000000002E-2,2.1899999999999999E-2,2.47E-2,4.8999999999999998E-3,0,0.05,null,null,null,null,"Artesão em metais preciosos","Fabricação de produtos artesanais em metais preciosos - Artesão em metais preciosos","3211-6/02","Fabricação de artefatos de joalheria e ourivesaria",32,"IND"]
[null,2880000.01,0.155,5.21E-2,2.2700000000000001E-2,2.5100000000000001E-2,5.1000000000000004E-3,0,0.05,null,null,null,null,"Artesão em papel","Fabricação de produtos artesanais em papel - Artesão em papel.","1749-4/00","Fabricação de produtos de pastas celulósicas, papel, cartolina, papel-cartão e papelão ondulado não especificados anteriormente",17,"IND"]
[null,3060000.01,0.1595,5.5100000000000003E-2,2.3599999999999999E-2,2.5499999999999998E-2,5.3E-3,0,0.05,null,null,null,null,"Artesão em plástico","Fabricação de produtos artesanais em material plástico - Artesão em plástico. - Artesão em plástico","2229-3/99","Fabricação De Artefatos De Material Plástico Para Outros Usos Não Especificados Anteriormente",22,"IND"]
[null,3240000.01,0.16400000000000001,5.8099999999999999E-2,2.4500000000000001E-2,2.5899999999999999E-2,5.4999999999999997E-3,0,0.05,null,null,null,null,"Artesão em vidro","Fabricação de produtos artesanais em vidro - Artesão em vidro","2319-2/00","Fabricação De Artigos De Vidro",23,"IND"]
[null,3420000.01,0.16850000000000001,6.1199999999999997E-2,2.53E-2,2.63E-2,5.7000000000000002E-3,0,0.05,null,null,null,null,"Astrólogo","Serviços de astrologia - Astrólogo.","9609-2/99","Outras atividades de serviços pessoais não especificadas anteriormente",96,"SERV"]
[null,null,null,null,null,null,null,null,null,null,null,null,null,"Azulejista","Serviços de colocação de azulejos - Azulejista.","4330-4/05","Aplicação de revestimentos e de resinas em interiores e exteriores",43,"SERV"]
[null,"DE / ATÉ","IRPJ, PIS/PASEP, COFINS E CSLL","IRPJ","CSLL","COFINS","PIS/PASEP",null,"ISS","INCLUÍDO O ISS","ICMS","INCLUINDO ICMS",null,"Balanceador de pneus","Serviços de balanceamento de pneus de veículos automotores - Balanceador de pneus.","4520-0/04","Serviços de alinhamento e balanceamento de veículos automotores",45,"COM"]
[null,{"$f":"B4","v":0},0.04,0,1.9599999999999999E-2,2.0400000000000001E-2,0,null,0.02,{"$f":"C115+I115","v":0.06},{"$f":"I4","v":0},{"$f":"C115+K115","v":0.04},null,"Baleiro","Comércio varejista de doces, balas, bombons, confeitos e semelhantes - Baleiro","4721-1/04","Comércio varejista de doces, balas, bombons e semelhantes",47,"COM"]
[null,180000.01,4.48E-2,0,2.1951999999999999E-2,2.2848E-2,0,null,2.7900000000000001E-2,{"$f":"C116+I116","v":7.2700000000000001E-2},{"$f":"I5","v":0},{"$f":"C116+K116","v":4.48E-2},null,"Banhista de animais domésticos","Serviços de banho em animais domésticos - Banhista de animais domésticos.","9609-2/03","Alojamento, higiene e embelezamento de animais",96,"SERV"]
[null,360000.01,4.9599999999999998E-2,2.232E-2,1.1408E-2,1.3392000000000001E-2,2.48E-3,null,3.5000000000000003E-2,8.4600000000000009E-2,0,4.9599999999999998E-2,null,"Barbeiro","Serviços de barbearia - Barbeiro.","9602-5/01","Cabeleireiros",96,"SERV"]
[null,540000.01,5.4399999999999997E-2,2.4479999999999998E-2,1.2512000000000001E-2,1.4688E-2,2.7200000000000002E-3,null,3.8399999999999997E-2,9.2799999999999994E-2,2.5600000000000001E-2,0.08,null,"Barqueiro","Serviços de transportes aquaviários por meio de barca - Barqueiro.","5099-8/99","Outros transportes aquaviários não especificados anteriormente",50,"SERV"]
[null,720000.01,5.9200000000000003E-2,2.664E-2,1.3616000000000001E-2,1.5984000000000002E-2,2.9600000000000004E-3,null,3.8699999999999998E-2,9.7900000000000001E-2,2.58E-2,8.5000000000000006E-2,null,"Barraqueiro","Comércio varejista de mercadorias em geral com predominância de produtos alimentícios - Barraqueiro.","4712-1/00","Comércio varejista de mercadorias em geral, com predominância de produtos alimentícios - minimercados, mercearias e armazéns",47,"COM"]
[null,900000.01,6.4000000000000001E-2,2.8800000000000003E-2,1.472E-2,1.728E-2,3.2000000000000002E-3,null,4.2299999999999997E-2,0.10630000000000001,2.8199999999999999E-2,9.2200000000000004E-2,null,"Beneficiador(a) de Castanha","FABRICAÇÃO DE CONSERVAS DE FRUTAS","1031-7/00","beneficiamento da castanha-de-caju e castanha-do-pará",10,"IND"]
[null,1080000.01,6.88E-2,3.0960000000000001E-2,1.5824000000000001E-2,1.8576000000000002E-2,3.4400000000000003E-3,null,4.2599999999999999E-2,0.1114,2.8400000000000002E-2,9.7200000000000009E-2,null,"Comerciante de produtos de higiene pessoal","COMÉRCIO VAREJISTA DE COSMÉTICOS, PRODUTOS DE PERFUMARIA E DE HIGIENE PESSOAL","4772-5/00","comércio varejista de cosméticos, produtos de perfumaria, de toucador e de higiene pessoal",47,"COM"]
[null,1260000.01,7.3599999999999999E-2,3.3120000000000004E-2,1.6928000000000002E-2,1.9872000000000001E-2,3.6800000000000001E-3,null,4.3099999999999999E-2,0.1167,2.87E-2,0.1023,null,"Fabricante de amendoim e castanha de caju torrados e salgados","FABRICAÇÃO DE CONSERVAS DE FRUTAS","1031-7/00","beneficiamento da castanha-de-caju e castanha-do-pará",10,"IND"]
[null,1440000.01,7.8399999999999997E-2,3.5279999999999999E-2,1.8031999999999999E-2,2.1167999999999999E-2,3.9199999999999999E-3,null,4.6100000000000002E-2,0.1245,3.0700000000000002E-2,0.1091,null,"Fabricante de polpa de frutas","FABRICAÇÃO DE CONSERVAS DE FRUTAS","1031-7/00","fabricação de polpas de frutas",10,"IND"]
[null,1620000.01,8.3199999999999996E-2,3.7440000000000001E-2,1.9136E-2,2.2464000000000001E-2,4.1599999999999996E-3,null,4.65E-2,0.12969999999999998,3.1E-2,0.1142,null,"Fabricante de sucos concentrados de frutas, hortaliças e legumes","FABRICAÇÃO DE SUCOS DE FRUTAS, HORTALIÇAS E LEGUMES","1033-3/01","fabricação de sucos concentrados de frutas, congelados ou não (sucos parcialmente desidratados, apresentando, no mínimo, concentração equivalente ao dobro da sua concentração natural, em grau Brix)",10,"IND"]
[null,1800000.01,8.7999999999999995E-2,3.9599999999999996E-2,2.0240000000000001E-2,2.376E-2,4.4000000000000003E-3,null,0.05,0.13800000000000001,3.3799999999999997E-2,0.12179999999999999,null,"Técnico(a) de sonorização e iluminação","ARTES CÊNICAS, ESPETÁCULOS E ATIVIDADES COMPLEMENTARES","9001-9/06","atividades de sonorização e iluminação de salas de teatro, de música e de outros espaços dedicados a atividades artísticas e culturais",{"$f":"VALUE(LEFT(P125,2))","v":90},{"$f":"IF(R125<35,\"IND\",IF(AND(R125>=45,R125<=47),\"COM\",\"SERV\"))","v":"SERV"}]
[null,1980000.01,9.2799999999999994E-2,4.1759999999999999E-2,2.1343999999999998E-2,2.5055999999999998E-2,4.64E-3,null,0.05,0.14279999999999998,3.4099999999999998E-2,0.12689999999999999,null,"Correspondentes de instituições financeiras","ATIVIDADES AUXILIARES DOS SERVIÇOS FINANCEIROS NÃO ESPECIFICADAS ANTERIORMENTE","6619-3/02","atividades de recebimento de depósitos e pagamentos de títulos sob contrato de instituições financeiras",{"$f":"VALUE(LEFT(P126,2))","v":66},{"$f":"IF(R126<35,\"IND\",IF(AND(R126>=45,R126<=47),\"COM\",\"SERV\"))","v":"SERV"}]
[null,2160000.0099999998,9.7600000000000006E-2,4.3920000000000001E-2,2.2448000000000003E-2,2.6352000000000004E-2,4.8800000000000007E-3,null,0.05,0.14760000000000001,3.4500000000000003E-2,0.1321,null,"Bikeboy (ciclista mensageiro)","Serviços de entrega rápida com utilização de bicicleta - Bikeboy.","5320-2/02","Serviços de entrega rápida",53,"SERV"]
[null,2340000.0099999998,0.1024,4.6080000000000003E-2,2.3552000000000003E-2,2.7648000000000002E-2,5.1200000000000004E-3,null,0.05,0.15240000000000001,3.4799999999999998E-2,0.13719999999999999,null,"Boiadeiro/vaqueiro","Serviço de manejo de animais: condução e pastoreio - Boiadeiro/vaqueiro","0162-8/03","Serviço de manejo de animais",1,"IND"]
[null,2520000.0099999998,0.1072,4.8240000000000005E-2,2.4656000000000001E-2,2.8944000000000004E-2,5.3600000000000002E-3,null,0.05,0.15720000000000001,3.5099999999999999E-2,0.14230000000000001,null,"Bolacheiro/Biscoiteiro","Fabricação de biscoitos, bolachas, casquinhas para sorvetes e fôrmas para recheios - Bolacheiro/Biscoiteiro","1092-9/00","Fabricação de biscoitos e bolachas",10,"IND"]
[null,2700000.01,0.112,5.04E-2,2.5760000000000002E-2,3.0240000000000003E-2,5.6000000000000008E-3,null,0.05,0.16200000000000001,3.8199999999999998E-2,0.1502,null,"Bombeiro hidráulico","Serviços de instalação e manutenção hidráulica - Bombeiro hidráulico.","4322-3/01","Instalações hidráulicas, sanitárias e de gás",43,"SERV"]
[null,2880000.01,0.1168,5.2560000000000003E-2,2.6864000000000002E-2,3.1536000000000002E-2,5.8400000000000006E-3,null,0.05,0.1668,3.85E-2,0.15529999999999999,null,"Boneleiro (fabricante de bonés)","Fabricação de bonés - Boneleiro (fabricante de bonés)","1414-2/00","Fabricação de acessórios do vestuário, exceto para segurança e proteção",14,"IND"]
[null,3060000.01,0.1216,5.4719999999999998E-2,2.7968E-2,3.2832E-2,6.0800000000000003E-3,null,0.05,0.1716,3.8800000000000001E-2,0.16039999999999999,null,"Bordadeira ","Confecção de bordados - Bordadeira.","1340-5/99","Outros serviços de acabamento em fios, tecidos, artefatos têxteis e peças do vestuário",13,"IND"]
[null,3240000.01,0.12640000000000001,5.6880000000000007E-2,2.9072000000000004E-2,3.4128000000000006E-2,6.320000000000001E-3,null,0.05,0.1764,3.9100000000000003E-2,{"$f":"C133+K133","v":0.16550000000000001},null,"Borracheiro","Serviços de borracharia para veículos automotores","4520-0/06","Serviços de borracharia para veículos automotores",45,"COM"]
[null,3420000.01,0.13500000000000001,6.0750000000000005E-2,3.1050000000000005E-2,3.6450000000000003E-2,6.7500000000000008E-3,null,0.05,0.185,3.95E-2,0.17450000000000002,null,"Britador","Serviço de britamento de pedras não associado à extração - Britador","2391-5/01","Britamento de pedras, exceto associado à extração",23,"IND"]
[null,null,null,null,null,null,null,null,null,null,null,null,null,"Cabeleireiro","Serviços de cabeleireiro - Cabeleireiro","9602-5/01","Cabeleireiros",96,"SERV"]
[null,"DE / ATÉ","IRPJ, PIS/PASEP, COFINS E CSLL","IRPJ","CSLL","COFINS","PIS/PASEP",null,"ISS","INCLUÍDO O ISS","ICMS","INCLUINDO ICMS",null,"Caçador","Serviço de caça convencional, captura de animais, mortos ou vivos, para alimentação, para obtenção de couros e peles, para pesquisa, para utilização em zoológicos ou como animais de estimação - Caçador","0170-9/00","Caça e serviços relacionados",1,"IND"]
[null,{"$f":"B4","v":0},0.14000000000000001,0,6.8600000000000008E-2,7.1400000000000005E-2,0,null,0.02,{"$f":"C137+I137","v":0.16},{"$f":"I26","v":0},{"$f":"C137+K137","v":0.14000000000000001},null,"Calafetador","Serviços de aplicação de revestimentos e de resinas em interiores e exteriores - Calafetador.","4330-4/05","Aplicação de revestimentos e de resinas em interiores e exteriores",43,"SERV"]
[null,180000.01,0.14000000000000001,0,6.8600000000000008E-2,7.1400000000000005E-2,0,null,2.7900000000000001E-2,{"$f":"C138+I138","v":0.16790000000000002},{"$f":"I27","v":0},{"$f":"C138+K138","v":0.14000000000000001},null,"Caminhoneiro de cargas não perigosas","Serviços de transporte rodoviário de cargas não perigosas - Caminhoneiro de cargas não perigosas","4930-2/02","Transporte rodoviário de carga, exceto produtos perigosos e mudanças, intermunicipal, interestadual e internacional",49,"SERV"]
[null,360000.01,0.14000000000000001,6.3000000000000014E-2,3.2200000000000006E-2,3.7800000000000007E-2,7.000000000000001E-3,null,3.5000000000000003E-2,0.17500000000000002,0,0.14000000000000001,null,"Cantor/Músico independente","Serviço de entretenimento musical - Cantor/músico independente","9001-9/02","Produção musical",90,"SERV"]
[null,540000.01,0.14000000000000001,6.3000000000000014E-2,3.2200000000000006E-2,3.7800000000000007E-2,7.000000000000001E-3,null,3.8399999999999997E-2,0.1784,2.5600000000000001E-2,0.16560000000000002,null,"Capoteiro","Serviços de recondicionamento de bancos de veículos automotores - Capoteiro.","4520-0/01","Serviços de manutenção e reparação mecânica de veículos automotores",45,"COM"]
[null,720000.01,0.14000000000000001,6.3000000000000014E-2,3.2200000000000006E-2,3.7800000000000007E-2,7.000000000000001E-3,null,3.8699999999999998E-2,0.17870000000000003,2.58E-2,0.1658,null,"Carpinteiro","Fabricação de estruturas de madeira para telhados,  portas, janelas, tetos, divisórias e armários embutidos de qualquer material para construção - Carpinteiro","1622-6/99","Fabricação de outros artigos de carpintaria para construção",16,"IND"]
[null,900000.01,0.14000000000000001,6.3000000000000014E-2,3.2200000000000006E-2,3.7800000000000007E-2,7.000000000000001E-3,null,4.2299999999999997E-2,0.18230000000000002,2.8199999999999999E-2,0.16820000000000002,null,"Carpinteiro instalador","Serviços em estruturas de madeira para telhados, instalação de portas, janelas, tetos, divisórias e armários embutidos de qualquer material - Carpinteiro instalador","4330-4/02","Instalação de portas, janelas, tetos, divisórias e armários embutidos de qualquer material",43,"SERV"]
[null,1080000.01,0.14000000000000001,6.3000000000000014E-2,3.2200000000000006E-2,3.7800000000000007E-2,7.000000000000001E-3,null,4.2599999999999999E-2,0.18260000000000001,2.8400000000000002E-2,0.16840000000000002,null,"Carregador (veículos de transportes terrestres)","Serviços de carga e descarga de produtos - Carregador (veículos de transportes terrestres)","5212-5/00","Carga e descarga",52,"SERV"]
[null,1260000.01,0.14000000000000001,6.3000000000000014E-2,3.2200000000000006E-2,3.7800000000000007E-2,7.000000000000001E-3,null,4.3099999999999999E-2,0.18310000000000001,2.87E-2,0.16870000000000002,null,"Carregador de malas","Serviços de transporte de malas - Carregador de malas.","9609-2/99","Outras atividades de serviços pessoais não especificadas anteriormente",96,"SERV"]
[null,1440000.01,0.14000000000000001,6.3000000000000014E-2,3.2200000000000006E-2,3.7800000000000007E-2,7.000000000000001E-3,null,4.6100000000000002E-2,0.18610000000000002,3.0700000000000002E-2,0.17070000000000002,null,"Carroceiro","Serviços de transporte de carga em carroça - Carroceiro","3811-4/00","Coleta de resíduos não-perigosos",38,"SERV"]
[null,1620000.01,0.14000000000000001,6.3000000000000014E-2,3.2200000000000006E-2,3.7800000000000007E-2,7.000000000000001E-3,null,4.65E-2,0.1865,3.1E-2,0.17100000000000001,null,"Cartazeiro","Serviços de produção de cartazes - Cartazeiro.","8299-7/99","Outras atividades de serviços prestados principalmente às empresas não especificadas anteriormente",82,"SERV"]
[null,1800000.01,0.14000000000000001,6.3000000000000014E-2,3.2200000000000006E-2,3.7800000000000007E-2,7.000000000000001E-3,null,0.05,0.19,3.3799999999999997E-2,0.17380000000000001,null,"Chapeleiro","Fabricação de chapéus - Chapeleiro","1414-2/00","Fabricação de acessórios do vestuário, exceto para segurança e proteção",14,"IND"]
[null,1980000.01,0.14000000000000001,6.3000000000000014E-2,3.2200000000000006E-2,3.7800000000000007E-2,7.000000000000001E-3,null,0.05,0.19,3.4099999999999998E-2,0.1741,null,"Chaveiro","Serviço de execução de cópia de chaves, abertura de cofres e fechaduras - Chaveiros.","9529-1/02","Chaveiros",95,"SERV"]
[null,2160000.0099999998,0.14000000000000001,6.3000000000000014E-2,3.2200000000000006E-2,3.7800000000000007E-2,7.000000000000001E-3,null,0.05,0.19,3.4500000000000003E-2,0.17450000000000002,null,"Chocolateiro","Fabricação de pasta e derivados de cacau, bem como bombons, chocolates e farinhas à base de chocolate - Chocolateiro","1093-7/01","Fabricação de produtos derivados do cacau e de chocolates",10,"IND"]
[null,2340000.0099999998,0.14000000000000001,6.3000000000000014E-2,3.2200000000000006E-2,3.7800000000000007E-2,7.000000000000001E-3,null,0.05,0.19,3.4799999999999998E-2,0.17480000000000001,null,"Churrasqueiro ambulante","Comércio varejista ambulante de churrasco de carne - Churrasqueiro ambulante.","5612-1/00","Serviços ambulantes de alimentação",56,"SERV"]
[null,2520000.0099999998,0.14000000000000001,6.3000000000000014E-2,3.2200000000000006E-2,3.7800000000000007E-2,7.000000000000001E-3,null,0.05,0.19,3.5099999999999999E-2,0.17510000000000001,null,"Churrasqueiro em domicílio","Serviços de preparação e fornecimento de carnes para banquetes e recepções - Churrasqueiro.","5620-1/02","Serviços de alimentação para eventos e recepções - bufê",56,"SERV"]
[null,2700000.01,0.14000000000000001,6.3000000000000014E-2,3.2200000000000006E-2,3.7800000000000007E-2,7.000000000000001E-3,null,0.05,0.19,3.8199999999999998E-2,0.17820000000000003,null,"Clicherista","Serviços de pré-impressão gráfica - Clicherista","1821-1/00","Serviços de pré-impressão",{"$f":"VALUE(LEFT(P152,2))","v":18},{"$f":"IF(R152<35,\"IND\",IF(AND(R152>=45,R152<=47),\"COM\",\"SERV\"))","v":"IND"}]
[null,2880000.01,0.14000000000000001,6.3000000000000014E-2,3.2200000000000006E-2,3.7800000000000007E-2,7.000000000000001E-3,null,0.05,0.19,3.85E-2,0.17850000000000002,null,"Cobrador de dívidas","Serviço de cobranças de dívidas - Cobrador","8291-1/00","Atividades de cobrança e informações cadastrais",82,"SERV"]
[null,3060000.01,0.14000000000000001,6.3000000000000014E-2,3.2200000000000006E-2,3.7800000000000007E-2,7.000000000000001E-3,null,0.05,0.19,3.8800000000000001E-2,0.17880000000000001,null,"Colchoeiro","Fabricação de colchões - Colchoeiro","3104-7/00","Fabricação de colchões",31,"IND"]
[null,3240000.01,0.14000000000000001,6.3000000000000014E-2,3.2200000000000006E-2,3.7800000000000007E-2,7.000000000000001E-3,null,0.05,0.19,3.9100000000000003E-2,{"$f":"C155+K155","v":0.17910000000000001},null,"Coletor de resíduos perigosos","Serviços de coleta de resóduos perigosos - Coletor de resíduos perigosos","3812-2/00","Coleta de resíduos perigosos",38,"SERV"]
[null,3420000.01,0.14000000000000001,6.3000000000000014E-2,3.2200000000000006E-2,3.7800000000000007E-2,7.000000000000001E-3,null,0.05,0.19,3.95E-2,{"$f":"C156+K156","v":0.17950000000000002},null,"Colhedor de castanha-do-pará","Serviço de coleta de castanha-do-pará em florestas nativas - Colhedor de castanha-do-pará","0220-9/03","Coleta de castanha-do-pará em florestas nativas",2,"IND"]
[null,null,null,null,null,null,null,null,null,null,null,null,null,"Colhedor de palmito","Serviço de coleta de palmito em florestas nativas - Colhedor de Palmito","0220-9/05","Coleta de palmito em florestas nativas",2,"IND"]
[null,"DE / ATÉ","IRPJ, PIS/PASEP, COFINS E CSLL","IRPJ","CSLL","COFINS","PIS/PASEP",null,"ISS","INCLUÍDO O ISS","ICMS","INCLUINDO ICMS",null,"Colhedor de produtos não madeireiros","Serviço de coleta de produtos não madeireiros em florestas nativas: babaçu, cera de carnaúba, resinas e produtos florestais silvestres - Colhedor de produtos não madeireiros","0220-9/99","Coleta de produtos não-madeireiros não especificados anteriormente em florestas nativas",2,"IND"]
[null,{"$f":"B4","v":0},0.14499999999999999,0,7.1049999999999988E-2,7.3950000000000002E-2,0,null,0.02,{"$f":"C159+I159","v":0.16499999999999998},{"$f":"I71","v":0.02},{"$f":"C159+K159","v":0.16499999999999998},null,"Colocador de piercing","Serviços pessoais de colocação de piercing - Colocador de piercing.","9609-2/99","Outras atividades de serviços pessoais não especificadas anteriormente",96,"SERV"]
[null,180000.01,0.14499999999999999,0,7.1049999999999988E-2,7.3950000000000002E-2,0,null,2.7900000000000001E-2,{"$f":"C160+I160","v":0.1729},{"$f":"I72","v":2.7900000000000001E-2},{"$f":"C160+K160","v":0.1729},null,"Colocador de revestimentos","Serviços de aplicação de revestimentos em interiores e exteriores em construções comerciais ou domiciliares - Colocador de revestimentos.","4330-4/05","Aplicação de revestimentos e de resinas em interiores e exteriores",43,"SERV"]
[null,360000.01,0.14499999999999999,6.5250000000000002E-2,3.3349999999999998E-2,3.9149999999999997E-2,7.2499999999999995E-3,null,3.5000000000000003E-2,0.18,3.5000000000000003E-2,0.18,null,"Comerciante de animais vivos e de artigos e alimentos para animais de estimação","Comércio varejista de animais vivos e de artigos e alimentos para animais de estimação - Comerciante de animais vivos e de artigos e alimentos para animais de estimação","4789-0/04","Comércio varejista de animais vivos e de artigos e alimentos para animais de estimação",47,"COM"]
[null,540000.01,0.14499999999999999,6.5250000000000002E-2,3.3349999999999998E-2,3.9149999999999997E-2,7.2499999999999995E-3,null,3.8399999999999997E-2,0.18339999999999998,3.8399999999999997E-2,0.18339999999999998,null,"Comerciante de artigos de armarinho","Comercio varejista de artigos de armarinho - Comerciante de artigos de armarinho","4755-5/02","Comercio varejista de artigos de armarinho",47,"COM"]
[null,720000.01,0.14499999999999999,6.5250000000000002E-2,3.3349999999999998E-2,3.9149999999999997E-2,7.2499999999999995E-3,null,3.8699999999999998E-2,0.18369999999999997,3.8699999999999998E-2,0.18369999999999997,null,"Comerciante de artigos de caça, pesca e camping","Comércio varejista de artigos de caça, pesca e camping - Comerciante de artigos de caça, pesca e camping","4763-6/04","Comércio varejista de artigos de caça, pesca e camping",47,"COM"]
[null,900000.01,0.14499999999999999,6.5250000000000002E-2,3.3349999999999998E-2,3.9149999999999997E-2,7.2499999999999995E-3,null,4.2299999999999997E-2,0.18729999999999999,4.2299999999999997E-2,0.18729999999999999,null,"Comerciante de artigos de cama, mesa e banho","Comercio varejista de artigos de cama, mesa e banho - Comerciante de artigos de cama, mesa e banho","4755-5/03","Comercio varejista de artigos de cama, mesa e banho",47,"COM"]
[null,1080000.01,0.14499999999999999,6.5250000000000002E-2,3.3349999999999998E-2,3.9149999999999997E-2,7.2499999999999995E-3,null,4.2599999999999999E-2,0.18759999999999999,4.2599999999999999E-2,0.18759999999999999,null,"Comerciante de artigos de colchoaria","Comércio varejista de artigos de colchoaria - Comerciante de artigos de colchoaria","4754-7/02","Comércio varejista de artigos de colchoaria",47,"COM"]
[null,1260000.01,0.14499999999999999,6.5250000000000002E-2,3.3349999999999998E-2,3.9149999999999997E-2,7.2499999999999995E-3,null,4.3099999999999999E-2,0.18809999999999999,4.3099999999999999E-2,0.18809999999999999,null,"Comerciante de artigos de cutelaria","Comércio varejista de artigos de cutelaria - Comerciante de artigos de cutelaria","4759-8/99","Comércio varejista de outros artigos de uso doméstico não especificados anteriormente",47,"COM"]
[null,1440000.01,0.14499999999999999,6.5250000000000002E-2,3.3349999999999998E-2,3.9149999999999997E-2,7.2499999999999995E-3,null,4.6100000000000002E-2,0.19109999999999999,4.6100000000000002E-2,0.19109999999999999,null,"Comerciante de artigos de iluminação","Comércio varejista de artigos de iluminação - Comerciante de artigos de iluminação","4754-7/03","Comércio varejista de artigos de iluminação",47,"COM"]
[null,1620000.01,0.14499999999999999,6.5250000000000002E-2,3.3349999999999998E-2,3.9149999999999997E-2,7.2499999999999995E-3,null,4.65E-2,0.1915,4.65E-2,0.1915,null,"Comerciante de artigos de joalheria","Comércio varejista de artigos de joalheria - Comerciante de artigos de joalheria","4783-1/01","Comércio varejista de artigos de joalheria",47,"COM"]
[null,1800000.01,0.14499999999999999,6.5250000000000002E-2,3.3349999999999998E-2,3.9149999999999997E-2,7.2499999999999995E-3,null,0.05,0.19500000000000001,0.05,0.19500000000000001,null,"Comerciante de artigos de óptica","Comércio varejista de artigos de óptica - Comerciante de artigos de óptica","4774-1/00","Comércio varejista de artigos de óptica",47,"COM"]
[null,1980000.01,0.14499999999999999,6.5250000000000002E-2,3.3349999999999998E-2,3.9149999999999997E-2,7.2499999999999995E-3,null,0.05,0.19500000000000001,0.05,0.19500000000000001,null,"Comerciante de artigos de relojoaria","Comércio varejista de artigos de relojoaria - Comerciante de artigos de relojoaria","4783-1/02","Comércio varejista de artigos de relojoaria",47,"COM"]
[null,2160000.0099999998,0.14499999999999999,6.5250000000000002E-2,3.3349999999999998E-2,3.9149999999999997E-2,7.2499999999999995E-3,null,0.05,0.19500000000000001,0.05,0.19500000000000001,null,"Comerciante de artigos de tapeçaria, cortinas e persianas","Comércio varejista de artigos de tapeçaria, cortinas e persianas - Comerciante de artigos de tapeçaria, cortinas e persianas","4759-8/01","Comércio varejista de artigos de tapeçaria, cortinas e persianas",47,"COM"]
[null,2340000.0099999998,0.14499999999999999,6.5250000000000002E-2,3.3349999999999998E-2,3.9149999999999997E-2,7.2499999999999995E-3,null,0.05,0.19500000000000001,0.05,0.19500000000000001,null,"Comerciante de artigos de viagem","Comércio varejista de artigos de viagem - Comerciante de artigos de viagem","4782-2/02","Comércio varejista de artigos de viagem",47,"COM"]
[null,2520000.0099999998,0.14499999999999999,6.5250000000000002E-2,3.3349999999999998E-2,3.9149999999999997E-2,7.2499999999999995E-3,null,0.05,0.19500000000000001,0.05,0.19500000000000001,null,"Comerciante de artigos do vestuário e acessórios","Comércio varejista de artigos do vestuário e acessórios - Comerciante de artigos do vestuário e acessórios","4781-4/00","Comércio varejista de artigos do vestuário e acessórios",47,"COM"]
[null,2700000.01,0.14499999999999999,6.5250000000000002E-2,3.3349999999999998E-2,3.9149999999999997E-2,7.2499999999999995E-3,null,0.05,0.19500000000000001,0.05,0.19500000000000001,null,"Comerciante de artigos eróticos","Comércio varejista de artigos eróticos - Comerciante de artigos eróticos","4789-0/99","Comércio varejista de outros produtos não especificados anteriormente",47,"COM"]
[null,2880000.01,0.14499999999999999,6.5250000000000002E-2,3.3349999999999998E-2,3.9149999999999997E-2,7.2499999999999995E-3,null,0.05,0.19500000000000001,0.05,0.19500000000000001,null,"Comerciante de artigos esportivos","Comércio varejista de artigos esportivos - Comerciante de artigos esportivos","4763-6/02","Comércio varejista de artigos esportivos",47,"COM"]
[null,3060000.01,0.14499999999999999,6.5250000000000002E-2,3.3349999999999998E-2,3.9149999999999997E-2,7.2499999999999995E-3,null,0.05,0.19500000000000001,0.05,0.19500000000000001,null,"Comerciante de artigos fotográficos e para filmagem","Comércio varejista de artigos fotográficos e para filmagem - Comerciante de artigos fotográficos e para filmagem","4789-0/08","Comércio varejista de artigos fotográficos e para filmagem",47,"COM"]
[null,3240000.01,0.14499999999999999,6.5250000000000002E-2,3.3349999999999998E-2,3.9149999999999997E-2,7.2499999999999995E-3,null,0.05,0.19500000000000001,0.05,{"$f":"C177+K177","v":0.19500000000000001},null,"Comerciante de artigos funerários","Comércio varejista de artigos funerários - Comerciante de artigos funerários","4789-0/99","Comércio varejista de outros produtos não especificados anteriormente",47,"COM"]
[null,3420000.01,0.14499999999999999,6.5250000000000002E-2,3.3349999999999998E-2,3.9149999999999997E-2,7.2499999999999995E-3,null,0.05,0.19500000000000001,0.05,{"$f":"C178+K178","v":0.19500000000000001},null,"Comerciante de artigos médicos e ortopédicos","Comércio varejista de artigos médicos e ortopédicos - Comerciante de artigos médicos e ortopédicos","4773-3/00","Comércio varejista de artigos médicos e ortopédicos",47,"COM"]
[null,null,null,null,null,null,null,null,null,null,null,null,null,"Comerciante de artigos para habitação","Comércio varejista de artigos para habitação de vidro, cristal, porcelana, borracha, plástico, metal, madeira, vime, bambu e outros similares ","4759-8/99","Comércio varejista de outros artigos de uso doméstico não especificados anteriormente",47,"COM"]
[null,"DE / ATÉ","IRPJ, PIS/PASEP, COFINS E CSLL","IRPJ","CSLL","COFINS","PIS/PASEP",null,"ISS","INCLUÍDO O ISS","ICMS","INCLUINDO ICMS",null,"Comerciante de artigos usados","Comércio varejista de artigos usados - Comerciante de artigos usados","4785-7/99","Comércio varejista de outros artigos usados",47,"COM"]
[null,{"$f":"B4","v":0},0.15,0,7.3499999999999996E-2,7.6499999999999999E-2,0,null,0.02,{"$f":"C181+I181","v":0.16999999999999998},{"$f":"I93","v":0.02},{"$f":"C181+K181","v":0.16999999999999998},null,"Comerciante de bebidas","Comércio varejista de bebidas alcoólicas e não alcoólicas, não consumidas no local de venda - Comerciante de bebidas","4723-7/00","Comércio varejista de bebidas",47,"COM"]
[null,180000.01,0.15,0,7.3499999999999996E-2,7.6499999999999999E-2,0,null,2.7900000000000001E-2,{"$f":"C182+I182","v":0.1779},{"$f":"I94","v":2.7900000000000001E-2},{"$f":"C182+K182","v":0.1779},null,"Comerciante de bicicletas e triciclos; peças e acessórios","Comércio varejista de bicicletas e triciclos; peças e acessórios - Comerciante de bicicletas e triciclos; peças e acessórios","4763-6/03","Comércio varejista de bicicletas e triciclos; peças e acessórios",47,"COM"]
[null,360000.01,0.15,6.7500000000000004E-2,3.4500000000000003E-2,4.0500000000000001E-2,7.4999999999999997E-3,null,3.5000000000000003E-2,0.185,3.5000000000000003E-2,0.185,null,"Comerciante de bijuterias e artesanatos","Comércio varejista de suvenires, bijuterias e artesanatos - Comerciante de bijuterias e artesanatos.","4789-0/01","Comércio varejista de suvenires, bijuterias e artesanatos",47,"COM"]
[null,540000.01,0.15,6.7500000000000004E-2,3.4500000000000003E-2,4.0500000000000001E-2,7.4999999999999997E-3,null,3.8399999999999997E-2,0.18839999999999998,3.8399999999999997E-2,0.18839999999999998,null,"Comerciante de brinquedos e artigos recreativos","Comércio varejista de brinquedos e artigos recreativos - Comerciante de brinquedos e artigos recreativos","4763-6/01","Comércio varejista de brinquedos e artigos recreativos",47,"COM"]
[null,720000.01,0.15,6.7500000000000004E-2,3.4500000000000003E-2,4.0500000000000001E-2,7.4999999999999997E-3,null,3.8699999999999998E-2,0.18869999999999998,3.8699999999999998E-2,0.18869999999999998,null,"Comerciante de cal, areia, pedra britada, tijolos e telhas","Comércio varejista de cal, areia, pedra britada, tijolos e telhas - Comerciante de cal, areia, pedra britada, tijolos e telhas","4744-0/04","Comércio varejista de cal, areia, pedra britada, tijolos e telhas",47,"COM"]
[null,900000.01,0.15,6.7500000000000004E-2,3.4500000000000003E-2,4.0500000000000001E-2,7.4999999999999997E-3,null,4.2299999999999997E-2,0.1923,4.2299999999999997E-2,0.1923,null,"Comerciante de calçados","Comércio varejista de calçados - Comerciante de calçados","4782-2/01","Comércio varejista de calçados",47,"COM"]
[null,1080000.01,0.15,6.7500000000000004E-2,3.4500000000000003E-2,4.0500000000000001E-2,7.4999999999999997E-3,null,4.2599999999999999E-2,0.19259999999999999,4.2599999999999999E-2,0.19259999999999999,null,"Comerciante de cosméticos e artigos de perfumaria","Comércio varejista de cosméticos e produtos de perfumaria - Comerciante de cosméticos e artigos de perfumaria.","4772-5/00","Comércio varejista de cosméticos, produtos de perfumaria e de higiene pessoal",47,"COM"]
[null,1260000.01,0.15,6.7500000000000004E-2,3.4500000000000003E-2,4.0500000000000001E-2,7.4999999999999997E-3,null,4.3099999999999999E-2,0.19309999999999999,4.3099999999999999E-2,0.19309999999999999,null,"Comerciante de discos, CDs, DVDs e fitas","Comércio varejista de discos, CDs, DVDs e fitas - Comerciante de discos, CDs, DVDs e fitas","4762-8/00","Comércio varejista de discos, CDs, DVDs e fitas",47,"COM"]
[null,1440000.01,0.15,6.7500000000000004E-2,3.4500000000000003E-2,4.0500000000000001E-2,7.4999999999999997E-3,null,4.6100000000000002E-2,0.1961,4.6100000000000002E-2,0.1961,null,"Comerciante de eletrodomésticos e equipamentos de áudio e vídeo","Comércio varejista especializado de eletrodomésticos e equipamentos de áudio e vídeo - Comerciante de eletrodomésticos e equipamentos de áudio e vídeo","4753-9/00","Comércio varejista especializado de eletrodomésticos e equipamentos de áudio e vídeo",47,"COM"]
[null,1620000.01,0.15,6.7500000000000004E-2,3.4500000000000003E-2,4.0500000000000001E-2,7.4999999999999997E-3,null,4.65E-2,0.19650000000000001,4.65E-2,0.19650000000000001,null,"Comerciante de embalagens","Comércio varejista de embalagens - Comerciante de embalagens","4789-0/99","Comércio varejista de outros produtos não especificados anteriormente",47,"COM"]
[null,1800000.01,0.15,6.7500000000000004E-2,3.4500000000000003E-2,4.0500000000000001E-2,7.4999999999999997E-3,null,0.05,0.2,0.05,0.2,null,"Comerciante de equipamentos de telefonia e comunicação","Comércio varejista especializado de equipamentos de telefonia e comunicação - Comerciante de equipamentos de telefonia e comunicação","4752-1/00","Comércio varejista especializado de equipamentos de telefonia e comunicação",47,"COM"]
[null,1980000.01,0.15,6.7500000000000004E-2,3.4500000000000003E-2,4.0500000000000001E-2,7.4999999999999997E-3,null,0.05,0.2,0.05,0.2,null,"Comerciante de equipamentos e suprimentos de informática","Comércio varejista especializado de equipamentos e suprimentos de informática - Comerciante de equipamentos e suprimentos de informática","4751-2/00","Comércio varejista especializado de equipamentos e suprimentos de informática",47,"COM"]
[null,2160000.0099999998,0.15,6.7500000000000004E-2,3.4500000000000003E-2,4.0500000000000001E-2,7.4999999999999997E-3,null,0.05,0.2,0.05,0.2,null,"Comerciante de equipamentos para escritório","Comércio varejista de equipamentos para escritório - Comerciante de equipamentos para escritório","4789-0/07","Comércio varejista de equipamentos para escritório",47,"COM"]
[null,2340000.0099999998,0.15,6.7500000000000004E-2,3.4500000000000003E-2,4.0500000000000001E-2,7.4999999999999997E-3,null,0.05,0.2,0.05,0.2,null,"Comerciante de extintores de incêndio","Comércio varejista de extintores de incêndio - Comerciante de extintores de incêndio","4789-0/99","Comércio varejista de outros produtos não especificados anteriormente",47,"COM"]
[null,2520000.0099999998,0.15,6.7500000000000004E-2,3.4500000000000003E-2,4.0500000000000001E-2,7.4999999999999997E-3,null,0.05,0.2,0.05,0.2,null,"Comerciante de ferragens e ferramentas","Comércio varejista de ferragens e ferramentas - Comerciante de ferragens e ferramentas","4744-0/01","Comércio varejista de ferragens e ferramentas",47,"COM"]
[null,2700000.01,0.15,6.7500000000000004E-2,3.4500000000000003E-2,4.0500000000000001E-2,7.4999999999999997E-3,null,0.05,0.2,0.05,0.2,null,"Comerciante de flores, plantas e frutas artificiais","Comércio varejista de flores, plantas e frutas artificiais - Comerciante de flores, plantas e frutas artificiais","4789-0/99","Comércio varejista de outros produtos não especificados anteriormente",47,"COM"]
[null,2880000.01,0.15,6.7500000000000004E-2,3.4500000000000003E-2,4.0500000000000001E-2,7.4999999999999997E-3,null,0.05,0.2,0.05,0.2,null,"Comerciante de fogos de artifício","Comércio varejista de fogos de artifício e artigos pirotécnicos - Comerciante de fogos de artifício","4789-0/06","Comércio varejista de fogos de artifício e artigos pirotécnicos",47,"COM"]
[null,3060000.01,0.15,6.7500000000000004E-2,3.4500000000000003E-2,4.0500000000000001E-2,7.4999999999999997E-3,null,0.05,0.2,0.05,0.2,null,"Comerciante de gás liqüefeito de petróleo (GLP)","Comércio varejista de gás liqüefeito de petróleo (GLP) - Comerciante de gás liqüefeito de petróleo (GLP)","4784-9/00","Comércio varejista de gás liqüefeito de petróleo (GLP)",47,"COM"]
[null,3240000.01,0.15,6.7500000000000004E-2,3.4500000000000003E-2,4.0500000000000001E-2,7.4999999999999997E-3,null,0.05,0.2,0.05,{"$f":"C199+K199","v":0.2},null,"Comerciante de instrumentos musicais e acessórios","Comércio varejista especializado de instrumentos musicais e acessórios - Comerciante de instrumentos musicais e acessórios","4756-3/00","Comércio varejista especializado de instrumentos musicais e acessórios",47,"COM"]
[null,3420000.01,0.15,6.7500000000000004E-2,3.4500000000000003E-2,4.0500000000000001E-2,7.4999999999999997E-3,null,0.05,0.2,0.05,{"$f":"C200+K200","v":0.2},null,"Comerciante de laticínios","Comércio varejista de leite e derivados - Comerciante de laticínios.","4721-1/03","Comércio varejista de laticínios e frios",47,"COM"]
[null,null,null,null,null,null,null,null,null,null,null,null,null,"Comerciante de lubrificantes","Comércio varejista de lubrificantes para uso automotivo e para outros usos - Comerciante de lubrificantes","4732-6/00","Comércio varejista de lubrificantes",47,"COM"]
[null,null,null,null,null,null,null,null,null,null,null,null,null,"Comerciante de madeira e artefatos","Comércio varejista de madeira e artefatos - Comerciante de madeira e artefatos","4744-0/02","Comércio varejista de madeira e artefatos",47,"COM"]
[null,"Encargos","Alíquotas",null,null,null,null,null,null,null,null,null,null,"Comerciante de materiais de construção em geral","Comércio varejista de materiais de construção em geral - Comerciante de materiais de construção em geral","4744-0/99","Comércio varejista de materiais de construção em geral",47,"COM"]
[null,"INSS",0.2,null,null,null,null,null,null,null,null,null,null,"Comerciante de materiais hidráulicos","Comércio varejista de materiais hidráulicos - Comerciante de materiais hidráulicos","4744-0/03","Comércio varejista de materiais hidráulicos",47,"COM"]
[null,"SESI, SESC OU SEST",1.4999999999999999E-2,null,null,null,null,null,null,null,null,null,null,"Comerciante de material elétrico","Comércio varejista de material elétrico - Comerciante de material elétrico","4742-3/00","Comércio varejista de material elétrico",47,"COM"]
[null,"SENAI,SENAC OU SENAT",0.01,null,null,null,null,null,null,null,null,null,null,"Comerciante de medicamentos veterinários","Comércio varejista de medicamentos veterinários - Comerciante de medicamentos veterinários","4771-7/04","Comércio varejista de medicamentos veterinários",47,"COM"]
[null,"SEBRAE",6.0000000000000001E-3,null,null,null,null,null,null,null,null,null,null,"Comerciante de miudezas e quinquilharias","Comércio varejista não especializado, sem predominância de gêneros alimentícios, de miudezas e quinquilharias - Comerciante de miudezas e quinquilharias","4713-0/02","Lojas de variedades, exceto lojas de departamentos ou magazines",47,"COM"]
[null,"INCRA",2E-3,null,null,null,null,null,null,null,null,null,null,"Comerciante de móveis","Comércio varejista de móveis - Comerciante de móveis","4754-7/01","Comércio varejista de móveis",47,"COM"]
[null,"FGTS",0.08,null,null,null,null,null,null,null,null,null,null,"Comerciante de objetos de arte","Comércio varejista de objetos de arte - Comerciante de objetos de arte","4789-0/03","Comércio varejista de objetos de arte",47,"COM"]
[null,"Acidente de Trabalho",0.03,null,null,null,null,null,null,null,null,null,null,"Comerciante de peças e acessórios novos para veículos automotores","Comércio varejista de peças e acessórios novos para veículos automotores - Comerciante de peças e acessórios novos para veículos automotores","4530-7/03","Comércio a varejo de peças e acessórios novos para veículos automotores",45,"COM"]
[null,"Salário Educação",2.5000000000000001E-2,null,null,null,null,null,null,null,null,null,null,"Comerciante de peças e acessórios para aparelhos eletroeletrônicos para uso doméstico","Comércio varejista especializado de peças e acessórios para aparelhos eletroeletrônicos para uso doméstico, exceto informática e comunicação - Comerciante de peças e acessórios para aparelhos eletroeletrônicos para uso doméstico","4757-1/00","Comércio varejista especializado de peças e acessórios para aparelhos eletroeletrônicos para uso doméstico, exceto informática e comunicação",47,"COM"]
[null,null,null,null,null,null,null,null,null,null,null,null,null,"Comerciante de peças e acessórios para motocicletas e motonetas","Comércio varejista de peças e acessórios para motocicletas e motonetas - Comerciante de peças e acessórios para motocicletas e motonetas","4541-2/05","Comércio a varejo de peças e acessórios para motocicletas e motonetas",45,"COM"]
[null,"Imposto","Presumido","Presumido Serv","Presumido Serv",null,null,null,null,null,null,null,null,"Comerciante de peças e acessórios usados para veículos automotores","Comércio varejista de peças e acessórios usados para veículos automotores - Comerciante de peças e acessórios usados para veículos automotores","4530-7/04","Comércio a varejo de peças e acessórios usados para veículos automotores",45,"COM"]
[null,"IRPJ",1.2E-2,2.4E-2,4.8000000000000001E-2,null,null,null,null,null,null,null,null,"Comerciante de perucas","Comércio varejista de perucas - Comerciante de perucas","4789-0/99","Comércio varejista de outros produtos não especificados anteriormente",47,"COM"]
[null,"CSLL",1.0800000000000001E-2,2.8799999999999999E-2,2.8799999999999999E-2,null,null,null,null,null,null,null,null,"Comerciante de plantas e flores naturais","Comércio varejista de plantas e flores naturais - Comerciante de plantas e flores naturais","4789-0/02","Comércio varejista de plantas e flores naturais",47,"COM"]
[null,"COFINS",0.03,0.03,0.03,null,null,null,null,null,null,null,null,"Comerciante de pneumáticos e câmaras-de-ar","Comércio varejista de pneumáticos e câmaras-de-ar - Comerciante de pneumáticos e câmaras-de-ar","4530-7/05","Comércio a varejo de pneumáticos e câmaras-de-ar",{"$f":"VALUE(LEFT(P216,2))","v":45},{"$f":"IF(R216<35,\"IND\",IF(AND(R216>=45,R216<=47),\"COM\",\"SERV\"))","v":"COM"}]
[null,"PIS",6.4999999999999997E-3,6.4999999999999997E-3,6.4999999999999997E-3,null,null,null,null,null,null,null,null,"Comerciante de produtos de limpeza, inseticidas, raticidas e produtos para piscinas","Comércio varejista de produtos saneantes domissanitários - Comerciante de produtos de limpeza, inseticidas, raticidas e produtos para piscinas","4789-0/05","Comércio varejista de produtos saneantes domissanitários",47,"COM"]
[null,null,null,null,null,null,null,null,null,null,null,null,null,"Comerciante de produtos de panificação","Comércio varejista de pães e roscas, bolos, tortas e outros produtos de padaria  - Comerciante de produtos de panificação","4721-1/02","Padaria e confeitaria com predominância de revenda",47,"COM"]
[null,"Faturamento Mensal","IRPJ","CSLL","A deduzir IRPJ",null,null,null,null,null,null,null,null,"Comerciante de produtos de tabacaria","Comércio varejista de cigarros, charutos, cigarrilhas, fumo em rolo ou em corda, fumo desfiado ou em pó, isqueiros, piteiras e cachimbos - Comerciante de produtos de tabacaria","4729-6/01","Tabacaria",47,"COM"]
[null,20000,0.15,0.09,0,null,null,null,null,null,null,null,null,"Comerciante de produtos farmacêuticos homeopáticos","Comércio varejista de produtos farmacêuticos homeopáticos - Comerciante de produtos farmacêuticos homeopáticos","4771-7/03","Comércio varejista de produtos farmacêuticos homeopáticos",47,"COM"]
[null,20000.009999999998,0.25,0.09,{"$f":"B220*10%","v":2000},null,null,null,null,null,null,null,null,"Comerciante de produtos farmacêuticos, sem manipulação de fórmulas","Comércio varejista de produtos farmacêuticos, sem manipulação de fórmulas - Comerciante de produtos farmacêuticos, sem manipulação de fórmulas","4771-7/01","Comércio varejista de produtos farmacêuticos, sem manipulação de fórmulas",47,"COM"]
[null,null,null,null,null,null,null,null,null,null,null,null,null,"Comerciante de produtos para festas e natal","Comércio varejista de produtos para festas e natal - Comerciante de produtos para festas e natal","4789-0/99","Comércio varejista de outros produtos não especificados anteriormente",47,"COM"]
[null,null,null,null,null,null,null,null,null,null,null,null,null,"Comerciante de produtos religiosos","Comércio varejista de produtos religiosos - Comerciante de produtos religiosos","4789-0/99","Comércio varejista de outros produtos não especificados anteriormente",47,"COM"]
[null,"Simples",{"$f":"AliquotaMOSimples","v":0.37540000000000001},null,null,null,null,null,null,null,null,null,null,"Comerciante de redes para dormir","Comércio varejista de redes para dormir - Comerciante de redes para dormir","4789-0/99","Comércio varejista de outros produtos não especificados anteriormente",47,"COM"]
[null,"SimplesAIVeAV",{"$f":"AliquotaMOIV","v":0.60540000000000005},null,null,null,null,null,null,null,null,null,null,"Comerciante de sistema de segurança residencial","Comércio varejista de sistema de segurança residencial - Comerciante de sistema de segurança residencial","4759-8/99","Comércio varejista de outros artigos de uso doméstico não especificados anteriormente",47,"COM"]
[null,"Normal",{"$f":"AliquotaMOPres","v":0.6634000000000001},null,null,null,null,null,null,null,null,null,null,"Comerciante de tecidos","Comércio varejista de tecidos - Comerciante de tecidos","4755-5/01","Comércio varejista de tecidos",47,"COM"]
[null,null,null,null,null,null,null,null,null,null,null,null,null,"Comerciante de tintas e materiais para pintura","Comércio varejista de tintas e materiais para pintura - Comerciante de tintas e materiais para pintura","4741-5/00","Comércio varejista de tintas e materiais para pintura",47,"COM"]
[null,null,null,null,null,null,null,null,null,null,null,null,null,"Comerciante de toldos e papel de parede","Comércio varejista de toldos e de papel de parede - Comerciante de toldos e papel de parede","4759-8/99","Comércio varejista de outros artigos de uso doméstico não especificados anteriormente",47,"COM"]
[null,"Imposto","Real","Até","Real","de","até",null,null,null,null,null,null,"Comerciante de vidros","Comércio varejista de vidros - Comerciante de vidros","4743-1/00","Comércio varejista de vidros",47,"COM"]
[null,"IRPJ",0.15,240000,0.25,240001,5000000,null,null,null,null,null,null,"Compoteiro","Fabricação de frutas em calda (compotas), doces em massas ou pastas e geléias - Compoteiro","1031-7/00","Fabricação de conservas de frutas",10,"IND"]
[null,"CSLL",0.09,240000,0.19,240001,5000000,null,null,null,null,null,null,"Confeccionador de carimbos","Confecção de carimbos - Confeccionador de carimbos","3299-0/02","Fabricação de canetas, lápis e outros artigos para escritório",32,"IND"]
[null,"COFINS",7.5999999999999998E-2,null,7.5999999999999998E-2,null,null,null,null,null,null,null,null,"Confeccionador de fraldas descartáveis","Fabricação de fraldas descartáveis - Confeccionador de fraldas descartáveis","1742-7/01","Fabricação de fraldas descartáveis",17,"IND"]
[null,"PIS",1.6500000000000001E-2,null,1.6500000000000001E-2,null,null,null,null,null,null,null,null,"Confeiteiro ","Fabricação de produtos de confeitaria - Confeiteiro","1091-1/00","Fabricação de produtos de panificação",10,"IND"]
[null,null,null,null,null,null,null,null,null,null,null,null,null,"Contador/técnico contábil","Prestação de serviços contábeis - Contador/técnico contábil","6920-6/01","Atividades de contabilidade",69,"SERV"]
[null,null,null,null,null,null,null,null,null,null,null,null,null,"Costureira","Confecção, sob medida, de peças do vestuário - Costureira","1412-6/02","Confecção, sob medida, de peças do vestuário, exceto roupas íntimas",14,"IND"]
[null,null,null,null,null,null,null,null,null,null,null,null,null,"Cozinheira que fornece refeições prontas e embaladas para consumo","Serviços de preparação de alimentos para consumo - Cozinheira","5620-1/04","Fornecimento de alimentos preparados preponderantemente para consumo domiciliar",56,"SERV"]
[null,null,null,null,null,null,null,null,null,null,null,null,null,"Criador de animais domésticos","Serviços de criação de animais domésticos - Criador de animais domésticos","0159-8/02","Criação de animais de estimação",1,"IND"]
[null,null,null,null,null,null,null,null,null,null,null,null,null,"Criador de peixes ornamentais em água doce","Serviços de criação de peixes ornamentais em água doce - Criador de peixes ornamentais em água doce","0322-1/04","Criação de peixes ornamentais em água doce",3,"IND"]
[null,null,null,null,null,null,null,null,null,null,null,null,null,"Criador de peixes ornamentais em água salgada","Serviços de criação de peixes ornamentais em água salgada e salobra - Criador de peixes ornamentais em água salgada","0321-3/04","Criação de peixes ornamentais em água salgada e salobra",3,"IND"]
[null,null,null,null,null,null,null,null,null,null,null,null,null,"Crocheteira","Confecção de produtos de crochet - Crocheteira","1412-6/01","Confecção de peças do vestuário, exceto roupas íntimas e as confeccionadas sob medida",14,"IND"]
[null,null,null,null,null,null,null,null,null,null,null,null,null,"Cuidador de idosos e enfermos","Serviço de acompanhamento de idosos e enfermos em domicílio - Cuidador de idosos e enfermos","8712-3/00","Atividades de fornecimento de infra-estrutura de apoio e assistência a paciente no domicílio",87,"SERV"]
[null,null,null,null,null,null,null,null,null,null,null,null,null,"Cunhador de moedas e medalhas","Serviço de cunhagem de moedas e de medalhas - Cunhador de moedas e medalhas ","3211-6/03","Cunhagem de moedas e medalhas",32,"IND"]
[null,null,null,null,null,null,null,null,null,null,null,null,null,"Curtidor de couro","Serviços de curtimento e outras preparações de couro - Curtidor de couros","1510-6/00","Curtimento e outras preparações de couro",15,"IND"]
[null,null,null,null,null,null,null,null,null,null,null,null,null,"Dedetizador","Serviços de imunização, dedetização e controle de pragas urbanas - Dedetizador","8122-2/00","Imunização e controle de pragas urbanas",81,"SERV"]
[null,null,null,null,null,null,null,null,null,null,null,null,null,"Depiladora","Serviços de depilação - Depiladora","9602-5/02","Outras atividades de tratamento de beleza",96,"SERV"]
[null,null,null,null,null,null,null,null,null,null,null,null,null,"Digitador","Serviços de digitação de documentos - Digitador","8219-9/99","Preparação de documentos e serviços especializados de apoio administrativo não especificados anteriormente",82,"SERV"]
[null,null,null,null,null,null,null,null,null,null,null,null,null,"Distribuidor de água potável em caminhão pipa","Serviços de distribuição de água potável em caminhão pipa - distribuidor de água potável em caminhão pipa","3600-6/02","Distribuição de água por caminhões",36,"SERV"]
[null,null,null,null,null,null,null,null,null,null,null,null,null,"Doceira","Fabricação de doces - Doceira","5620-1/04","Fornecimento de alimentos preparados preponderantemente para consumo domiciliar",56,"SERV"]
[null,null,null,null,null,null,null,null,null,null,null,null,null,"Editor de jornais","Serviço de edição de jornais - Editor de jornais","5812-3/00","Edição de jornais",58,"SERV"]
[null,null,null,null,null,null,null,null,null,null,null,null,null,"Editor de lista de dados e de outras informações","Serviço de edição de listas de dados e de outras informações como listas telefônicas, catálogos, material publicitário, listas para malas diretas e similares - Editor de lista de dados e de outras informações","5819-1/00","Edição de cadastros, listas e outros produtos gráficos",58,"SERV"]
[null,null,null,null,null,null,null,null,null,null,null,null,null,"Editor de livros","Serviço de edição de livros - Editor de livros","5811-5/00","Edição de livros",58,"SERV"]
[null,null,null,null,null,null,null,null,null,null,null,null,null,"Editor de revistas","Serviço de edição de revistas - Editor de revistas","5813-1/00","Edição de revistas",58,"SERV"]
[null,null,null,null,null,null,null,null,null,null,null,null,null,"Eletricista de automóveis","Serviços de manutenção e reparação elétrica em veículos automotores - Eletricista de autos","4520-0/03","Serviços de manutenção e reparação elétrica de veículos automotores",45,"COM"]
[null,null,null,null,null,null,null,null,null,null,null,null,null,"Eletricista em residências e estabelecimentos comerciais","Serviços de instalação e manutenção elétrica - Eletricista","4321-5/00","Instalação e manutenção elétrica",43,"SERV"]
[null,null,null,null,null,null,null,null,null,null,null,null,null,"Encadernador/Plastificador","Seviços de encadernação e plastificação - Encadernador/Plastificador","1822-9/00","Serviços de acabamentos gráficos",18,"IND"]
[null,null,null,null,null,null,null,null,null,null,null,null,null,"Encanador","Serviços de instalações hidráulicas, sanitárias e de gás - Encanador","4322-3/01","Instalações hidráulicas, sanitárias e de gás",43,"SERV"]
[null,null,null,null,null,null,null,null,null,null,null,null,null,"Engraxate","Serviços de engraxar sapatos - Engraxate ","9609-2/99","Outras atividades de serviços pessoais não especificadas anteriormente",96,"SERV"]
[null,null,null,null,null,null,null,null,null,null,null,null,null,"Entregador de malotes","Serviços de malote não realizados pelo Correio Nacional - Entregador de malotes","5320-2/01","Serviços de malote não realizados pelo Correio Nacional",53,"SERV"]
[null,null,null,null,null,null,null,null,null,null,null,null,null,"Envasador e empacotador","Serviços de envasamento, fracionamento e empacotamento - Envasador e empacotador","8292-0/00","Envasamento e empacotamento sob contrato",82,"SERV"]
[null,null,null,null,null,null,null,null,null,null,null,null,null,"Esteticista de animais domésticos","Serviços de tratamento de beleza de animais dométicos - Esteticista de animais domésticos.","9609-2/03","Alojamento, higiene e embelezamento de animais",96,"SERV"]
[null,null,null,null,null,null,null,null,null,null,null,null,null,"Estofador","Serviços de reparação de artigos do mobiliário - Estofador","9529-1/05","Reparação de artigos do mobiliário",95,"SERV"]
[null,null,null,null,null,null,null,null,null,null,null,null,null,"Fabricante de absorventes higiênicos","Fabricação de absorventes higiênicos - Fabricante de absorventes higiênicos","1742-7/02","Fabricação de absorventes higiênicos",17,"IND"]
[null,null,null,null,null,null,null,null,null,null,null,null,null,"Fabricante de Açúcar Mascavo","Fabricação de Açúcar Mascavo - Fabricante de Açúcar Mascavo","1071-6/00","Fabricação de açúcar em bruto (mascavo, rapadura, melado etc)",10,"IND"]
[null,null,null,null,null,null,null,null,null,null,null,null,null,"Fabricante de águas naturais","Fabricação de águas naturais - Fabricante de águas naturais","1122-4/99","Fabricação de outras bebidas não-alcoólicas não especificadas anteriormente",11,"IND"]
[null,null,null,null,null,null,null,null,null,null,null,null,null,"Fabricante de alimentos prontos congelados","Fabricação e preparação de pratos prontos congelados, salgadinhos congelados e sobremesas congeladas - Fabricante de alimentos prontos congelados","1096-1/00","Fabricação de alimentos e pratos prontos",10,"IND"]
[null,null,null,null,null,null,null,null,null,null,null,null,null,"Fabricante de Amido e Féculas de Vegetais","Fabricação de amidos e féculas de vegetais - Fabricante de Amido e Féculas de Vegetais","1065-1/01","Fabricação de amidos e féculas de vegetais",10,"IND"]
[null,null,null,null,null,null,null,null,null,null,null,null,null,"Fabricante de artefatos de funilaria","Fabricação de baldes, regadores, calhas e condutores para água de metal - Fabricante de artefatos de funilaria","2532-2/01","Produção de artefatos estampados de metal",25,"IND"]
[null,null,null,null,null,null,null,null,null,null,null,null,null,"Fabricante de artefatos estampados de metal","Fabricação de artefatos estampados de metal - Fabricante de artefatos estampados de metal","2532-2/01","Produção de artefatos estampados de metal",25,"IND"]
[null,null,null,null,null,null,null,null,null,null,null,null,null,"Fabricante de artefatos para pesca e esporte","Fabricação de artefatos para pesca e esporte - Fabricante de artefatos para pesca e esporte","3230-2/00","Fabricação de artefatos para pesca e esporte",32,"IND"]
[null,null,null,null,null,null,null,null,null,null,null,null,null,"Fabricante de artefatos têxteis para uso doméstico","Fabricação de roupas de cama, de mesa, de banho, de travesseiro, almofadas, edredons e cortinas - Fabricante de artefatos têxteis para uso doméstico","1351-1/00","Fabricação de artefatos têxteis para uso doméstico",13,"IND"]
[null,null,null,null,null,null,null,null,null,null,null,null,null,"Fabricante de artigos de cutelaria","Fabricação de artigos de cutelaria - Fabricante de artigos de cutelaria","2541-1/00","Fabricação de artigos de cutelaria",25,"IND"]
[null,null,null,null,null,null,null,null,null,null,null,null,null,"Fabricante de aviamentos para costura","Fabricação de aviamentos para costura - Fabricante de aviamentos para costura","3299-0/05","Fabricação de aviamentos para costura",32,"IND"]
[null,null,null,null,null,null,null,null,null,null,null,null,null,"Fabricante de balas, confeitos e frutas cristalizadas","Fabricação de balas, confeitos e frutas cristalizadas - Fabricante de balas, confeitos e frutas cristalizadas","1093-7/02","Fabricação de frutas cristalizadas, balas e semelhantes",10,"IND"]
[null,null,null,null,null,null,null,null,null,null,null,null,null,"Fabricante de bolsas/bolseiro","Fabricação de bolsas - Fabricante de bolsas/bolseiro","1521-1/00","Fabricação de artigos para viagem, bolsas e semelhantes de qualquer material",15,"IND"]
[null,null,null,null,null,null,null,null,null,null,null,null,null,"Fabricante de brinquedos não eletrônicos","Fabricação de brinquedos de qualquer material, mecanizados ou não - Fabricante de brinquedos não eletrônicos","3240-0/99","Fabricação de outros brinquedos e jogos recreativos não especificados anteriormente",32,"IND"]
[null,null,null,null,null,null,null,null,null,null,null,null,null,"Fabricante de calçados de borracha, madeira e tecidos e fibras","Fabricação de sandálias, chinelos, tamancos e alpercatas - Fabricante de calçados de borracha, madeira e tecidos e fibras","1539-4/00","Fabricação de calçados de materiais não especificados anteriormente",15,"IND"]
[null,null,null,null,null,null,null,null,null,null,null,null,null,"Fabricante de calçados de couro","Fabricação de calçados de couro - Fabricante de calçados de couro, sob encomenda","1531-9/01","Fabricação de calçados de couro",15,"IND"]
[null,null,null,null,null,null,null,null,null,null,null,null,null,"Fabricante de chá","Fabricação de produtos para infusão como chá, mate e outras ervas - Fabricante de produtos para infusão","1099-6/05","Fabricação de produtos para infusão (chá, mate, etc.)",{"$f":"VALUE(LEFT(P278,2))","v":10},{"$f":"IF(R278<35,\"IND\",IF(AND(R278>=45,R278<=47),\"COM\",\"SERV\"))","v":"IND"}]
[null,null,null,null,null,null,null,null,null,null,null,null,null,"Fabricante de cintos/cinteiro","Fabricação de cintos - Fabricante de cintos/cinteiro","1414-2/00","Fabricação de acessórios do vestuário, exceto para segurança e proteção",14,"IND"]
[null,null,null,null,null,null,null,null,null,null,null,null,null,"Fabricante de conservas de frutas","Fabricação de conservas de frutas (frutas conservadas em álcool, secas, desidratadas, polpas conservadas, purês e semelhantes) - Fabricante de conservas de frutas","1031-7/00","Fabricação de conservas de frutas",10,"IND"]
[null,null,null,null,null,null,null,null,null,null,null,null,null,"Fabricante de conservas de legumes e outros vegetais","Fabricação de conservas de legumes e outros vegetais mediante congelamento, cozimento, imersão em azeite e vinagre e a fabricação de batatas fritas e aperitivos à base de batata - Fabricante de conservas de legumes e outros vegetais","1032-5/99","Fabricação de conservas de legumes e outros vegetais, exceto palmito",10,"IND"]
[null,null,null,null,null,null,null,null,null,null,null,null,null,"Fabricante de desinfestantes","Fabricação de desinfestantes para uso doméstico, comercial e industrial - Fabricante de desinfestantes","2052-5/00","Fabricação de desinfestantes domissanitários",20,"IND"]
[null,null,null,null,null,null,null,null,null,null,null,null,null,"Fabricante de embalagens de cartolina e papel-cartão","Fabricação de embalagens de cartolina e papel-cartão - Fabricante de embalagens de cartolina e papel-cartão","1732-0/00","Fabricação de embalagens de cartolina e papel-cartão",17,"IND"]
[null,null,null,null,null,null,null,null,null,null,null,null,null,"Fabricante de embalagens de madeira","Fabricação de caixas, caixotes e engradados de madeira - Fabricante de embalagens de madeira","1623-4/00","Fabricação de artefatos de tanoaria e de embalagens de madeira",16,"IND"]
[null,null,null,null,null,null,null,null,null,null,null,null,null,"Fabricante de embalagens de papel","Fabricação de embalagens de papel - Fabricante de embalagens de papel","1731-1/00","Fabricação de embalagens de papel",17,"IND"]
[null,null,null,null,null,null,null,null,null,null,null,null,null,"Fabricante de especiarias","Fabricação e preparação de especiarias, condimentos, molhos e temperos diversos - Fabricante de especiarias","1095-3/00","Fabricação de especiarias, molhos, temperos e condimentos",10,"IND"]
[null,null,null,null,null,null,null,null,null,null,null,null,null,"Fabricante de esquadrias metálicas","Fabricação de esquadrias de metal - Fabricante de esquadrias metálicas","2512-8/00","Fabricação de esquadrias de metal",25,"IND"]
[null,null,null,null,null,null,null,null,null,null,null,null,null,"Fabricante de fios de algodão","Fabricação de fios de fibra de algodão - Fabricante de fios de algodão","1311-1/00","Preparação e fiação de fibras de algodão",13,"IND"]
[null,null,null,null,null,null,null,null,null,null,null,null,null,"Fabricante de fios de linho, rami, juta, seda e lã","Fabricação de fios de fibras de linho, rami, juta, seda e lã - Fabricante de fios de linho, rami, juta, seda e lã","1312-0/00","Preparação e fiação de fibras têxteis naturais, exceto algodão",13,"IND"]
[null,null,null,null,null,null,null,null,null,null,null,null,null,"Fabricante de fumo e derivados do fumo","Fabricação de fumo em rolo e em corda, fabricação de rapé e de palha para cigarros - Fabricante de fumo e derivados do fumo","1220-4/99","Fabricação de outros produtos do fumo, exceto cigarros, cigarrilhas e charutos",12,"IND"]
[null,null,null,null,null,null,null,null,null,null,null,null,null,"Fabricante de geléia de mocotó","Fabricação de geléia de mocotó - Fabricante de geléia de mocotó","1099-6/99","Fabricação de outros produtos alimentícios não especificados anteriormente",10,"IND"]
[null,null,null,null,null,null,null,null,null,null,null,null,null,"Fabricante de gelo comum","Fabricação de gelo comum para qualquer uso - Fabricante de gelo comum","1099-6/04","Fabricação de gelo comum",10,"IND"]
[null,null,null,null,null,null,null,null,null,null,null,null,null,"Fabricante de guarda-chuvas e similares","Fabricação de guarda-chuvas e similares Fabricante de guarda-chuvas e similares","3299-0/01","Fabricação de guarda-chuvas e similares",32,"IND"]
[null,null,null,null,null,null,null,null,null,null,null,null,null,"Fabricante de guardanapos e copos de papel","Fabricação de guardanapos, lenços, toalhas e copos de papel - Fabricante de guardanapos e copos de papel","1742-7/99","Fabricação de produtos de papel para uso doméstico e higiênico-sanitário não especificados anteriormente",17,"IND"]
[null,null,null,null,null,null,null,null,null,null,null,null,null,"Fabricante de instrumentos musicais","Fabricação de instrumentos musicais, peças e acessórios - Fabricante de instrumentos musicais","3220-5/00","Fabricação de instrumentos musicais, peças e acessórios",32,"IND"]
[null,null,null,null,null,null,null,null,null,null,null,null,null,"Fabricante de jogos recreativos","Fabricação de jogos recreativos (jogos de dama, xadrez, bingo, gamão, dominó, baralhos, dados, ludo e assemelhados) - Fabricante de jogos recreativos","3240-0/99","Fabricação de outros brinquedos e jogos recreativos não especificados anteriormente",32,"IND"]
[null,null,null,null,null,null,null,null,null,null,null,null,null,"Fabricante de Laticínios","Fabricação de creme de leite, queijo, manteiga, coalhada, iogurte, e a fabricação de bebidas à base de leite - Fabricante de Laticínios","1052-0/00","Fabricação de laticínios",10,"IND"]
[null,null,null,null,null,null,null,null,null,null,null,null,null,"Fabricante de letreiros, placas e painéis não luminosos","Fabricação de painéis, letreiros e placas não luminosos de qualquer material - Fabricante de letreiros, placas e painéis não luminosos","3299-0/03","Fabricação de letras, letreiros e placas de qualquer material, exceto luminosos",32,"IND"]
[null,null,null,null,null,null,null,null,null,null,null,null,null,"Fabricante de luminárias e outros equipamentos de iluminação","Fabricação de luminárias e outros equipamentos de iluminação - Fabricante de luminárias e outros equipamentos de iluminação","2740-6/02","Fabricação de luminárias e outros equipamentos de iluminação",27,"IND"]
[null,null,null,null,null,null,null,null,null,null,null,null,null,"Fabricante de malas","Fabricação de malas e valises - Fabricante de malas","1521-1/00","Fabricação de artigos para viagem, bolsas e semelhantes de qualquer material",15,"IND"]
[null,null,null,null,null,null,null,null,null,null,null,null,null,"Fabricante de massas alimentícias","Fabricação de massas alimentícias secas, frescas, congeladas ou resfriadas, com ou sem recheio - Fabricante de massas alimentícias","1094-5/00","Fabricação de massas alimentícias",10,"IND"]
[null,null,null,null,null,null,null,null,null,null,null,null,null,"Fabricante de meias","Fabricação de meias - Fabricante de meias","1421-5/00","Fabricação de meias",14,"IND"]
[null,null,null,null,null,null,null,null,null,null,null,null,null,"Fabricante de mochilas e carteiras ","Fabricação de mochilas e carteiras - Fabricante de mochilas e carteiras","1521-1/00","Fabricação de artigos para viagem, bolsas e semelhantes de qualquer material",15,"IND"]
[null,null,null,null,null,null,null,null,null,null,null,null,null,"Fabricante de painéis e letreiros luminosos","Fabricação de painéis e letreiros luminosos - Fabricante de painéis e letreiros luminosos","3299-0/04","Fabricação de painéis e letreiros luminosos",32,"IND"]
[null,null,null,null,null,null,null,null,null,null,null,null,null,"Fabricante de pão de queijo congelado","Fabricação de pão de queijo congelado - Fabricante de pão de queijo congelado","1099-6/99","Fabricação de outros produtos alimentícios não especificados anteriormente",10,"IND"]
[null,null,null,null,null,null,null,null,null,null,null,null,null,"Fabricante de papel","Fabricação de papel para impressão, para embalagem e para uso industrial - Fabricante de papel","1721-4/00","Fabricação de papel",17,"IND"]
[null,null,null,null,null,null,null,null,null,null,null,null,null,"Fabricante de partes de peças do vestuário - facção","Serviço de corte e costura de partes de peças do vestuário - Fabricante de partes do vestuário - facção","1412-6/03","Facção de peças do vestuário, exceto roupas íntimas",14,"IND"]
[null,null,null,null,null,null,null,null,null,null,null,null,null,"Fabricante de partes de roupas íntimas - facção","Serviço de corte e costura de partes de roupas íntimas - Fabricante de partes de roupas íntimas - facção","1411-8/02","Facção de roupas íntimas",14,"IND"]
[null,null,null,null,null,null,null,null,null,null,null,null,null,"Fabricante de partes de roupas profissionais - facção","Serviço de corte e costura de partes de roupas profissionais - Fabricante de partes de roupas profissionais - facção","1413-4/03","Facção de roupas profissionais",14,"IND"]
[null,null,null,null,null,null,null,null,null,null,null,null,null,"Fabricante de partes para calçados","Fabricação de partes para calçados - Fabricante de partes para calçados","1540-8/00","Fabricação de partes para calçados, de qualquer material",15,"IND"]
[null,null,null,null,null,null,null,null,null,null,null,null,null,"Fabricante de produtos de perfumaria e de higiene pessoal","Fabricação de produtos de perfumaria e de higiene pessoal - Fabricante de produtos de perfumaria e de higiene pessoal","2063-1/00","Fabricação de cosméticos, produtos de perfumaria e de higiene pessoal",20,"IND"]
[null,null,null,null,null,null,null,null,null,null,null,null,null,"Fabricante de produtos de polimento","Fabricação de polidores, graxas, ceras artificiais ou mistas e branqueadores - Fabricante de produtos de polimento","2062-2/00","Fabricação de produtos de limpeza e polimento",20,"IND"]
[null,null,null,null,null,null,null,null,null,null,null,null,null,"Fabricante de produtos de soja","Fabricação de produtos à base de soja com fins alimentícios - Fabricante de produtos de soja","1099-6/99","Fabricação de outros produtos alimentícios não especificados anteriormente",10,"IND"]
[null,null,null,null,null,null,null,null,null,null,null,null,null,"Fabricante de produtos de tecido não tecido para uso odonto-médico-hospitalar","Fabricação de produtos de tecido não tecido para uso odonto-médico-hospitalar (máscaras, gorros e aventais) - Fabricante de produtos de tecido não tecido para uso odonto-médico-hospitalar","3250-7/08","Fabricação de artefatos de tecido não tecido para uso odonto-médico-hospitalar",32,"IND"]
[null,null,null,null,null,null,null,null,null,null,null,null,null,"Fabricante de produtos derivados de carne","Fabricação de produtos derivados de carne - Fabricante de produtos derivados de carne","1013-9/01","Fabricação de produtos de carne",10,"IND"]
[null,null,null,null,null,null,null,null,null,null,null,null,null,"Fabricante de Produtos Derivados do Arroz","Fabricação de farinha, flocos e outros produtos de arroz - Fabricante de Produtos Derivados do Arroz","1061-9/02","Fabricação de produtos do arroz",10,"IND"]
[null,null,null,null,null,null,null,null,null,null,null,null,null,"Fabricante de Rapadura e Melaço","Fabricação de Rapadura e Melaço - Fabricante de Rapadura e Melaço","1071-6/00","Fabricação de açúcar em bruto (mascavo, rapadura, melado etc)",10,"IND"]
[null,null,null,null,null,null,null,null,null,null,null,null,null,"Fabricante de refrescos, xaropes e pós para refrescos","Fabricação de refrescos e pós para refrescos e xaropes para elaboração de bebidas - Fabricante de refrescos, xaropes e pós para refrescos","1122-4/03","Fabricação de refrescos, xaropes e pós para refrescos, exceto refrescos de frutas",11,"IND"]
[null,null,null,null,null,null,null,null,null,null,null,null,null,"Fabricante de roupas íntimas","Fabricação de roupas íntimas (cuecas, calcinhas, soutiens, camisolas, pijamas) - Fabricante de roupas íntimas","1411-8/01","Confecção de roupas íntimas",14,"IND"]
[null,null,null,null,null,null,null,null,null,null,null,null,null,"Fabricante de sabões e detergentes sintéticos","Fabricação de sabões e detergentes sintéticos - Fabricante de sabões e detergentes sintéticos","2061-4/00","Fabricação de sabões e detergentes sintéticos",20,"IND"]
[null,null,null,null,null,null,null,null,null,null,null,null,null,"Fabricante de sucos de frutas, hortaliças e legumes","Fabricação de sucos e refrescos de frutas, hortaliças e legumes prontos para beber - Fabricante de sucos de frutas, hortaliças e legumes","1033-3/02","Fabricação de sucos de frutas, hortaliças e legumes, exceto concentrados",10,"IND"]
[null,null,null,null,null,null,null,null,null,null,null,null,null,"Farinheiro de Mandioca","Fabricação de farinha da mandioca e derivados - Farinheiro de Mandioca","1063-5/00","Fabricação de farinha de mandioca e derivados",10,"IND"]
[null,null,null,null,null,null,null,null,null,null,null,null,null,"Farinheiro de Milho","Fabricação de farinha de milho e derivados - Farinheiro de Milho","1064-3/00","Fabricação de farinha de milho e derivados, exceto óleos de milho",10,"IND"]
[null,null,null,null,null,null,null,null,null,null,null,null,null,"Ferramenteiro","Serviços de construção e desenvolvimento de ferramentas e dispositivos de usinagem, estampos de corte, dobra, repuxo e corte fino, moldes de sopro, de injeção e eletroerosão, modelos de moldes metálicos para fundição - Ferramenteiro","2543-8/00","Fabricação de ferramentas",25,"IND"]
[null,null,null,null,null,null,null,null,null,null,null,null,null,"Ferreiro/forjador","Serviços de usinagem, conformação e tratamento de metais - Ferreiro/forjador.","2543-8/00","Fabricação de ferramentas",25,"IND"]
[null,null,null,null,null,null,null,null,null,null,null,null,null,"Filmador","Serviços de captação de imagens através de câmeras de cinema e vídeo - Filmador.","7420-0/04","Filmagem de festas e eventos",74,"SERV"]
[null,null,null,null,null,null,null,null,null,null,null,null,null,"Fornecedor de alimentos preparados para empresas","Fornecimento de alimentos preparados para empresas - Fornecedor de alimentos preparados para empresas","5620-1/01","Fornecimento de alimentos preparados preponderantemente para empresas",56,"SERV"]
[null,null,null,null,null,null,null,null,null,null,null,null,null,"Fosseiro (limpador de fossa)","Serviços de limpeza de fossas - Fosseiro.","3702-9/00","Atividades Relacionadas A Esgoto, Exceto A Gestão De Redes",37,"SERV"]
[null,null,null,null,null,null,null,null,null,null,null,null,null,"Fotocopiador ","Serviços de fotocópias de documentos - Fotocopiador.","8219-9/01","Fotocópias",82,"SERV"]
[null,null,null,null,null,null,null,null,null,null,null,null,null,"Fotógrafo","Serviços de captação estática de imagens fotográficas de acontecimentos, pessoas, paisagens, objetos e outros temas - Fotógrafo.","7420-0/01","Atividades de produção de fotografias, exceto aérea e submarina",74,"SERV"]
[null,null,null,null,null,null,null,null,null,null,null,null,null,"Fotógrafo aéreo","Serviços de fotografias aéreas - Fotógrafo aéreo","7420-0/02","Atividades de produção de fotografias aéreas e submarinas",74,"SERV"]
[null,null,null,null,null,null,null,null,null,null,null,null,null,"Fotógrafo submarino","Serviços de fotografias submarinas - Fotógrafo submarino","7420-0/02","Atividades de produção de fotografias aéreas e submarinas",74,"SERV"]
[null,null,null,null,null,null,null,null,null,null,null,null,null,"Funileiro / lanterneiro","Serviços de pintura, lanternagem e funilaria de veículos  - Funileiro/lanterneiro.","4520-0/02","Serviços de lanternagem ou funilaria e pintura de veículos automotores",45,"COM"]
[null,null,null,null,null,null,null,null,null,null,null,null,null,"Galvanizador","Serviços de tratamento de superfícies de peças metálicas e não-metálicas ou de material sintético - Galvanizador.","2539-0/00","Serviços de usinagem, solda, tratamento e revestimento em metais",25,"IND"]
[null,null,null,null,null,null,null,null,null,null,null,null,null,"Gesseiro","Serviços de acabamento em gessso e estuque, inclusive a colocação de elementos de decoração diversos em gesso em paredes, fachadas, tetos, colunas e vigas - Gesseiro.","4330-4/03","Obras de acabamento em gesso e estuque",43,"SERV"]
[null,null,null,null,null,null,null,null,null,null,null,null,null,"Gravador de carimbos","Serviços de gravação de carimbos - Gravador de carimbos.","8299-7/03","Serviços de gravação de carimbos, exceto confecção",82,"SERV"]
[null,null,null,null,null,null,null,null,null,null,null,null,null,"Guardador de móveis","Serviços de guarda-móveis - Guardador de móveis","5211-7/02","Guarda-móveis",52,"SERV"]
[null,null,null,null,null,null,null,null,null,null,null,null,null,"Guincheiro (reboque de veículos)","Serviços de reboque de veículos - Guincheiro. ","5229-0/02","Serviços de reboque de veículos",52,"SERV"]
[null,null,null,null,null,null,null,null,null,null,null,null,null,"Humorista","Serviço de entretenimento cômico - Humorista","9001-9/01","Produção teatral",90,"SERV"]
[null,null,null,null,null,null,null,null,null,null,null,null,null,"Instalador de equipamentos para orientação à navegação marítima, fluvial e lacustre","Serviços de instalação de equipamentos para orientação à navegação marítima, fluvial e lacustre - Instalador de equipamentos para orientação à navegação marítima, fluvial e lacustre","4329-1/02","Instalação de equipamentos para orientação à navegação marítima, fluvial e lacustre",43,"SERV"]
[null,null,null,null,null,null,null,null,null,null,null,null,null,"Instalador de isolantes acústicos e de vibração","Serviços de instalação e manutenção de isolantes acústicos e de vibração - Instalador de isolantes acústicos e de vibração","4329-1/05","Tratamentos térmicos, acústicos ou de vibração",43,"SERV"]
[null,null,null,null,null,null,null,null,null,null,null,null,null,"Instalador de isolantes térmicos","Serviços de instalação e manutenção de isolantes térmicos - Instalador de isolantes térmicos","4329-1/05","Tratamentos térmicos, acústicos ou de vibração",{"$f":"VALUE(LEFT(P342,2))","v":43},{"$f":"IF(R342<35,\"IND\",IF(AND(R342>=45,R342<=47),\"COM\",\"SERV\"))","v":"SERV"}]
[null,null,null,null,null,null,null,null,null,null,null,null,null,"Instalador de máquinas e equipamentos industriais","Instalação de máquinas e equipamentos industriais - Instalador de máquinas e equipamentos industriais","3321-0/00","Instalação de máquinas e equipamentos industriais",33,"IND"]
[null,null,null,null,null,null,null,null,null,null,null,null,null,"Instalador de painéis publicitários","Serviços de instalação de painéis publicitários - Instalador de painéis publicitários","4329-1/01","Instalação de painéis publicitários",43,"SERV"]
[null,null,null,null,null,null,null,null,null,null,null,null,null,"Instalador de sistema de prevenção contra incêndio","Serviços de instalações de sistema de prevenção contra incêndio - Instalador de sistema de prevenção contra incêndio","4322-3/03","Instalações de sistema de prevenção contra incêndio",43,"SERV"]
[null,null,null,null,null,null,null,null,null,null,null,null,null,"Instalador e reparador de acessórios automotivos","Serviços de instalação e reparação de acessórios automotivos - Instalador e reparador de acessórios automotivos","4520-0/07","Serviços de instalação, manutenção e reparação de acessórios para veículos automotores",45,"COM"]
[null,null,null,null,null,null,null,null,null,null,null,null,null,"Instalador e reparador de elevadores, escadas e esteiras rolantes","Serviços de instalação, manutenção e reparação de elevadores, escadas e esteiras rolantes - Instalador e reparador de elevadores, escadas e esteiras rolantes","4329-1/03","Instalação, manutenção e reparação de elevadores, escadas e esteiras rolantes, exceto de fabricação própria",43,"SERV"]
[null,null,null,null,null,null,null,null,null,null,null,null,null,"Instalador e reparador de sistemas centrais de ar condicionado, de ventilação e refrigeração","Serviços de instalação e manutenção de sistemas centrais de ar condicionado, de ventilação e refrigeração - Instalador e reparador de sistemas centrais de ar condicionado, de ventilação e refrigeração","4322-3/02","Instalação e manutenção de sistemas centrais de ar condicionado, de ventilação e refrigeração",43,"SERV"]
[null,null,null,null,null,null,null,null,null,null,null,null,null,"Instrutor de arte e cultura em geral","Serviço de ensino de arte e cultura - Instrutor de arte e cultura em geral.","8592-9/99","Ensino de arte e cultura não especificado anteriormente",85,"SERV"]
[null,null,null,null,null,null,null,null,null,null,null,null,null,"Instrutor de artes cênicas","Serviço de ensino de artes cênicas - Instrutor de artes cênicas.","8592-9/02","Ensino de artes cênicas, exceto dança",85,"SERV"]
[null,null,null,null,null,null,null,null,null,null,null,null,null,"Instrutor de cursos gerenciais","Serviço de treinamento e capacitação gerencial e profissional - Instrutor de cursos gerenciais","8599-6/04","Treinamento em desenvolvimento profissional e gerencial",85,"SERV"]
[null,null,null,null,null,null,null,null,null,null,null,null,null,"Instrutor de cursos preparatórios","Serviço de treinamento e preparação para concursos - Instrutor de cursos preparatórios","8599-6/05","Cursos preparatórios para concursos",85,"SERV"]
[null,null,null,null,null,null,null,null,null,null,null,null,null,"Instrutor de idiomas","Serviço de ensino de idiomas - Instrutor de idiomas.","8593-7/00","Ensino de idiomas",85,"SERV"]
[null,null,null,null,null,null,null,null,null,null,null,null,null,"Instrutor de informática","Serviço de treinamento em informática - Instrutor de informática.","8599-6/03","Treinamento em informática",85,"SERV"]
[null,null,null,null,null,null,null,null,null,null,null,null,null,"Instrutor de música","Serviço de ensino de música - Instrutor de música.","8592-9/03","Ensino de música",85,"SERV"]
[null,null,null,null,null,null,null,null,null,null,null,null,null,"Jardineiro","Serviços de paisagismo, limpeza, manutenção e plantio de jardins - Jardineiro","8130-3/00","Atividades Paisagísticas",81,"SERV"]
[null,null,null,null,null,null,null,null,null,null,null,null,null,"Jornaleiro","Comércio varejista de jornais e revistas - Jornaleiro","4761-0/02","Comércio varejista de jornais e revistas",47,"COM"]
[null,null,null,null,null,null,null,null,null,null,null,null,null,"Lapidador","Serviço de lapidação de gemas - Lapidador","3211-6/01","Lapidação de gemas",32,"IND"]
[null,null,null,null,null,null,null,null,null,null,null,null,null,"Lavadeira de roupas","Serviços de lavagem de roupas - Lavadeira de roupas","9601-7/01","Lavanderias",96,"SERV"]
[null,null,null,null,null,null,null,null,null,null,null,null,null,"Lavadeira de roupas profissionais","Serviços de lavagem de roupas hospitalares, industriais e profissionais - Lavadeira de roupas profissionais","9601-7/03","Toalheiros",96,"SERV"]
[null,null,null,null,null,null,null,null,null,null,null,null,null,"Lavador de carro","Serviços de lavagem e polimento de veículos automotores - Lavador de carro","4520-0/05","Serviços de lavagem, lubrificação e polimento de veículos automotores",45,"COM"]
[null,null,null,null,null,null,null,null,null,null,null,null,null,"Lavador de estofado e sofá","Serviços de lavagem de estofados e sofás - Lavador de estofado e sofá.","9609-2/99","Outras atividades de serviços pessoais não especificadas anteriormente",96,"SERV"]
[null,null,null,null,null,null,null,null,null,null,null,null,null,"Lavrador agrícola","Serviço de preparação de terreno para fins de plantio, cultivo e colheita de produtos agrícolas - Lavrador agrícola","0161-0/03","Serviço de preparação de terreno, cultivo e colheita",1,"IND"]
[null,null,null,null,null,null,null,null,null,null,null,null,null,"Livreiro","Comércio varejista de livros - Livreiro","4761-0/01","Comércio varejista de livros",47,"COM"]
[null,null,null,null,null,null,null,null,null,null,null,null,null,"Locador de andaimes","Serviços de Aluguel de andaimes - Locador de andaimes","7732-2/02","Aluguel de andaimes",77,"SERV"]
[null,null,null,null,null,null,null,null,null,null,null,null,null,"Locador de aparelhos de jogos eletrônicos","Serviços de Aluguel de aparelhos de jogos eletrônicos - Locador de aparelhos de jogos eletrônicos","7729-2/01","Aluguel de aparelhos de jogos eletrônicos",77,"SERV"]
[null,null,null,null,null,null,null,null,null,null,null,null,null,"Locador de equipamentos científicos, médicos e hospitalares, sem operador","Serviços de Aluguel de equipamentos científicos, médicos e hospitalares, sem operador - Locador de equipamentos científicos, médicos e hospitalares, sem operador","7739-0/02","Aluguel de equipamentos científicos, médicos e hospitalares, sem operador",77,"SERV"]
[null,null,null,null,null,null,null,null,null,null,null,null,null,"Locador de equipamentos recreativos e esportivos","Serviços de Aluguel de equipamentos recreativos e esportivos - Locador de equipamentos recreativos e esportivos","7721-7/00","Aluguel de equipamentos recreativos e esportivos",77,"SERV"]
[null,null,null,null,null,null,null,null,null,null,null,null,null,"Locador de fitas de vídeo, DVDs e similares","Serviços de Aluguel de fitas de vídeo, DVDs e similares - Locador de fitas de vídeo, DVDs e similares","7722-5/00","Aluguel de fitas de vídeo, DVDs e similares",77,"SERV"]
[null,null,null,null,null,null,null,null,null,null,null,null,null,"Locador de livros, revistas, plantas e flores","Serviços de Aluguel de livros, revistas, plantas e flores - Locador de livros, revistas, plantas e flores","7729-2/99","Aluguel de outros objetos pessoais e domésticos não especificados anteriormente",77,"SERV"]
[null,null,null,null,null,null,null,null,null,null,null,null,null,"Locador de máquinas e equipamentos agrícolas sem operador","Serviços de Aluguel de máquinas e equipamentos agrícolas sem operador - Locador de máquinas e equipamentos agrícolas sem operador","7731-4/00","Aluguel de máquinas e equipamentos agrícolas sem operador",77,"SERV"]
[null,null,null,null,null,null,null,null,null,null,null,null,null,"Locador de máquinas e equipamentos para construção sem operador, exceto andaimes","Serviços de Aluguel de máquinas e equipamentos para construção sem operador, exceto andaimes - Locador de máquinas e equipamentos para construção sem operador, exceto andaimes","7732-2/01","Aluguel de máquinas e equipamentos para construção sem operador, exceto andaimes",77,"SERV"]
[null,null,null,null,null,null,null,null,null,null,null,null,null,"Locador de máquinas e equipamentos para escritório","Serviços de Aluguel de máquinas e equipamentos para escritório - Locador de máquinas e equipamentos para escritório","7733-1/00","Aluguel de máquinas e equipamentos para escritório",77,"SERV"]
[null,null,null,null,null,null,null,null,null,null,null,null,null,"Locador de material médico","Serviços de Aluguel de material médico - Locador de material médico","7729-2/03","Aluguel de material médico",77,"SERV"]
[null,null,null,null,null,null,null,null,null,null,null,null,null,"Locador de móveis, utensílios, instrumentos musicais e aparelhos de uso doméstico e pessoal","Serviços de Aluguel de móveis, utensílios, instrumentos musicais e aparelhos de uso doméstico e pessoal  - Locador de móveis, utensílios, instrumentos musicais e aparelhos de uso doméstico e pessoal","7729-2/02","Aluguel de móveis, utensílios e aparelhos de uso doméstico e pessoal; instrumentos musicais",77,"SERV"]
[null,null,null,null,null,null,null,null,null,null,null,null,null,"Locador de objetos do vestuário, jóias e acessórios","Serviços de Aluguel de objetos do vestuário, jóias e acessórios - Locador de objetos do vestuário, jóias e acessórios","7723-3/00","Aluguel de objetos do vestuário, jóias e acessórios",77,"SERV"]
[null,null,null,null,null,null,null,null,null,null,null,null,null,"Locador de outras máquinas e equipamentos comerciais e industriais não especificados anteriormente, sem operador","Serviços de Aluguel de outras máquinas e equipamentos comerciais e industriais não especificados anteriormente, sem operador - Locador de outras máquinas e equipamentos comerciais e industriais não especificados anteriormente, sem operador","7739-0/99","Aluguel de outras máquinas e equipamentos comerciais e industriais não especificados anteriormente, sem operador",77,"SERV"]
[null,null,null,null,null,null,null,null,null,null,null,null,null,"Locador de palcos, coberturas e outras estruturas de uso temporário, exceto andaimes","Serviços de Aluguel de palcos, coberturas e outras estruturas de uso temporário, exceto andaimes - Locador de palcos, coberturas e outras estruturas de uso temporário, exceto andaimes","7739-0/03","Aluguel de palcos, coberturas e outras estruturas de uso temporário, exceto andaimes",77,"SERV"]
[null,null,null,null,null,null,null,null,null,null,null,null,null,"Mágico","Serviços de apresentações em espetáculo público a partir de técnicas de ilusionismos - Mágico.","9329-8/99","Outras atividades de recreação e lazer não especificadas anteriormente",93,"SERV"]
[null,null,null,null,null,null,null,null,null,null,null,null,null,"Manicure/pedicure","Serviços de tratamento de beleza de mãos e pés - Manicure/pedicure","9602-5/02","Outras atividades de tratamento de beleza",96,"SERV"]
[null,null,null,null,null,null,null,null,null,null,null,null,null,"Maquiador","Serviços de maquiagens sociais e para caracterizações - Maquiador.","9602-5/02","Outras atividades de tratamento de beleza",96,"SERV"]
[null,null,null,null,null,null,null,null,null,null,null,null,null,"Marceneiro","Fabricação de móveis sob encomenda com predominância madeira e derivados - Marceneiro","3101-2/00","Fabricação de móveis com predominância de madeira",31,"IND"]
[null,null,null,null,null,null,null,null,null,null,null,null,null,"Marmiteiro","Fornecimento de alimentos preparados para consumo domiciliar - Marmiteiro","5620-1/04","Fornecimento de alimentos preparados preponderantemente para consumo domiciliar",56,"SERV"]
[null,null,null,null,null,null,null,null,null,null,null,null,null,"Mecânico de motocicletas e motonetas","Serviços de reparação e manutenção mecânica em motocicletas e motonetas - Mecânico de motocicletas e motonetas","4543-9/00","Manutenção e reparação de motocicletas e motonetas",45,"COM"]
[null,null,null,null,null,null,null,null,null,null,null,null,null,"Mecânico de veículos","Serviços de manutenção e reparação mecânica de veículos automotores - Mecânico de veículos","4520-0/01","Serviços de manutenção e reparação mecânica de veículos automotores",45,"COM"]
[null,null,null,null,null,null,null,null,null,null,null,null,null,"Merceeiro/vendeiro ","Comércio varejista de mercadorias em geral com predominância de produtos alimentícios - Merceeiro/vendeiro","4712-1/00","Comércio varejista de mercadorias em geral, com predominância de produtos alimentícios - minimercados, mercearias e armazéns",47,"COM"]
[null,null,null,null,null,null,null,null,null,null,null,null,null,"Mergulhador (escafandrista)","Serviços de escafandria e mergulho - Mergulhador (escafandrista).","7490-1/02","Escafandria e mergulho",74,"SERV"]
[null,null,null,null,null,null,null,null,null,null,null,null,null,"Moendeiro","Fabricação de farinhas de araruta, centeio, cevada, aveia, legumes secos, farinhas compostas, gérmens de cereais, aperitivos e alimentos para o café da manhã à base destes produtos - Moendeiro","1069-4/00","Moagem e fabricação de produtos de origem vegetal não especificados anteriormente",10,"IND"]
[null,null,null,null,null,null,null,null,null,null,null,null,null,"Montador de móveis","Serviços de montagem de móveis de qualquer material - Montador de móveis","3329-5/01","Serviços de montagem de móveis de qualquer material",33,"IND"]
[null,null,null,null,null,null,null,null,null,null,null,null,null,"Montador e instalador de sistemas e equipamentos de iluminação e sinalização em vias públicas, portos e aeroportos","Serviços de montagem e instalação de sistemas e equipamentos de iluminação e sinalização em vias públicas, portos e aeroportos - Montador e instalador de sistemas e equipamentos de iluminação e sinalização em vias públicas, portos e aeroportos","4329-1/04","Montagem e instalação de sistemas e equipamentos de iluminação e sinalização em vias públicas, portos e aeroportos",43,"SERV"]
[null,null,null,null,null,null,null,null,null,null,null,null,null,"Motoboy","Serviços de entrega rápida com utilização de motocicleta - Motoboy","5320-2/02","Serviços de entrega rápida",53,"SERV"]
[null,null,null,null,null,null,null,null,null,null,null,null,null,"Mototaxista","Serviço de transporte de pessoas com uso de motocicletas - Mototaxista.","4923-0/01","Serviço de táxi",49,"SERV"]
[null,null,null,null,null,null,null,null,null,null,null,null,null,"Moveleiro","Fabricação de móveis de materiais que não madeira e metal - Moveleiro","3103-9/00","Fabricação de móveis de outros materiais, exceto madeira e metal",31,"IND"]
[null,null,null,null,null,null,null,null,null,null,null,null,null,"Moveleiro de móveis metálicos","Fabricação de móveis com predominância de metal - Moveleiro de móveis metálicos","3102-1/00","Fabricação de móveis com predominância de metal",31,"IND"]
[null,null,null,null,null,null,null,null,null,null,null,null,null,"Oleiro","Fabricação de telhas e tijolos - Oleiro","2342-7/02","Fabricação De Artefatos De Cerâmica E Barro Cozido Para Uso Na Construção, Exceto Azulejos E Pisos ",23,"IND"]
[null,null,null,null,null,null,null,null,null,null,null,null,null,"Operador de marketing direto","Serviços de publicidade por mala direta, por telefone e em visitas de representantes - Operador de marketing direto","7319-0/03","Marketing direto",73,"SERV"]
[null,null,null,null,null,null,null,null,null,null,null,null,null,"Organizador municipal de excursões em veículo próprio","Serviços de trganização de excursões em veículos rodoviários próprios, municipal - Organizador municipal de excursões em veículo próprio","4929-9/03","Organização de excursões em veículos rodoviários próprios, municipal",49,"SERV"]
[null,null,null,null,null,null,null,null,null,null,null,null,null,"Ourives","Serviços de reparação de jóias - Ourives sob encomenda","9529-1/06","Reparação de jóias",95,"SERV"]
[null,null,null,null,null,null,null,null,null,null,null,null,null,"Padeiro","Fabricação de produtos de panificação - Padeiro","1091-1/00","Fabricação de produtos de panificação",10,"IND"]
[null,null,null,null,null,null,null,null,null,null,null,null,null,"Panfleteiro","Serviços de distribuição ou entrega de material publicitário - Panfleteiro","7319-0/02","Promoção de vendas",73,"SERV"]
[null,null,null,null,null,null,null,null,null,null,null,null,null,"Papeleiro","Comércio varejista de artigos de papelaria - Papeleiro","4761-0/03","Comércio varejista de artigos de papelaria",47,"COM"]
[null,null,null,null,null,null,null,null,null,null,null,null,null,"Pastilheiro","Serviços de colocação de pastilhas cerâmicas em edificações - Pastilheiro","4330-4/05","Aplicação de revestimentos e de resinas em interiores e exteriores",43,"SERV"]
[null,null,null,null,null,null,null,null,null,null,null,null,null,"Peixeiro","Comércio varejista de pescados, crustáceos e moluscos frescos, congelados, conservados ou frigorificados  - Peixeiro.","4722-9/02","Peixaria",47,"COM"]
[null,null,null,null,null,null,null,null,null,null,null,null,null,"Pescador em água doce","Serviços de captura de diversos tipos de pescado de água doce - Pescador em água doce","0312-4/03","Coleta de outros produtos aquáticos de água doce",3,"IND"]
[null,null,null,null,null,null,null,null,null,null,null,null,null,"Pescador em água salgada","Serviços de pesca artesanal e captura de crustáceos; de despesca de rede e espinhel - Pescador em água salgada.","0311-6/04","Atividades de apoio à pesca em água salgada",{"$f":"VALUE(LEFT(P405,2))","v":3},{"$f":"IF(R405<35,\"IND\",IF(AND(R405>=45,R405<=47),\"COM\",\"SERV\"))","v":"IND"}]
[null,null,null,null,null,null,null,null,null,null,null,null,null,"Pintor de automóveis","Serviços de pinturas em automóveis - Pintor de automóveis","4520-0/02","Serviços de lanternagem ou funilaria e pintura de veículos automotores",45,"COM"]
[null,null,null,null,null,null,null,null,null,null,null,null,null,"Pintor de parede","Serviços de pintura em edificações - Pintor de parede","4330-4/04","Serviços de pintura de edifícios em geral",43,"SERV"]
[null,null,null,null,null,null,null,null,null,null,null,null,null,"Pipoqueiro","Comércio varejista ambulante de pipoca - Pipoqueiro","5612-1/00","Serviços ambulantes de alimentação",56,"SERV"]
[null,null,null,null,null,null,null,null,null,null,null,null,null,"Pirotécnico","Fabricação de artigos pirotécnicos - Pirotécnico","2092-4/02","Fabricação de artigos pirotécnicos",20,"IND"]
[null,null,null,null,null,null,null,null,null,null,null,null,null,"Pizzaiolo em domicílio","Serviços de preparação de pizzas em domicílio - Pizzaiolo em domicílio.","5620-1/02","Serviços de alimentação para eventos e recepções - bufê",56,"SERV"]
[null,null,null,null,null,null,null,null,null,null,null,null,null,"Poceiro/cisterneiro/cacimbeiro","Serviços de perfuração e construção de poços de água - Poceiro/cisterneiro/cacimbeiro","4399-1/05","Perfuração E Construção De Poços De Água",43,"SERV"]
[null,null,null,null,null,null,null,null,null,null,null,null,null,"Podador agrícola","Serviço de poda e corte de árvores nas lavouras - Podador agrícola","0161-0/02","Serviço de poda de árvores para lavouras",1,"IND"]
[null,null,null,null,null,null,null,null,null,null,null,null,null,"Produtor de algas e demais plantas aquáticas","Serviços de cultivos e semicultivos da aqüicultura em água doce - Produtor de algas e demais plantas aquáticas","0322-1/99","Cultivos e semicultivos da aqüicultura em água doce não especificados anteriormente",3,"IND"]
[null,null,null,null,null,null,null,null,null,null,null,null,null,"Professor particular","Serviços de ensino particular - Professor particular.","8599-6/99","Outras atividades de ensino não especificadas anteriormente",85,"SERV"]
[null,null,null,null,null,null,null,null,null,null,null,null,null,"Promotor de eventos","Serviços de organização de feiras, congressos, exposições e festas - Promotor de eventos.","8230-0/01","Serviços de organização de feiras, congressos, exposições e festas",82,"SERV"]
[null,null,null,null,null,null,null,null,null,null,null,null,null,"Promotor de turismo local","Serviços de promoção de turismo em âmbito local - Promotor de turismo local","7990-2/00","Serviços de reservas e outros serviços de turismo não especificados anteriormente",79,"SERV"]
[null,null,null,null,null,null,null,null,null,null,null,null,null,"Promotor de vendas","Serviços de promoção de vendas e publicidade no local da venda - Promotor de vendas","7319-0/02","Promoção de vendas",73,"SERV"]
[null,null,null,null,null,null,null,null,null,null,null,null,null,"Proprietário de Albergue não assistencial","Serviços de albergue, exceto assistenciais - Proprietário de Albergue não assistencial","5590-6/01","Albergues, exceto assistenciais",55,"SERV"]
[null,null,null,null,null,null,null,null,null,null,null,null,null,"Proprietário de bar e congêneres","Serviço e venda de bebidas alcóolicas - Proprietário de bar e congêneres","5611-2/02","Bares e outros estabelecimentos especializados em servir bebidas",56,"SERV"]
[null,null,null,null,null,null,null,null,null,null,null,null,null,"Proprietário de camping","Serviços de Camping - Proprietário de camping","5590-6/02","Campings",55,"SERV"]
[null,null,null,null,null,null,null,null,null,null,null,null,null,"Proprietário de cantinas","Serviço e venda de alimentos e bebidas não alcóolicas em ambientes fechados (colégios, universidades, fábricas e similares) - Proprietário de cantinas","5620-1/03","Cantinas - serviços de alimentação privativos",56,"SERV"]
[null,null,null,null,null,null,null,null,null,null,null,null,null,"Proprietário de carro de som para fins publicitários","Serviços de publicidade com utilização de alto-falante e sonorização em veículos motorizados ou não ","7319-0/99","Outras atividades de publicidade não especificadas anteriormente",73,"SERV"]
[null,null,null,null,null,null,null,null,null,null,null,null,null,"Proprietário de casa de chá","Serviço e venda de chá e alimentos para consumo no local - Proprietário de casa de chá","5611-2/03","Lanchonetes, casas de chá, de sucos e similares",56,"SERV"]
[null,null,null,null,null,null,null,null,null,null,null,null,null,"Proprietário de casa de sucos","Serviço e venda de sucos e alimentos para consumo no local - Proprietário de casa de sucos","5611-2/03","Lanchonetes, casas de chá, de sucos e similares",56,"SERV"]
[null,null,null,null,null,null,null,null,null,null,null,null,null,"Proprietário de casas de festas e eventos","Serviços de gestão e organização de casas de festas e eventos - Gestor de casas de festas e eventos","8230-0/02","Casas de festas e eventos",82,"SERV"]
[null,null,null,null,null,null,null,null,null,null,null,null,null,"Proprietário de estacionamento de veículos","Serviços de Estacionamento de veículos - Proprietário de estacionamento de veículos","5223-1/00","Estacionamento de veículos",52,"SERV"]
[null,null,null,null,null,null,null,null,null,null,null,null,null,"Proprietário de fliperama","Serviços de exploração de jogos eletrônicos com finalidade recreativa - Proprietário de fliperama","9329-8/04","Exploração de jogos eletrônicos recreativos",93,"SERV"]
[null,null,null,null,null,null,null,null,null,null,null,null,null,"Proprietário de Hospedaria","Serviços de hospedaria - Proprietário de Hospedaria","5590-6/99","Outros alojamentos não especificados anteriormente",55,"SERV"]
[null,null,null,null,null,null,null,null,null,null,null,null,null,"Proprietário de lanchonete","Serviço e venda de bebidas não alcóolica e alimentos para consumo no local - Proprietário de lanchonete","5611-2/03","Lanchonetes, casas de chá, de sucos e similares",56,"SERV"]
[null,null,null,null,null,null,null,null,null,null,null,null,null,"Proprietário de pensão","Serviços de alojamento em pensão - Proprietário de pensão","5590-6/03","Pensões (alojamento)",55,"SERV"]
[null,null,null,null,null,null,null,null,null,null,null,null,null,"Proprietário de Restaurante","Serviço e venda de comidas preparadas e bedidas alcóolicas ou não  - Proprietário de restaurante","5611-2/01","Restaurantes e similares",56,"SERV"]
[null,null,null,null,null,null,null,null,null,null,null,null,null,"Proprietário de sala de acesso à Internet","Serviços de acesso à Internet mediante utilização de computadores - Proprietário de sala de acesso à Internet","8299-7/07","Salas de acesso à internet",82,"SERV"]
[null,null,null,null,null,null,null,null,null,null,null,null,null,"Proprietário de salão de jogos de sinuca e bilhar","Serviço de exploração de jogos de sinuca e bilhar - Proprietário de salão de jogos de sinuca e bilhar","9329-8/03","Exploração de jogos de sinuca, bilhar e similares",93,"SERV"]
[null,null,null,null,null,null,null,null,null,null,null,null,null,"Queijeiro/Manteigueiro","Fabricação de queijos e manteigas - Queijeiro/Manteigueiro","1053-8/00","Fabricação de sorvetes e outros gelados comestíveis",10,"IND"]
[null,null,null,null,null,null,null,null,null,null,null,null,null,"Quitandeiro","Comércio varejista de produtos hortifrutigranjeiros, ovos, mel, rapadura, farinhas, queijos e manteigas - Quitandeiro","4729-6/99","Comércio varejista de produtos alimentícios em geral ou especializado em produtos alimentícios não especificados anteriormente",47,"COM"]
[null,null,null,null,null,null,null,null,null,null,null,null,null,"Quitandeiro ambulante","Comércio varejista ambulante de produtos hortifrutigranjeiro - Quitandeiro.","5612-1/00","Serviços ambulantes de alimentação",56,"SERV"]
[null,null,null,null,null,null,null,null,null,null,null,null,null,"Reciclador de borracha, madeira, papel e vidro","Serviços de reciclagem de materiais de borracha, madeira, papel e vidro - Reciclador de borracha, madeira, papel e vidro","3839-4/99","Recuperação de materiais não especificados anteriormente",38,"SERV"]
[null,null,null,null,null,null,null,null,null,null,null,null,null,"Reciclador de materiais metálicos, exceto alumínio","Serviços de reciclagem de materiais metálicos, exceto alumínio - Reciclador de materiais metálicos, exceto alumínio","3831-9/99","Recuperação de materiais metálicos, exceto alumínio",38,"SERV"]
[null,null,null,null,null,null,null,null,null,null,null,null,null,"Reciclador de materiais plásticos","Serviços de reciclagem de materiais plásticos - Reciclador de materiais plásticos","3832-7/00","Recuperação de materiais plásticos",38,"SERV"]
[null,null,null,null,null,null,null,null,null,null,null,null,null,"Reciclador de sucatas de alumínio","Serviço de recuperação de sucatas de alumínio - Reciclador de sucatas de alumínio","3831-9/01","Recuperação de sucatas de alumínio",38,"SERV"]
[null,null,null,null,null,null,null,null,null,null,null,null,null,"Redeiro","Fabricação de redes de dormir - Redeiro","1353-7/00","Fabricação de artefatos de cordoaria",13,"IND"]
[null,null,null,null,null,null,null,null,null,null,null,null,null,"Reflorestador","Serviço de florestamento e reflorestamento de florestas nativas - Reflorestador","0220-9/06","Conservação de florestas nativas",2,"IND"]
[null,null,null,null,null,null,null,null,null,null,null,null,null,"Relojoeiro","Serviços de reparação de relógios - Relojoeiro.","9529-1/03","Reparação de relógios",95,"SERV"]
[null,null,null,null,null,null,null,null,null,null,null,null,null,"Removedor e exumador de cadáver","Serviços de remoção e exumação de cadáveres - Removedor e exumador de cadáver","9603-3/99","Atividades funerárias e serviços relacionados não especificados anteriormente",96,"SERV"]
[null,null,null,null,null,null,null,null,null,null,null,null,null,"Rendeira","Fabricação de rendas manuais - Rendeira","1359-6/00","Fabricação de outros produtos têxteis não especificados anteriormente",13,"IND"]
[null,null,null,null,null,null,null,null,null,null,null,null,null,"Reparador de aparelhos e equipamentos para distribuição e controle de energia elétrica","Manutenção e reparação de aparelhos e equipamentos para distribuição e controle de energia elétrica - Reparador de aparelhos e equipamentos para distribuição e controle de energia elétrica","3313-9/99","Manutenção e reparação de máquinas, aparelhos e materiais elétricos não especificados anteriormente",33,"IND"]
[null,null,null,null,null,null,null,null,null,null,null,null,null,"Reparador de balanças industriais e comerciais","Manutenção e reparação de balanças industriais e comerciais - Reparador de balanças industriais e comerciais","3314-7/10","Manutenção e reparação de máquinas e equipamentos para uso geral não especificados anteriormente",33,"IND"]
[null,null,null,null,null,null,null,null,null,null,null,null,null,"Reparador de baterias e acumuladores elétricos, exceto para veículos","Manutenção e reparação de baterias e acumuladores elétricos, exceto para veículos - Reparador de baterias e acumuladores elétricos, exceto para veículos","3313-9/02","Manutenção e reparação de baterias e acumuladores elétricos, exceto para veículos",33,"IND"]
[null,null,null,null,null,null,null,null,null,null,null,null,null,"Reparador de bicicleta","Serviços de reparação e manutenção de bicicletas, triciclos e demais veículos não-motorizados - Reparador de bicicleta","9529-1/04","Reparação de bicicletas, triciclos e outros veículos não-motorizados",95,"SERV"]
[null,null,null,null,null,null,null,null,null,null,null,null,null,"Reparador de cordas, velames e lonas","Manutenção e reparação de cordas, velames e lonas - Reparador de cordas, velames e lonas","3319-8/00","Manutenção e reparação de equipamentos e produtos não especificados anteriormente",33,"IND"]
[null,null,null,null,null,null,null,null,null,null,null,null,null,"Reparador de embarcações para esporte e lazer","Manutenção e reparação de embarcações para esporte e lazer - Reparador de embarcações para esporte e lazer - Reparador de embarcações para esporte e lazer","3317-1/02","Manutenção e reparação de embarcações para esporte e lazer",33,"IND"]
[null,null,null,null,null,null,null,null,null,null,null,null,null,"Reparador de equipamentos hidráulicos e pneumáticos, exceto válvulas","Manutenção e reparação de equipamentos hidráulicos e pneumáticos, exceto válvulas - Reparador de equipamentos hidráulicos e pneumáticos, exceto válvulas","3314-7/02","Manutenção e reparação de equipamentos hidráulicos e pneumáticos, exceto válvulas",33,"IND"]
[null,null,null,null,null,null,null,null,null,null,null,null,null,"Reparador de extintor de incêndio","Manutenção e reparação de extintor de incêndio - Reparador de extintor de incêndio","3314-7/10","Manutenção e reparação de máquinas e equipamentos para uso geral não especificados anteriormente",33,"IND"]
[null,null,null,null,null,null,null,null,null,null,null,null,null,"Reparador de filtros industriais","Manutenção e reparação de filtros industriais - Reparador de filtros industriais","3314-7/10","Manutenção e reparação de máquinas e equipamentos para uso geral não especificados anteriormente",33,"IND"]
[null,null,null,null,null,null,null,null,null,null,null,null,null,"Reparador de geradores, transformadores e motores elétricos","Manutenção e reparação de geradores, transformadores e motores elétricos - Reparador de geradores, transformadores e motores elétricos","3313-9/01","Manutenção e reparação de geradores, transformadores e motores elétricos",33,"IND"]
[null,null,null,null,null,null,null,null,null,null,null,null,null,"Reparador de instrumentos musicais","Serviços de reparação e manutenção de instrumentos musicais - Reparador de instrumentos musicais.","9529-1/99","Reparação e manutenção de outros objetos e equipamentos pessoais e domésticos não especificados anteriormente",95,"SERV"]
[null,null,null,null,null,null,null,null,null,null,null,null,null,"Reparador de máquinas de escrever, calcular e de outros equipamentos não-eletrônicos para escritório","Manutenção e reparação de máquinas de escrever, calcular e de outros equipamentos não-eletrônicos para escritório - Reparador de máquinas de escrever, calcular e de outros equipamentos não-eletrônicos para escritório","3314-7/09","Manutenção e reparação de máquinas de escrever, calcular e de outros equipamentos não-eletrônicos para escritório",33,"IND"]
[null,null,null,null,null,null,null,null,null,null,null,null,null,"Reparador de máquinas e aparelhos de refrigeração e ventilação para uso industrial e comercial","Manutenção e reparação de máquinas e aparelhos de refrigeração e ventilação para uso industrial e comercial - Reparador de máquinas e aparelhos de refrigeração e ventilação para uso industrial e comercial","3314-7/07","Manutenção e reparação de máquinas e aparelhos de refrigeração e ventilação para uso industrial e comercial",33,"IND"]
[null,null,null,null,null,null,null,null,null,null,null,null,null,"Reparador de máquinas e aparelhos para a indústria gráfica","Manutenção e reparação de máquinas e aparelhos para a indústria gráfica - Reparador de máquinas e aparelhos para a indústria gráfica","3314-7/99","Manutenção e reparação de outras máquinas e equipamentos para usos industriais não especificados anteriormente",33,"IND"]
[null,null,null,null,null,null,null,null,null,null,null,null,null,"Reparador de máquinas e equipamentos para a indústria da madeira","Manutenção e reparação de máquinas e equipamentos para a indústria da madeira - Reparador de máquinas e equipamentos para a indústria da madeira","3314-7/99","Manutenção e reparação de outras máquinas e equipamentos para usos industriais não especificados anteriormente",33,"IND"]
[null,null,null,null,null,null,null,null,null,null,null,null,null,"Reparador de máquinas e equipamentos para a indústria têxtil, do vestuário, do couro e calçados","Manutenção e reparação de máquinas e equipamentos para a indústria têxtil, do vestuário, do couro e calçados - Reparador de máquinas e equipamentos para a indústria têxtil, do vestuário, do couro e calçados","3314-7/20","Manutenção e reparação de máquinas e equipamentos para a indústria têxtil, do vestuário, do couro e calçados",33,"IND"]
[null,null,null,null,null,null,null,null,null,null,null,null,null,"Reparador de máquinas e equipamentos para agricultura e pecuária","Manutenção e reparação de máquinas e equipamentos para agricultura e pecuária - Reparador de máquinas e equipamentos para agricultura e pecuária","3314-7/11","Manutenção e reparação de máquinas e equipamentos para agricultura e pecuária",33,"IND"]
[null,null,null,null,null,null,null,null,null,null,null,null,null,"Reparador de máquinas e equipamentos para as indústrias de alimentos, bebidas e fumo","Manutenção e reparação de máquinas e equipamentos para as indústrias de alimentos, bebidas e fumo - Reparador de máquinas e equipamentos para as indústrias de alimentos, bebidas e fumo","3314-7/19","Manutenção e reparação de máquinas e equipamentos para as indústrias de alimentos, bebidas e fumo",33,"IND"]
[null,null,null,null,null,null,null,null,null,null,null,null,null,"Reparador de máquinas motrizes não-elétricas","Manutenção e reparação de máquinas motrizes não-elétricas - Reparador de máquinas motrizes não-elétricas","3314-7/01","Manutenção e reparação de máquinas motrizes não-elétricas",33,"IND"]
[null,null,null,null,null,null,null,null,null,null,null,null,null,"Reparador de máquinas para bares e lanchonetes","Manutenção e reparação de máquinas para bares e lanchonetes - Reparador de máquinas para bares e lanchonetes","3314-7/10","Manutenção e reparação de máquinas e equipamentos para uso geral não especificados anteriormente",33,"IND"]
[null,null,null,null,null,null,null,null,null,null,null,null,null,"Reparador de máquinas para encadernação","Manutenção e reparação de máquinas para encadernação - Reparador de máquinas para encadernação","3314-7/99","Manutenção e reparação de outras máquinas e equipamentos para usos industriais não especificados anteriormente",33,"IND"]
[null,null,null,null,null,null,null,null,null,null,null,null,null,"Reparador de máquinas, aparelhos e equipamentos para instalações térmicas","Manutenção e reparação de máquinas, aparelhos e equipamentos para instalações térmicas - Reparador de máquinas, aparelhos e equipamentos para instalações térmicas","3314-7/06","Manutenção e reparação de máquinas, aparelhos e equipamentos para instalações térmicas",33,"IND"]
[null,null,null,null,null,null,null,null,null,null,null,null,null,"Reparador de panelas (paneleiro)","Serviços de reparação e manutenção de panelas - Repador de panelas (paneleiro)","9529-1/99","Reparação e manutenção de outros objetos e equipamentos pessoais e domésticos não especificados anteriormente",95,"SERV"]
[null,null,null,null,null,null,null,null,null,null,null,null,null,"Reparador de tanques, reservatórios metálicos e caldeiras, exceto para veículos","Manutenção e reparação de tanques, reservatórios metálicos e caldeiras, exceto para veículos - Reparador de tanques, reservatórios metálicos e caldeiras, exceto para veículos","3311-2/00","Manutenção e reparação de tanques, reservatórios metálicos e caldeiras, exceto para veículos",{"$f":"VALUE(LEFT(P469,2))","v":33},{"$f":"IF(R469<35,\"IND\",IF(AND(R469>=45,R469<=47),\"COM\",\"SERV\"))","v":"IND"}]
[null,null,null,null,null,null,null,null,null,null,null,null,null,"Reparador de tonéis, barris e paletes de madeira","Manutenção e reparação de tonéis, barris e paletes de madeira - Reparador de tonéis, barris e paletes de madeira","3319-8/00","Manutenção e reparação de equipamentos e produtos não especificados anteriormente",33,"IND"]
[null,null,null,null,null,null,null,null,null,null,null,null,null,"Reparador de tratores agrícolas","Manutenção e reparação de tratores agrícolas - Reparador de tratores agrícolas","3314-7/12","Manutenção e reparação de tratores agrícolas",33,"IND"]
[null,null,null,null,null,null,null,null,null,null,null,null,null,"Reparador de veículos de tração animal","Manutenção e reparação de veículos de tração animal - Reparador de veículos de tração animal","3319-8/00","Manutenção e reparação de equipamentos e produtos não especificados anteriormente",33,"IND"]
[null,null,null,null,null,null,null,null,null,null,null,null,null,"Restaurador de instrumentos musicais históricos","Restauração de instrumentos musicais históricos - Restaurador de instrumentos musicais históricos","3319-8/00","Manutenção e reparação de equipamentos e produtos não especificados anteriormente",33,"IND"]
[null,null,null,null,null,null,null,null,null,null,null,null,null,"Restaurador de jogos acionados por moedas","Restauração de jogos acionados por moedas - Restaurador de jogos acionados por moedas","3319-8/00","Manutenção e reparação de equipamentos e produtos não especificados anteriormente",33,"IND"]
[null,null,null,null,null,null,null,null,null,null,null,null,null,"Restaurador de livros","Serviços de reparação e manutenção de livros","9529-1/99","Reparação e manutenção de outros objetos e equipamentos pessoais e domésticos não especificados anteriormente",95,"SERV"]
[null,null,null,null,null,null,null,null,null,null,null,null,null,"Restaurador de obras de arte","Serviços de restauração de obras de arte - Restaurador de obras de arte.","9002-7/02","Restauração de obras de arte",90,"SERV"]
[null,null,null,null,null,null,null,null,null,null,null,null,null,"Restaurador de prédios históricos","Serviços de restauração de prédios históricos - Restaurador de prédios históricos","9102-3/02","Restauração e conservação de lugares e prédios históricos",91,"SERV"]
[null,null,null,null,null,null,null,null,null,null,null,null,null,"Retificador de motores para veículos automotores","Serviço de recondicionamento, recuperação ou retífica de motores para veículos automotores - Retificador de motores para veículos automotores","2950-6/00","Recondicionamento e recuperação de motores para veículos automotores",29,"IND"]
[null,null,null,null,null,null,null,null,null,null,null,null,null,"Revelador de filmes fotográficos","Serviços de revelação de filmes e processamento de fotografias - Revelador de filmes fotográficos","7420-0/03","Laboratórios fotográficos",74,"SERV"]
[null,null,null,null,null,null,null,null,null,null,null,null,null,"Salgadeira","Fabricação de salgados - Salgadeira.","5620-1/04","Fornecimento de alimentos preparados preponderantemente para consumo domiciliar",56,"SERV"]
[null,null,null,null,null,null,null,null,null,null,null,null,null,"Salineiro/extrator de sal marinho","Produção e extração de sal marinho - Salineiro/extrator de sal marinho","0892-4/01","Extração de sal marinho",8,"IND"]
[null,null,null,null,null,null,null,null,null,null,null,null,null,"Salsicheiro/linguiceiro","Fabricação de lingüiça, salsicha e produtos similares - Salsicheiro/linguiceiro","1013-9/01","Fabricação de produtos de carne",10,"IND"]
[null,null,null,null,null,null,null,null,null,null,null,null,null,"Sapateiro","Serviços de reparação de calçados - Sapateiro sob encomenda.","9529-1/01","Reparação de calçados, bolsas e artigos de viagem",95,"SERV"]
[null,null,null,null,null,null,null,null,null,null,null,null,null,"Seleiro","Fabricação de artefatos de selaria e artigos de couro para pequenos animais - Seleiro","1529-7/00","Fabricação de artefatos de couro não especificados anteriormente",15,"IND"]
[null,null,null,null,null,null,null,null,null,null,null,null,null,"Sepultador","Serviços de sepultamento - Sepultador","9603-3/03","Serviços de sepultamento",96,"SERV"]
[null,null,null,null,null,null,null,null,null,null,null,null,null,"Serigrafista","Serviços de serigrafia - Serigrafista.","1813-0/99","Impressão de material para outros usos",18,"IND"]
[null,null,null,null,null,null,null,null,null,null,null,null,null,"Serigrafista publicitário","Serviços de serigrafia em material para uso publicitário - Serigrafista publicitário","1813-0/01","Impressão de material para uso publicitário",18,"IND"]
[null,null,null,null,null,null,null,null,null,null,null,null,null,"Seringueiro","Serviço de coleta do látex em seringais nativos - Seringueiro","0220-9/04","Coleta de látex em florestas nativas",2,"IND"]
[null,null,null,null,null,null,null,null,null,null,null,null,null,"Serralheiro","Fabricação de artigos de serralheria - Serralheiro. - Serralheiro","2542-0/00","Fabricação de artigos de serralheria, exceto esquadrias",25,"IND"]
[null,null,null,null,null,null,null,null,null,null,null,null,null,"Sintequeiro","Serviços de aplicação de sinteco, bona e similares em pisos - Sintequeiro","4330-4/05","Aplicação de revestimentos e de resinas em interiores e exteriores",43,"SERV"]
[null,null,null,null,null,null,null,null,null,null,null,null,null,"Soldador / brasador","Serviços de  solda - Soldador/brasador.","2539-0/00","Serviços de usinagem, solda, tratamento e revestimento em metais",25,"IND"]
[null,null,null,null,null,null,null,null,null,null,null,null,null,"Sorveteiro","Comércio varejista de sorvetes e picolés - Sorveteiro","4729-6/99","Comércio varejista de produtos alimentícios em geral ou especializado em produtos alimentícios não especificados anteriormente",47,"COM"]
[null,null,null,null,null,null,null,null,null,null,null,null,null,"Sorveteiro ambulante","Comércio varejista ambulante de sorvetes - Sorveteiro ambulante.","5612-1/00","Serviços ambulantes de alimentação",56,"SERV"]
[null,null,null,null,null,null,null,null,null,null,null,null,null,"Tanoeiro","Fabricação de artefatos de tanoaria - Tanoeiro","1623-4/00","Fabricação de artefatos de tanoaria e de embalagens de madeira",16,"IND"]
[null,null,null,null,null,null,null,null,null,null,null,null,null,"Tapeceiro","Fabricação de tapetes, forrações para revestimento de pisos (carpete) e de outros artefatos de tapeçaria  - Tapeceiro","1352-9/00","Fabricação de artefatos de tapeçaria",13,"IND"]
[null,null,null,null,null,null,null,null,null,null,null,null,null,"Tatuador","Serviços de tatuagem - Tatuador.","9609-2/99","Outras atividades de serviços pessoais não especificadas anteriormente",96,"SERV"]
[null,null,null,null,null,null,null,null,null,null,null,null,null,"Taxista","Serviço de transporte de pessoas com uso de automóveis - Taxista","4923-0/01","Serviço de táxi",49,"SERV"]
[null,null,null,null,null,null,null,null,null,null,null,null,null,"Tecelão","Tecelagem de fios de fibras têxteis naturais - Tecelão.","1322-7/00","Tecelagem de fios de fibras têxteis naturais, exceto algodão",13,"IND"]
[null,null,null,null,null,null,null,null,null,null,null,null,null,"Tecelão de algodão","Tecelagem de fios de fibras de algodão - Tecelão de algodão","1321-9/00","Tecelagem de fios de algodão",13,"IND"]
[null,null,null,null,null,null,null,null,null,null,null,null,null,"Técnico de manutenção de computador","Serviços de reparação e manutenção em computadores e periféricos - Técnico de manutenção de computador","9511-8/00","Reparação e manutenção de computadores e de equipamentos periféricos",95,"SERV"]
[null,null,null,null,null,null,null,null,null,null,null,null,null,"Técnico de manutenção de eletrodomésticos","Serviços de reparação e manutenção de equipamentos eletroeletrônicos de uso pessoal e doméstico - Técnico de manutenção de eletrodomésticos","9521-5/00","Reparação e manutenção de equipamentos eletroeletrônicos de uso pessoal e doméstico",95,"SERV"]
[null,null,null,null,null,null,null,null,null,null,null,null,null,"Técnico de manutenção de telefonia","Serviços de reparação e manutenção em telefones - fixos e móveis, aparelhos de fax e similares - Técnico de manutenção de telefonia","9512-6/00","Reparação e manutenção de equipamentos de comunicação",95,"SERV"]
[null,null,null,null,null,null,null,null,null,null,null,null,null,"Telhador","Serviços de confecção de estrutura de madeira ou metal para cobertura e colocação de telhas - Telhador.","4399-1/99","Serviços Especializados Para Construção Não Especificados Anteriormente",43,"SERV"]
[null,null,null,null,null,null,null,null,null,null,null,null,null,"Tintureiro","Serviços de tingimento de roupas - Tintureiro","9601-7/02","Tinturarias",96,"SERV"]
[null,null,null,null,null,null,null,null,null,null,null,null,null,"Torneiro mecânico","Serviços de operação de máquisa-ferramenta - Torneiro mecânico.","2539-0/00","Serviços de usinagem, solda, tratamento e revestimento em metais",25,"IND"]
[null,null,null,null,null,null,null,null,null,null,null,null,null,"Tosador de animais domésticos","Serviços de tosa de animais domésticos - Tosador de animais domésticos.","9609-2/03","Alojamento, higiene e embelezamento de animais",96,"SERV"]
[null,null,null,null,null,null,null,null,null,null,null,null,null,"Tosquiador","Serviço de tosquia de ovinos - Tosquiador.","0162-8/02","Serviço de tosquiamento de ovinos",1,"IND"]
[null,null,null,null,null,null,null,null,null,null,null,null,null,"Transportador aquaviário para passeios turísticos","Serviços de transporte aquaviário para passeios turísticos - Transportador aquaviário para passeios turísticos","5099-8/01","Transporte aquaviário para passeios turísticos",50,"SERV"]
[null,null,null,null,null,null,null,null,null,null,null,null,null,"Transportador de escolares","Serviços de transporte de escolares - Transportador de escolares.","4924-8/00","Transporte escolar",49,"SERV"]
[null,null,null,null,null,null,null,null,null,null,null,null,null,"Transportador de mudanças","Serviços de transporte rodoviário de mudanças - Transportador de mudanças","4930-2/04","Transporte rodoviário de mudanças",49,"SERV"]
[null,null,null,null,null,null,null,null,null,null,null,null,null,"Transportador marítimo de carga","Serviços de transporte marítimo de cabotagem - Carga - Transportador marítimo de carga","5011-4/01","Transporte marítimo de cabotagem - Carga",50,"SERV"]
[null,null,null,null,null,null,null,null,null,null,null,null,null,"Transportador municipal de cargas não perigosas(carreto)","Serviços de transporte rodoviário de carga, exceto produtos perigosos e mudanças, municipal - Transportador municipal de cargas não perigosas(carreto)","4930-2/01","Transporte rodoviário de carga, exceto produtos perigosos e mudanças, municipal",49,"SERV"]
[null,null,null,null,null,null,null,null,null,null,null,null,null,"Transportador municipal de passageiros sob frete","Serviços de transporte rodoviário coletivo de passageiros, sob regime de fretamento, municipal - Transportador municipal de passageiros sob frete","4929-9/01","Transporte rodoviário coletivo de passageiros, sob regime de fretamento, municipal",49,"SERV"]
[null,null,null,null,null,null,null,null,null,null,null,null,null,"Transportador municipal de travessia por navegação","Serviços de transporte por navegação de travessia, municipal - Transportador municipal de travessia por navegação","5091-2/01","Transporte por navegação de travessia, municipal",50,"SERV"]
[null,null,null,null,null,null,null,null,null,null,null,null,null,"Transportador municipal hidroviário de cargas","Serviços de transporte por navegação interior de carga, municipal, exceto travessia - Transportador municipal hidroviário de cargas","5021-1/01","Transporte por navegação interior de carga, municipal, exceto travessia",50,"SERV"]
[null,null,null,null,null,null,null,null,null,null,null,null,null,"Tricoteira","Confecção de produtos de tricot - Tricoteira","1422-3/00","Fabricação de artigos do vestuário, produzidos em malharias e tricotagens, exceto meias",14,"IND"]
[null,null,null,null,null,null,null,null,null,null,null,null,null,"Vassoureiro","Fabricação de escovas, pincéis e vassouras - Vassoureiro. - Vassoureiro","3291-4/00","Fabricação de escovas, pincéis e vassouras",32,"IND"]
[null,null,null,null,null,null,null,null,null,null,null,null,null,"Vendedor ambulante de produtos alimentícios","Comércio varejista ambulante de produtos alimentícios prontos para o consumo - Vendedor ambulante de produtos alimentícios.","5612-1/00","Serviços ambulantes de alimentação",56,"SERV"]
[null,null,null,null,null,null,null,null,null,null,null,null,null,"Verdureiro","Comércio varejista de verduras e frutas - Verdureiro","4724-5/00","Comércio varejista de hortifrutigranjeiros",47,"COM"]
[null,null,null,null,null,null,null,null,null,null,null,null,null,"Vidraceiro de automóveis","Serviços de vidraçaria em automóveis - Vidraceiro de automóveis","4520-0/01","Serviços de manutenção e reparação mecânica de veículos automotores",45,"COM"]
[null,null,null,null,null,null,null,null,null,null,null,null,null,"Vidraceiro de edificações","Serviços de corte, montagem e assentamenteo de vidros - Vidraceiro.","4330-4/99","Outras Obras De Acabamento Da Construção",43,"SERV"]
[null,null,null,null,null,null,null,null,null,null,null,null,null,"Vinagreiro","Fabricação de vinagres - Vinagreiro.","1099-6/01","Fabricação de vinagres",10,"IND"]
[null,null,null,null,null,null,null,null,null,null,null,null,null,"EMPRESA VETADA AO EI"]

{"sheet":"Plan1","index":42,"n_rows":35,"n_cols":61,"rows_kept":35,"cut":false,"hidden":false,"merged":[]}
["Acumulado Operacional",{"$f":"Sazonalidade!C21","v":-659189.55666666676},{"$f":"B1+Sazonalidade!D21","v":-1318022.7633333337},{"$f":"C1+Sazonalidade!E21","v":-1976499.6200000006},{"$f":"D1+Sazonalidade!F21","v":-2634620.1266666674},{"$f":"E1+Sazonalidade!G21","v":-3292384.2833333341},{"$f":"F1+Sazonalidade!H21","v":-3949792.0900000008},{"$f":"G1+Sazonalidade!I21","v":-4608268.9466666672},{"$f":"H1+Sazonalidade!J21","v":-5266389.4533333341},{"$f":"I1+Sazonalidade!K21","v":-5924153.6100000013},{"$f":"J1+Sazonalidade!L21","v":-6581561.4166666679},{"$f":"K1+Sazonalidade!M21","v":-7238612.8733333349},{"$f":"L1+Sazonalidade!N21","v":-7895307.9800000014},{"$f":"M1+Sazonalidade2!C21","v":-8554497.536666669},{"$f":"N1+Sazonalidade2!D21","v":-9213330.743333336},{"$f":"O1+Sazonalidade2!E21","v":-9871807.6000000034},{"$f":"P1+Sazonalidade2!F21","v":-10529928.106666669},{"$f":"Q1+Sazonalidade2!G21","v":-11187692.263333336},{"$f":"R1+Sazonalidade2!H21","v":-11845100.070000002},{"$f":"S1+Sazonalidade2!I21","v":-12503576.92666667},{"$f":"T1+Sazonalidade2!J21","v":-13161697.433333335},{"$f":"U1+Sazonalidade2!K21","v":-13819461.590000002},{"$f":"V1+Sazonalidade2!L21","v":-14476869.396666668},{"$f":"W1+Sazonalidade2!M21","v":-15133920.853333335},{"$f":"X1+Sazonalidade2!N21","v":-15790615.960000003},{"$f":"Y1+Sazonalidade3!C21","v":-16449805.516666669},{"$f":"Z1+Sazonalidade3!D21","v":-17108638.723333336},{"$f":"AA1+Sazonalidade3!E21","v":-17767115.580000002},{"$f":"AB1+Sazonalidade3!F21","v":-18425236.08666667},{"$f":"AC1+Sazonalidade3!G21","v":-19083000.243333336},{"$f":"AD1+Sazonalidade3!H21","v":-19740408.050000004},{"$f":"AE1+Sazonalidade3!I21","v":-20398884.90666667},{"$f":"AF1+Sazonalidade3!J21","v":-21057005.413333338},{"$f":"AG1+Sazonalidade3!K21","v":-21714769.570000004},{"$f":"AH1+Sazonalidade3!L21","v":-22372177.376666673},{"$f":"AI1+Sazonalidade3!M21","v":-23029228.83333334},{"$f":"AJ1+Sazonalidade3!N21","v":-23685923.940000005},{"$f":"AK1+Sazonalidade4!C21","v":-24345113.496666674},{"$f":"AL1+Sazonalidade4!D21","v":-25003946.703333341},{"$f":"AM1+Sazonalidade4!E21","v":-25662423.560000006},{"$f":"AN1+Sazonalidade4!F21","v":-26320544.066666674},{"$f":"AO1+Sazonalidade4!G21","v":-26978308.22333334},{"$f":"AP1+Sazonalidade4!H21","v":-27635716.030000009},{"$f":"AQ1+Sazonalidade4!I21","v":-28294192.886666674},{"$f":"AR1+Sazonalidade4!J21","v":-28952313.393333342},{"$f":"AS1+Sazonalidade4!K21","v":-29610077.550000008},{"$f":"AT1+Sazonalidade4!L21","v":-30267485.356666677},{"$f":"AU1+Sazonalidade4!M21","v":-30924536.813333344},{"$f":"AV1+Sazonalidade4!N21","v":-31581231.920000009},{"$f":"AW1+Sazonalidade5!C21","v":-32240421.476666678},{"$f":"AX1+Sazonalidade5!D21","v":-32899254.683333345},{"$f":"AY1+Sazonalidade5!E21","v":-33557731.540000014},{"$f":"AZ1+Sazonalidade5!F21","v":-34215852.046666682},{"$f":"BA1+Sazonalidade5!G21","v":-34873616.203333348},{"$f":"BB1+Sazonalidade5!H21","v":-35531024.010000013},{"$f":"BC1+Sazonalidade5!I21","v":-36189500.866666682},{"$f":"BD1+Sazonalidade5!J21","v":-36847621.37333335},{"$f":"BE1+Sazonalidade5!K21","v":-37505385.530000016},{"$f":"BF1+Sazonalidade5!L21","v":-38162793.336666681},{"$f":"BG1+Sazonalidade5!M21","v":-38819844.793333344},{"$f":"BH1+Sazonalidade5!N21","v":-39476539.900000013}]
[null,{"$f":"Sazonalidade!C24","v":-664645.46014491201},{"$f":"B2+Sazonalidade!D24","v":-1328952.1652898239},{"$f":"C2+Sazonalidade!E24","v":-1992902.5204347358},{"$f":"D2+Sazonalidade!F24","v":-2656496.5255796476},{"$f":"E2+Sazonalidade!G24","v":-3319734.1807245594},{"$f":"F2+Sazonalidade!H24","v":-3982615.4858694714},{"$f":"G2+Sazonalidade!I24","v":-4649419.1112095863},{"$f":"H2+Sazonalidade!J24","v":-5315866.386549701},{"$f":"I2+Sazonalidade!K24","v":-5981957.3118898161},{"$f":"J2+Sazonalidade!L24","v":-6647691.8872299306},{"$f":"K2+Sazonalidade!M24","v":-7313070.1125700455},{"$f":"L2+Sazonalidade!N24","v":-7978091.9879101599},{"$f":"M2+Sazonalidade2!C24","v":-8641302.4097720291},{"$f":"N2+Sazonalidade2!D24","v":-9304156.4816338979},{"$f":"O2+Sazonalidade2!E24","v":-9966654.203495767},{"$f":"P2+Sazonalidade2!F24","v":-10628795.575357636},{"$f":"Q2+Sazonalidade2!G24","v":-11290580.597219506},{"$f":"R2+Sazonalidade2!H24","v":-11952009.269081376},{"$f":"S2+Sazonalidade2!I24","v":-12614506.990943246},{"$f":"T2+Sazonalidade2!J24","v":-13276648.362805115},{"$f":"U2+Sazonalidade2!K24","v":-13938433.384666985},{"$f":"V2+Sazonalidade2!L24","v":-14599862.056528855},{"$f":"W2+Sazonalidade2!M24","v":-15260934.378390724},{"$f":"X2+Sazonalidade2!N24","v":-15921650.350252593},{"$f":"Y2+Sazonalidade3!C24","v":-16584860.772114463},{"$f":"Z2+Sazonalidade3!D24","v":-17247714.843976334},{"$f":"AA2+Sazonalidade3!E24","v":-17910212.565838203},{"$f":"AB2+Sazonalidade3!F24","v":-18572353.93770007},{"$f":"AC2+Sazonalidade3!G24","v":-19234138.95956194},{"$f":"AD2+Sazonalidade3!H24","v":-19895567.631423809},{"$f":"AE2+Sazonalidade3!I24","v":-20558065.353285678},{"$f":"AF2+Sazonalidade3!J24","v":-21220206.725147545},{"$f":"AG2+Sazonalidade3!K24","v":-21881991.747009415},{"$f":"AH2+Sazonalidade3!L24","v":-22543420.418871284},{"$f":"AI2+Sazonalidade3!M24","v":-23204492.740733154},{"$f":"AJ2+Sazonalidade3!N24","v":-23865208.712595023},{"$f":"AK2+Sazonalidade4!C24","v":-24524398.269261692},{"$f":"AL2+Sazonalidade4!D24","v":-25183231.475928359},{"$f":"AM2+Sazonalidade4!E24","v":-25841708.332595024},{"$f":"AN2+Sazonalidade4!F24","v":-26499828.839261692},{"$f":"AO2+Sazonalidade4!G24","v":-27157592.995928358},{"$f":"AP2+Sazonalidade4!H24","v":-27815000.802595027},{"$f":"AQ2+Sazonalidade4!I24","v":-28473477.659261692},{"$f":"AR2+Sazonalidade4!J24","v":-29131598.16592836},{"$f":"AS2+Sazonalidade4!K24","v":-29789362.322595026},{"$f":"AT2+Sazonalidade4!L24","v":-30446770.129261695},{"$f":"AU2+Sazonalidade4!M24","v":-31103821.585928362},{"$f":"AV2+Sazonalidade4!N24","v":-31760516.692595027},{"$f":"AW2+Sazonalidade5!C24","v":-32419706.249261696},{"$f":"AX2+Sazonalidade5!D24","v":-33078539.455928363},{"$f":"AY2+Sazonalidade5!E24","v":-33737016.312595032},{"$f":"AZ2+Sazonalidade5!F24","v":-34395136.8192617},{"$f":"BA2+Sazonalidade5!G24","v":-35052900.975928366},{"$f":"BB2+Sazonalidade5!H24","v":-35710308.782595031},{"$f":"BC2+Sazonalidade5!I24","v":-36368785.6392617},{"$f":"BD2+Sazonalidade5!J24","v":-37026906.145928368},{"$f":"BE2+Sazonalidade5!K24","v":-37684670.302595034},{"$f":"BF2+Sazonalidade5!L24","v":-38342078.109261699},{"$f":"BG2+Sazonalidade5!M24","v":-38999129.565928362},{"$f":"BH2+Sazonalidade5!N24","v":-39655824.672595032}]
["mês",1,2,3,4,5,6,7,8,9,10,11,12,13,14,15,16,17,18,19,20,21,22,23,24,25,26,27,28,29,30,31,32,33,34,35,36,37,38,39,40,41,42,43,44,45,46,47,48,49,50,51,52,53,54,55,56,57,58,59,60]
["Financimento 1",{"$f":"Financiamento!E28","v":1150},{"$f":"Financiamento!E29","v":1167.595},{"$f":"Financiamento!E30","v":1167.595},{"$f":"Financiamento!E31","v":1167.595},{"$f":"Financiamento!E32","v":1167.595},{"$f":"Financiamento!E33","v":1167.595},{"$f":"Financiamento!E34","v":4020.8651952026976},{"$f":"Financiamento!E35","v":4020.8651952026971},{"$f":"Financiamento!E36","v":4020.8651952026976},{"$f":"Financiamento!E37","v":4020.8651952026971},{"$f":"Financiamento!E38","v":4020.8651952026971},{"$f":"Financiamento!E39","v":4020.8651952026971},{"$f":"Financiamento!E40","v":4020.8651952026976},{"$f":"Financiamento!E41","v":4020.8651952026976},{"$f":"Financiamento!E42","v":4020.8651952026971},{"$f":"Financiamento!E43","v":4020.8651952026971},{"$f":"Financiamento!E44","v":4020.8651952026971},{"$f":"Financiamento!E45","v":4020.8651952026971},{"$f":"Financiamento!E46","v":4020.8651952026971},{"$f":"Financiamento!E47","v":4020.8651952026971},{"$f":"Financiamento!E48","v":4020.8651952026971},{"$f":"Financiamento!E49","v":4020.8651952026971},{"$f":"Financiamento!E50","v":4020.8651952026976},{"$f":"Financiamento!E51","v":4020.8651952026971},{"$f":"Financiamento!E52","v":4020.8651952026976},{"$f":"Financiamento!E53","v":4020.8651952026971},{"$f":"Financiamento!E54","v":4020.8651952026971},{"$f":"Financiamento!E55","v":4020.8651952026971},{"$f":"Financiamento!E56","v":4020.8651952026971},{"$f":"Financiamento!E57","v":4020.8651952026971},{"$f":"Financiamento!E58","v":4020.8651952026971},{"$f":"Financiamento!E59","v":4020.8651952026971},{"$f":"Financiamento!E60","v":4020.8651952026971},{"$f":"Financiamento!E61","v":4020.8651952026971},{"$f":"Financiamento!E62","v":4020.8651952026971},{"$f":"Financiamento!E63","v":4020.8651952026971},{"$f":"Financiamento!E64","v":1.4642864698544145E-13},{"$f":"Financiamento!E65","v":1.4642864698544145E-13},{"$f":"Financiamento!E66","v":1.4642864698544145E-13},{"$f":"Financiamento!E67","v":1.4642864698544145E-13},{"$f":"Financiamento!E68","v":1.4642864698544145E-13},{"$f":"Financiamento!E69","v":1.4642864698544145E-13},{"$f":"Financiamento!E70","v":1.4642864698544145E-13},{"$f":"Financiamento!E71","v":1.4642864698544145E-13},{"$f":"Financiamento!E72","v":1.4642864698544145E-13},{"$f":"Financiamento!E73","v":1.4642864698544145E-13},{"$f":"Financiamento!E74","v":1.4642864698544145E-13},{"$f":"Financiamento!E75","v":1.4642864698544145E-13},{"$f":"Financiamento!E76","v":1.4642864698544145E-13},{"$f":"Financiamento!E77","v":1.4642864698544145E-13},{"$f":"Financiamento!E78","v":1.4642864698544145E-13},{"$f":"Financiamento!E79","v":1.4642864698544145E-13},{"$f":"Financiamento!E80","v":1.4642864698544145E-13},{"$f":"Financiamento!E81","v":1.4642864698544145E-13},{"$f":"Financiamento!E82","v":1.4642864698544145E-13},{"$f":"Financiamento!E83","v":1.4642864698544145E-13},{"$f":"Financiamento!E84","v":1.4642864698544145E-13},{"$f":"Financiamento!E85","v":1.4642864698544145E-13},{"$f":"Financiamento!E86","v":1.4642864698544145E-13},{"$f":"Financiamento!E87","v":1.4642864698544145E-13}]
["Financiamento 2",{"$f":"IF(Fin2.Prazo>=B3,Fin2.Parcela,0)","v":4305.9034782452445},4305.9034782452445,4305.9034782452445,4305.9034782452445,4305.9034782452445,4305.9034782452445,4305.9034782452445,4305.9034782452445,4305.9034782452445,4305.9034782452445,4305.9034782452445,4305.9034782452445,0,0,0,0,0,0,0,0,0,0,0,0,0,0,0,0,0,0,0,0,{"$f":"IF(Fin2.Prazo>=AH3,Fin2.Parcela,0)","v":0},0,0,0,0,0,0,0,0,0,0,0,0,0,0,0,0,0,0,0,0,0,0,0,0,0,0,0]
["Financiamento 3",{"$f":"IF(Fin3.Prazo>=B3,Fin3.Parcela,0)","v":0},0,0,0,0,0,0,0,0,0,0,0,0,0,0,0,0,0,0,0,0,0,0,0,0,0,0,0,0,0,0,0,{"$f":"IF(Fin3.Prazo>=AH3,Fin3.Parcela,0)","v":0},0,0,0,0,0,0,0,0,0,0,0,0,0,0,0,0,0,0,0,0,0,0,0,0,0,0,0]
["Outros Financiamentos",{"$f":"Fin4.Parcela","v":0},0,0,0,0,0,0,0,0,0,0,0,0,0,0,0,0,0,0,0,0,0,0,0,0,0,0,0,0,0,0,0,{"$f":"Fin4.Parcela","v":0},0,0,0,0,0,0,0,0,0,0,0,0,0,0,0,0,0,0,0,0,0,0,0,0,0,0,0]
["Total",{"$f":"SUM(B4:B7)","v":5455.9034782452445},{"$f":"SUM(C4:C7)","v":5473.4984782452448},5473.4984782452448,5473.4984782452448,5473.4984782452448,5473.4984782452448,8326.768673447943,8326.7686734479412,8326.768673447943,8326.7686734479412,8326.7686734479412,8326.7686734479412,4020.8651952026976,4020.8651952026976,4020.8651952026971,4020.8651952026971,4020.8651952026971,4020.8651952026971,4020.8651952026971,4020.8651952026971,4020.8651952026971,4020.8651952026971,4020.8651952026976,4020.8651952026971,4020.8651952026976,4020.8651952026971,4020.8651952026971,4020.8651952026971,4020.8651952026971,4020.8651952026971,4020.8651952026971,4020.8651952026971,4020.8651952026971,4020.8651952026971,4020.8651952026971,4020.8651952026971,1.4642864698544145E-13,1.4642864698544145E-13,1.4642864698544145E-13,1.4642864698544145E-13,1.4642864698544145E-13,1.4642864698544145E-13,1.4642864698544145E-13,1.4642864698544145E-13,1.4642864698544145E-13,1.4642864698544145E-13,1.4642864698544145E-13,1.4642864698544145E-13,1.4642864698544145E-13,1.4642864698544145E-13,1.4642864698544145E-13,1.4642864698544145E-13,1.4642864698544145E-13,1.4642864698544145E-13,1.4642864698544145E-13,1.4642864698544145E-13,1.4642864698544145E-13,1.4642864698544145E-13,1.4642864698544145E-13,1.4642864698544145E-13]
[]
["Rentabilidade Final",{"$f":"SUM(B2:BI2)/InvestimentoTotal","v":-112694.63758888881}]
[]
[]
[]
[]
[{"$f":"-Indicadores!C18","v":-10756},{"$f":"Sazonalidade!N26","v":-7978091.9879101599},{"$f":"Sazonalidade2!N26","v":-7943558.3623424321},{"$f":"Sazonalidade3!N26","v":-7943558.3623424321},{"$f":"Sazonalidade4!N26","v":-7895307.9800000014},{"$f":"Sazonalidade5!N26","v":-7895307.9800000014}]
[]
[]
[]
[]
[]
[]
[]
[]
[]
[]
[]
[]
[]
[]
[]
[]
[]
[null,null,null,null,null,null,null,null,null,null,null,null,null,null,null,null,"Regular - Recomendado Verificar"]
[null,null,null,null,null,null,null,null,null,null,null,null,null,null,null,null,"Bom - De acordo porém pode ser melhorado"]
[null,null,null,null,null,null,null,null,null,null,null,null,null,null,null,null,"Ótimo - Informação completa e consistente"]

{"sheet":"Plan2","index":43,"n_rows":0,"n_cols":0,"rows_kept":0,"cut":false,"hidden":false,"merged":[]}